Dep,Entity,Date, Expense Type, Expense Area,Supplier  ,Transaction Number, Amount, Invoice Description
DFID,DFID,02/01/2013,Telephone Usage & services ,East and Central Africa ,Ethio Telecom ,100082-101 ,"1,865.93",
DFID,DFID,02/01/2013,Hotels - Accommodation only ,Western Asia and Stabilisation Division ,John Moffat MOD ,203336-102 ,821.53,
DFID,DFID,02/01/2013,Technical and Advisory Services ,West and Southern Africa ,Mrs Lonnah Ndhlovu ,202214-101 ,"3,253.11",
DFID,DFID,02/01/2013,Hotels - Accommodation only ,East and Central Africa ,Recipient name withheld ,101628-101 ,610.00,
DFID,DFID,03/01/2013,Aid Programme - Core contributions ,Research and Evidence Division ,African Economic Research Consortium ,201712-105 ,"625,000.00",
DFID,DFID,03/01/2013,Aid Programme - Joint programme contribution ,Western Asia and Stabilisation Division ,GTZ GmBH Eschborn ,203106-101 ,"500,000.00",
DFID,DFID,03/01/2013,Aid Programme - Accountable Grant Payments ,Asia  Caribbean and Overseas Territories ,INTERNATIONAL RESCUE COMMITTEE UK ,203400-101 ,"467,169.00",
DFID,DFID,03/01/2013,Aid Programme - Core contributions ,Policy Division ,Transparency International Berlin ,202274-102 ,"259,160.00",
DFID,DFID,03/01/2013,Technical and Advisory Services ,East and Central Africa ,ATOS CONSULTING LIMITED ,113400-103 ,"253,948.96",
DFID,DFID,03/01/2013,Aid Programme - Humanitarian Material Relief Assistance and Services ,Conflict Humanitarian and Security Division , UNHCR ,203785-101 ,"246,880.00",
DFID,DFID,03/01/2013,Technical and Advisory Services ,International Finance Division ,PRICEWATERHOUSECOOPERS ,114178-101 ,"131,993.26",
DFID,DFID,03/01/2013,Technical and Advisory Services ,East and Central Africa ,KPMG EAST AFRICA LTD ,201866-109 ,"130,950.59",
DFID,DFID,03/01/2013,Technical and Advisory Services ,West and Southern Africa ,COFFEY INTERNATIONAL DEVELOPMENT LTD ,104190-103 ,"118,410.97",
DFID,DFID,03/01/2013,Technical and Advisory Services ,West and Southern Africa ,COFFEY INTERNATIONAL DEVELOPMENT LTD ,104190-109 ,"114,380.89",
DFID,DFID,03/01/2013,Technical and Advisory Services ,Policy Division ,KPMG Development Services ,114143-101 ,"83,200.00",
DFID,DFID,03/01/2013,Technical and Advisory Services ,East and Central Africa ,RSM Tenon Limited ,200250-111 ,"59,748.00",
DFID,DFID,03/01/2013,Technical and Advisory Services ,Asia  Caribbean and Overseas Territories ,Ginting & Reksodiputro ,201942-101 ,"56,498.00",
DFID,DFID,03/01/2013,Aid Programme - Trust Funds contributions ,Policy Division ,FAO ,203034-109 ,"50,000.00",
DFID,DFID,03/01/2013,Aid Programme - Accountable Grant Payments ,Asia  Caribbean and Overseas Territories ,Transparency International Berlin ,200621-101 ,"47,657.44",
DFID,DFID,03/01/2013,Technical and Advisory Services ,Middle East & North Africa Division (MENAD) ,UPPER QUARTILE ,203620-101 ,"30,498.59",
DFID,DFID,03/01/2013,Technical and Advisory Services ,Western Asia and Stabilisation Division ,OXFORD POLICY MANAGEMENT ,114153-101 ,"28,752.67",
DFID,DFID,03/01/2013,Technical and Advisory Services ,West and Southern Africa ,PRICEWATERHOUSECOOPERS ,114178-102 ,"25,396.13",
DFID,DFID,03/01/2013,Technical and Advisory Services ,Asia  Caribbean and Overseas Territories ,PRICEWATERHOUSECOOPERS ,114178-103 ,"22,896.75",
DFID,DFID,03/01/2013,Technical and Advisory Services ,Western Asia and Stabilisation Division ,Supplier Name withheld ,201630-103 ,"22,234.84",
DFID,DFID,03/01/2013,Technical and Advisory Services ,West and Southern Africa ,PRICEWATERHOUSECOOPERS ,104190-108 ,"21,936.19",
DFID,DFID,03/01/2013,Technical and Advisory Services ,Middle East & North Africa Division (MENAD) ,UPPER QUARTILE ,203620-101 ,"19,276.80",
DFID,DFID,03/01/2013,Technical and Advisory Services ,Policy Division ,KPMG Development Services ,100045-101 ,"12,462.96",
DFID,DFID,03/01/2013,Technical and Advisory Services ,Asia  Caribbean and Overseas Territories ,ERNST &  YOUNG PRIVATE LTD ,200599-101 ,"11,705.17",
DFID,DFID,03/01/2013,Technical and Advisory Services ,East and Central Africa ,HTSPE LTD ,103548-101 ,"10,476.00",
DFID,DFID,03/01/2013,Technical and Advisory Services ,Western Asia and Stabilisation Division ,RIVER PATH ASSOCIATES ,101624-101 ,"7,034.20",
DFID,DFID,03/01/2013,Research & Development costs ,Research and Evidence Division ,Atkins Limited ,203240-101 ,"5,320.00",
DFID,DFID,03/01/2013,Other non-passenger transportation ,Asia  Caribbean and Overseas Territories ,G4S FACILITY SERVICES (INDIA) PVT. L ,201689-105 ,"3,345.65",
DFID,DFID,03/01/2013,Technical and Advisory Services ,East and Central Africa ,Mekdim Enkossa Ayana ,203016-102 ,"3,268.01",
DFID,DFID,03/01/2013,Gas ,Human Resources Security & Facilities Division ,CORONA ENERGY ,100106-101 ,"2,940.00",
DFID,DFID,03/01/2013,Recruitment costs ,Human Resources Security & Facilities Division ,Penna Barkers ,100269-127 ,"2,467.56",
DFID,DFID,03/01/2013,Recruitment costs ,Human Resources Security & Facilities Division ,Penna Barkers ,100269-127 ,"2,467.56",
DFID,DFID,03/01/2013,Other Building Costs ,West and Southern Africa ,Eagle Air Conditioning and Engeneering ,101618-101 ,"2,370.48",
DFID,DFID,03/01/2013,Telephone Usage & services ,East and Central Africa ,Ethio Telecom ,100082-101 ,"1,859.72",
DFID,DFID,03/01/2013,Gas ,Human Resources Security & Facilities Division ,CORONA ENERGY ,100106-101 ,"1,836.48",
DFID,DFID,03/01/2013,Contract & Agency Staff ,Finance and Corporate Performance Division ,MICHAEL PAGE INTERNATIONAL RECRUITMENT LIMITED ,100201-101 ,"1,650.00",
DFID,DFID,03/01/2013,Telephone Usage & services ,East and Central Africa ,Ethio Telecom ,202913-104 ,"1,621.90",
DFID,DFID,03/01/2013,Contract & Agency Staff ,Finance and Corporate Performance Division ,MICHAEL PAGE INTERNATIONAL RECRUITMENT LIMITED ,100201-101 ,"1,150.02",
DFID,DFID,03/01/2013,Contract & Agency Staff ,Finance and Corporate Performance Division ,MICHAEL PAGE INTERNATIONAL RECRUITMENT LIMITED ,100201-101 ,"1,150.02",
DFID,DFID,03/01/2013,Contract & Agency Staff ,Human Resources Security & Facilities Division ,MICHAEL PAGE INTERNATIONAL RECRUITMENT LIMITED ,100266-110 ,"1,036.64",
DFID,DFID,03/01/2013,Air fares ,Asia  Caribbean and Overseas Territories ,Recipient name withheld ,101621-101 ,"1,036.02",
DFID,DFID,03/01/2013,Hotels - Accommodation only ,West and Southern Africa ,Recipient name withheld ,101613-101 ,802.06,
DFID,DFID,03/01/2013,Contract & Agency Staff ,Asia  Caribbean and Overseas Territories ,Hays Specialist Recruitment Ltd ,100084-101 ,678.18,
DFID,DFID,03/01/2013,Hotels - Accommodation only ,International Finance Division ,Recipient name withheld ,100120-101 ,621.25,
DFID,DFID,03/01/2013,Contract & Agency Staff ,Asia  Caribbean and Overseas Territories ,Hays Specialist Recruitment Ltd ,100084-101 ,616.95,
DFID,DFID,03/01/2013,Technical and Advisory Services ,West and Southern Africa ,Ulendo Lodges ,201551-105 ,572.63,
DFID,DFID,03/01/2013,Air fares ,Asia  Caribbean and Overseas Territories ,Recipient name withheld ,101621-101 ,571.83,
DFID,DFID,03/01/2013,Hotels - Accommodation only ,Conflict Humanitarian and Security Division ,Recipient name withheld ,202410-101 ,551.72,
DFID,DFID,04/01/2013,Aid Programme - Core contributions ,International Relations Division ,UNESCO (EURO) ,203794-101 ,"8,741,368.25",
DFID,DFID,04/01/2013,Aid Programme - Core contributions ,International Relations Division ,UNESCO (USD) ,203794-101 ,"5,748,970.86",
DFID,DFID,04/01/2013,Technical and Advisory Services ,Policy Division ,IMPERIAL COLLEGE LONDON ,200706-101 ,"252,544.94",
DFID,DFID,04/01/2013,Technical and Advisory Services ,Western Asia and Stabilisation Division ,Supplier Name withheld ,114286-102 ,"229,957.94",
DFID,DFID,04/01/2013,Aid Programme - Trust Funds contributions ,International Relations Division ,WFP CONTRIBUTIONS UNIT ,201399-101 ,"87,373.00",
DFID,DFID,04/01/2013,Other rentals ,Asia  Caribbean and Overseas Territories ,Foreign & Commonwealth Office ,202403-101 ,"47,375.55",Secure staff accommodation (shared) Global Partnerships Nov 2012
DFID,DFID,04/01/2013,Technical and Advisory Services ,Asia  Caribbean and Overseas Territories ,TURNER & TOWNSEND ,202433-108 ,"49,534.14",
DFID,DFID,04/01/2013,Aid Programme - Accountable Grant Payments ,Policy Division ,Global Canopy Programme ,201724-114 ,"45,120.76",
DFID,DFID,04/01/2013,Secure Staff Accommodation ,Asia  Caribbean and Overseas Territories ,Foreign & Commonwealth Office ,101615-101 ,"74,806.20",36 months Secure Staff Accommodation (Oct 12 - Oct 15) Indonesia
DFID,DFID,04/01/2013,Technical and Advisory Services ,West and Southern Africa ,CAMBRIDGE EDUCATION LTD ,202623-115 ,"23,973.70",
DFID,DFID,04/01/2013,Cleaning Costs ,Human Resources Security & Facilities Division ,MITIE Technical Facilities Management Ltd ,100187-101 ,"20,291.78",
DFID,DFID,04/01/2013,Technical and Advisory Services ,Asia  Caribbean and Overseas Territories ,OXFORD CONSULTING PARTNERS ,203282-103 ,"19,897.92",
DFID,DFID,04/01/2013,Facilities Management payments ,Human Resources Security & Facilities Division ,MITIE Technical Facilities Management Ltd ,100187-101 ,"16,093.50",
DFID,DFID,04/01/2013,Technical and Advisory Services ,West and Southern Africa ,OXFORD POLICY MANAGEMENT ,202351-105 ,"15,800.00",
DFID,DFID,04/01/2013,Technical and Advisory Services ,Asia  Caribbean and Overseas Territories ,TURNER & TOWNSEND ,100151-101 ,"15,015.85",
DFID,DFID,04/01/2013,Technical and Advisory Services ,East and Central Africa ,RSM Tenon Limited ,103548-101 ,"14,271.24",
DFID,DFID,04/01/2013,other information and communication technologies ,Western Asia and Stabilisation Division ,Supplier Name withheld ,101601-110 ,"14,060.53",
DFID,DFID,04/01/2013,other information and communication technologies ,Western Asia and Stabilisation Division ,Supplier Name withheld ,101601-110 ,"14,058.29",
DFID,DFID,04/01/2013,Other shared service charges ,Asia  Caribbean and Overseas Territories ,Foreign & Commonwealth Office ,202403-101 ,"12,495.13",
DFID,DFID,04/01/2013,Cleaning Costs ,Human Resources Security & Facilities Division ,MITIE Technical Facilities Management Ltd ,100106-101 ,"11,917.40",
DFID,DFID,04/01/2013,FCO shared service charges ,Western Asia and Stabilisation Division ,Foreign & Commonwealth Office ,101624-101 ,"11,468.35",
DFID,DFID,04/01/2013,Secure Staff Accommodation ,Joint Trade Policy Division ,Foreign & Commonwealth Office ,201839-101 ,"9,881.02",
DFID,DFID,04/01/2013,Facilities Management payments ,Human Resources Security & Facilities Division ,MITIE Technical Facilities Management Ltd ,100106-101 ,"9,451.75",
DFID,DFID,04/01/2013,Repairs  Maint  Alter - Property & Constrct. Services ,Human Resources Security & Facilities Division ,MITIE Technical Facilities Management Ltd ,100106-101 ,"8,625.37",
DFID,DFID,04/01/2013,Aid Programme - Joint programme contribution ,West and Southern Africa ,Foreign & Commonwealth Office ,202477-106 ,"8,461.43",
DFID,DFID,04/01/2013,Repairs  Maint  Alter - Property & Constrct. Services ,Human Resources Security & Facilities Division ,MITIE Technical Facilities Management Ltd ,100187-101 ,"8,155.72",
DFID,DFID,04/01/2013,Secure Staff Accommodation ,Asia  Caribbean and Overseas Territories ,Foreign & Commonwealth Office ,101605-101 ,"7,981.54",
DFID,DFID,04/01/2013,Other shared service charges ,Asia  Caribbean and Overseas Territories ,Foreign & Commonwealth Office ,202403-101 ,"7,970.52",
DFID,DFID,04/01/2013,Technical and Advisory Services ,West and Southern Africa ,Foreign & Commonwealth Office ,104229-101 ,"7,928.26",
DFID,DFID,04/01/2013,Secure Staff Accommodation ,Asia  Caribbean and Overseas Territories ,Foreign & Commonwealth Office ,203038-101 ,"7,790.73",
DFID,DFID,04/01/2013,Aid Programme - Joint programme contribution ,Asia  Caribbean and Overseas Territories ,Foreign & Commonwealth Office ,203478-101 ,"7,600.00",
DFID,DFID,04/01/2013,Technical and Advisory Services ,West and Southern Africa ,IOD PARC ,113871-131 ,"6,640.68",
DFID,DFID,04/01/2013,Aid Programme - Joint programme contribution ,Asia  Caribbean and Overseas Territories ,Foreign & Commonwealth Office ,203478-101 ,"6,033.68",
DFID,DFID,04/01/2013,Aid Programme - Joint programme contribution ,Asia  Caribbean and Overseas Territories ,Foreign & Commonwealth Office ,203478-101 ,"6,033.68",
DFID,DFID,04/01/2013,Other shared service charges ,Asia  Caribbean and Overseas Territories ,Foreign & Commonwealth Office ,202403-101 ,"5,992.87",
DFID,DFID,04/01/2013,Technical and Advisory Services ,West and Southern Africa ,Foreign & Commonwealth Office ,104229-101 ,"5,694.85",
DFID,DFID,04/01/2013,other information and communication technologies ,Western Asia and Stabilisation Division ,Supplier Name withheld ,100011-110 ,"4,940.19",
DFID,DFID,04/01/2013,other information and communication technologies ,Western Asia and Stabilisation Division ,Supplier Name withheld ,100011-110 ,"4,939.40",
DFID,DFID,04/01/2013,Furniture & Fittings ,Middle East & North Africa Division (MENAD) ,Foreign & Commonwealth Office ,100303-101 ,"4,804.16",
DFID,DFID,04/01/2013,Conferences  Seminars & Meeting/Event Resource ,West and Southern Africa ,Elmina Beach Resorts ,201629-103 ,"4,727.30",
DFID,DFID,04/01/2013,Technical and Advisory Services ,East and Central Africa ,Crown Agents Bank ,202692-101 ,"4,605.00",
DFID,DFID,04/01/2013,Technical and Advisory Services ,West and Southern Africa ,Foreign & Commonwealth Office ,104229-101 ,"4,483.44",
DFID,DFID,04/01/2013,Technical and Advisory Services ,Human Resources Security & Facilities Division ,MidlandHR ,100272-101 ,"4,350.00",
DFID,DFID,04/01/2013,Secure Staff Accommodation ,Asia  Caribbean and Overseas Territories ,Foreign & Commonwealth Office ,101615-101 ,"4,143.11",
DFID,DFID,04/01/2013,Secure Staff Accommodation ,International Relations Division ,Foreign & Commonwealth Office ,100262-101 ,"3,714.49",
DFID,DFID,04/01/2013,Technical and Advisory Services ,West and Southern Africa ,Foreign & Commonwealth Office ,104229-101 ,"3,486.01",
DFID,DFID,04/01/2013,Aid Programme - Joint programme contribution ,Asia  Caribbean and Overseas Territories ,Foreign & Commonwealth Office ,203478-101 ,"3,116.62",
DFID,DFID,04/01/2013,Books & Publications ,East and Central Africa ,Foreign & Commonwealth Office ,101633-101 ,"2,964.20",
DFID,DFID,04/01/2013,Computer software maintenance ,Business Solutions Division Level ,NORTHGATE HR LIMITED ,200002-105 ,"2,780.80",
DFID,DFID,04/01/2013,Secure Staff Accommodation ,International Relations Division ,Foreign & Commonwealth Office ,100236-101 ,"2,747.24",
DFID,DFID,04/01/2013,Training - Course Fees ,Asia  Caribbean and Overseas Territories ,Foreign & Commonwealth Office ,202403-101 ,"2,733.58",
DFID,DFID,04/01/2013,Secure Staff Accommodation ,East and Central Africa ,Foreign & Commonwealth Office ,101616-101 ,"2,352.99",
DFID,DFID,04/01/2013,Secure Staff Accommodation ,East and Central Africa ,Foreign & Commonwealth Office ,100218-101 ,"2,352.99",
DFID,DFID,04/01/2013,Computer hardware maintenance ,Business Solutions Division Level ,Rufus Leonard Ltd ,200002-196 ,"2,316.00",
DFID,DFID,04/01/2013,Vehicle Petrol & Oil ,East and Central Africa ,British Embassy ,100082-101 ,"2,241.71",
DFID,DFID,04/01/2013,FCO shared service charges ,International Relations Division ,Foreign & Commonwealth Office ,201711-101 ,"2,124.19",
DFID,DFID,04/01/2013,Secure Staff Accommodation ,East and Central Africa ,Foreign & Commonwealth Office ,200352-101 ,"2,105.31",
DFID,DFID,04/01/2013,Secure Staff Accommodation ,Middle East & North Africa Division (MENAD) ,Foreign & Commonwealth Office ,202887-101 ,"1,870.67",
DFID,DFID,04/01/2013,Aid Programme - Joint programme contribution ,Asia  Caribbean and Overseas Territories ,Foreign & Commonwealth Office ,203478-101 ,"1,801.33",
DFID,DFID,04/01/2013,Technical and Advisory Services ,West and Southern Africa ,Foreign & Commonwealth Office ,104229-101 ,"1,615.71",
DFID,DFID,04/01/2013,Contract & Agency Staff ,Policy Division ,Hays Specialist Recruitment Ltd ,100191-101 ,"1,531.01",
DFID,DFID,04/01/2013,Furniture & Fittings ,East and Central Africa ,Foreign & Commonwealth Office ,101630-101 ,"1,485.67",
DFID,DFID,04/01/2013,Technical and Advisory Services ,Asia  Caribbean and Overseas Territories ,Foreign & Commonwealth Office ,201942-101 ,"1,441.98",
DFID,DFID,04/01/2013,Mobile telephones & accessories ,Middle East & North Africa Division (MENAD) ,Foreign & Commonwealth Office ,201705-101 ,"1,436.99",
DFID,DFID,04/01/2013,Technical and Advisory Services ,Asia  Caribbean and Overseas Territories ,Foreign & Commonwealth Office ,201942-101 ,"1,357.54",
DFID,DFID,04/01/2013,Hotels - Accommodation only ,Asia  Caribbean and Overseas Territories ,Foreign & Commonwealth Office ,201942-101 ,"1,315.71",
DFID,DFID,04/01/2013,Vehicle Petrol & Oil ,East and Central Africa ,British Embassy ,100082-101 ,"1,313.78",
DFID,DFID,04/01/2013,Aid Programme - Joint programme contribution ,Asia  Caribbean and Overseas Territories ,Foreign & Commonwealth Office ,201674-101 ,"1,280.59",
DFID,DFID,04/01/2013,Technical and Advisory Services ,Research and Evidence Division ,Martin Prowse ,201014-102 ,"1,245.00",
DFID,DFID,04/01/2013,Hotels - Accommodation only ,West and Southern Africa ,Supplier Name withheld ,104223-101 ,"1,232.27",
DFID,DFID,04/01/2013,Training - Travel & Subsistence ,Asia  Caribbean and Overseas Territories ,Foreign & Commonwealth Office ,101605-101 ,"1,214.07",
DFID,DFID,04/01/2013,Contract & Agency Staff ,Finance and Corporate Performance Division ,Search Consultancy Ltd ,100201-101 ,"1,200.00",
DFID,DFID,04/01/2013,Air fares ,Asia  Caribbean and Overseas Territories ,Foreign & Commonwealth Office ,201942-101 ,"1,180.92",
DFID,DFID,04/01/2013,Aid Programme - Joint programme contribution ,West and Southern Africa ,Foreign & Commonwealth Office ,202477-106 ,"1,166.40",
DFID,DFID,04/01/2013,Contract & Agency Staff ,Finance and Corporate Performance Division ,Hays Specialist Recruitment Ltd ,100201-101 ,"1,152.00",
DFID,DFID,04/01/2013,Conferences  Seminars & Meeting/Event Resource ,Western Asia and Stabilisation Division ,Foreign & Commonwealth Office ,203350-101 ,"1,134.88",
DFID,DFID,04/01/2013,Repairs  Maint  Alter - Property & Constrct. Services ,East and Central Africa ,Foreign & Commonwealth Office ,100227-101 ,"1,113.66",
DFID,DFID,04/01/2013,Books & Publications ,East and Central Africa ,Foreign & Commonwealth Office ,100227-101 ,988.07,
DFID,DFID,04/01/2013,Furniture & Fittings ,Western Asia and Stabilisation Division ,Foreign & Commonwealth Office ,203336-101 ,942.59,
DFID,DFID,04/01/2013,Travel - Subsistence ,Top Management Group ,Foreign & Commonwealth Office ,100232-102 ,914.76,
DFID,DFID,04/01/2013,Training - Course Fees ,Asia  Caribbean and Overseas Territories ,Foreign & Commonwealth Office ,202403-101 ,891.26,
DFID,DFID,04/01/2013,Recruitment costs ,East and Central Africa ,Harmony  Hotel ,202891-107 ,850.02,
DFID,DFID,04/01/2013,Contract & Agency Staff ,Asia  Caribbean and Overseas Territories ,Hays Specialist Recruitment Ltd ,100084-101 ,790.02,
DFID,DFID,04/01/2013,Other Admin Costs ,Middle East & North Africa Division (MENAD) ,Foreign & Commonwealth Office ,100303-101 ,784.84,
DFID,DFID,04/01/2013,Contract & Agency Staff ,Finance and Corporate Performance Division ,Hays Specialist Recruitment Ltd ,100201-101 ,777.00,
DFID,DFID,04/01/2013,FCO shared service charges ,International Relations Division ,Foreign & Commonwealth Office ,201711-101 ,761.23,
DFID,DFID,04/01/2013,Technical and Advisory Services ,Research and Evidence Division ,CONMARA PARTNERSHIP LTD ,201014-102 ,750.00,
DFID,DFID,04/01/2013,Data Network - land lines ,Business Solutions Division Level ,Foreign & Commonwealth Office ,200002-121 ,698.83,
DFID,DFID,04/01/2013,Training - Travel & Subsistence ,Asia  Caribbean and Overseas Territories ,Foreign & Commonwealth Office ,101605-101 ,694.02,
DFID,DFID,04/01/2013,Repairs  Maint  Alter - Removal & waste disposal services ,East and Central Africa ,Foreign & Commonwealth Office ,101630-101 ,684.57,
DFID,DFID,04/01/2013,Aid Programme - Joint programme contribution ,Asia  Caribbean and Overseas Territories ,Foreign & Commonwealth Office ,203478-101 ,654.97,
DFID,DFID,04/01/2013,Aid Programme - Joint programme contribution ,Asia  Caribbean and Overseas Territories ,Foreign & Commonwealth Office ,203478-101 ,646.13,
DFID,DFID,04/01/2013,Technical and Advisory Services ,Human Resources Security & Facilities Division ,MITIE Technical Facilities Management Ltd ,100187-101 ,639.05,
DFID,DFID,04/01/2013,Training - Travel & Subsistence ,Asia  Caribbean and Overseas Territories ,Foreign & Commonwealth Office ,100033-101 ,629.17,
DFID,DFID,04/01/2013,Contract & Agency Staff ,Asia  Caribbean and Overseas Territories ,Hays Specialist Recruitment Ltd ,100084-101 ,603.96,
DFID,DFID,04/01/2013,Aid Programme - Joint programme contribution ,Asia  Caribbean and Overseas Territories ,Foreign & Commonwealth Office ,203478-101 ,594.22,
DFID,DFID,04/01/2013,Technical and Advisory Services ,Asia  Caribbean and Overseas Territories ,Foreign & Commonwealth Office ,200581-111 ,592.79,
DFID,DFID,04/01/2013,Other rentals ,East and Central Africa ,Adika Tour and Travel PLC ,202913-104 ,586.05,
DFID,DFID,04/01/2013,Vehicle Repairs & Maintenance ,Western Asia and Stabilisation Division ,Foreign & Commonwealth Office ,201699-101 ,572.98,
DFID,DFID,04/01/2013,Air fares ,Middle East & North Africa Division (MENAD) ,Foreign & Commonwealth Office ,201705-101 ,559.96,
DFID,DFID,04/01/2013,Air fares ,Middle East & North Africa Division (MENAD) ,Foreign & Commonwealth Office ,100303-101 ,558.08,
DFID,DFID,04/01/2013,Aid Programme - Joint programme contribution ,Asia  Caribbean and Overseas Territories ,Foreign & Commonwealth Office ,203478-101 ,551.56,
DFID,DFID,04/01/2013,Data network- remote working ,Business Solutions Division Level ,Foreign & Commonwealth Office ,200002-121 ,530.83,
DFID,DFID,04/01/2013,Air fares ,Research and Evidence Division ,Foreign & Commonwealth Office ,202392-109 ,530.45,
DFID,DFID,04/01/2013,Vehicle Repairs & Maintenance ,Middle East & North Africa Division (MENAD) ,Foreign & Commonwealth Office ,100303-101 ,522.90,
DFID,DFID,04/01/2013,Air fares ,Human Resources Security & Facilities Division ,Claudia Nicole Briones ,100269-128 ,510.78,
DFID,DFID,07/01/2013,Encashment of Promissory Notes ,International Finance Division ,International Bank for Reconstruction and Development,200018-103 ,"26,100,000.00",
DFID,DFID,07/01/2013,Aid Programme - Humanitarian Material Relief Assistance and Services ,Western Asia and Stabilisation Division ,International Organization for Migration ,202930-102 ,"2,000,000.00",
DFID,DFID,07/01/2013,Aid Programme - Core contributions ,Conflict Humanitarian and Security Division ,The Centre for Humanitarian Dialogue ,202602-101 ,"800,000.00",
DFID,DFID,07/01/2013,Technical and Advisory Services ,East and Central Africa ,KPMG EAST AFRICA LTD ,200498-101 ,"673,157.00",
DFID,DFID,07/01/2013,Aid Programme - Accountable Grant Payments ,Research and Evidence Division ,OVERSEAS DEVELOPMENT INSTITUTE ,203210-101 ,"665,007.31",
DFID,DFID,07/01/2013,Technical and Advisory Services ,Western Asia and Stabilisation Division ,Supplier Name withheld ,114488-101 ,"322,906.00",
DFID,DFID,07/01/2013,Technical and Advisory Services ,Western Asia and Stabilisation Division ,ADAM SMITH INTERNATIONAL  LTD ,202328-102 ,"293,176.72",
DFID,DFID,07/01/2013,Technical and Advisory Services ,Asia  Caribbean and Overseas Territories ,DELOITTE TOUCHE TOHAMATSU INDIA PRIVATE LTD (DTTIPL) ,108003-101 ,"244,702.00",
DFID,DFID,07/01/2013,Hardware - desktop PCs ,Business Solutions Division Level ,XMA Limited ,200003-154 ,"169,478.40",
DFID,DFID,07/01/2013,Technical and Advisory Services ,Asia  Caribbean and Overseas Territories ,DELOITTE TOUCHE TOHAMATSU INDIA PRIVATE LTD (DTTIPL) ,108003-101 ,"104,030.00",
DFID,DFID,07/01/2013,Computer Software Licenses ,Business Solutions Division Level ,TRUSTMARQUE SOLUTIONS LTD ,200002-102 ,"61,203.00",Annual Software License (inc support and maintenance) for tuning/lifecycle management and partitioning software
DFID,DFID,07/01/2013,Aid Programme - Voluntary contributions ,East and Central Africa ,UNDP CONTRIBUTIONS GBP ,201295-101 ,"50,000.00",
DFID,DFID,07/01/2013,Aid Programme - Accountable Grant Payments ,Research and Evidence Division ,The INTASAVE Partnership ,200529-103 ,"50,000.00",
DFID,DFID,07/01/2013,Data Network - land lines ,Business Solutions Division Level ,Level 3 ,200002-117 ,"61,453.16",Quarterly UK telephone and communication costs (Oct-Dec 2012) 
DFID,DFID,07/01/2013,Technical and Advisory Services ,Policy Division ,PRICEWATERHOUSECOOPERS ,202648-101 ,"43,098.60",
DFID,DFID,07/01/2013,Technical and Advisory Services ,Western Asia and Stabilisation Division ,PRICEWATERHOUSECOOPERS ,202911-101 ,"41,977.67",
DFID,DFID,07/01/2013,Technical and Advisory Services ,Asia  Caribbean and Overseas Territories ,PRICEWATERHOUSECOOPERS DEVELOPMENT ,107949-101 ,"38,715.00",
DFID,DFID,07/01/2013,Technical and Advisory Services ,Asia  Caribbean and Overseas Territories ,PRICEWATERHOUSECOOPERS DEVELOPMENT ,107949-101 ,"38,168.00",
DFID,DFID,07/01/2013,Other Admin Costs ,Middle East & North Africa Division (MENAD) ,Cabinet Office RM Shared Services ,100296-101 ,"89,546.00",DFID contribution to the Iraq Inquiry July - September 2012 
DFID,DFID,07/01/2013,Technical and Advisory Services ,East and Central Africa ,PRICEWATERHOUSECOOPERS ,200250-111 ,"34,540.01",
DFID,DFID,07/01/2013,Hardware -Laptop PCs ,Business Solutions Division Level ,XMA Limited ,200003-154 ,"26,928.00",
DFID,DFID,07/01/2013,Technical and Advisory Services ,Western Asia and Stabilisation Division ,Supplier Name withheld ,201000-102 ,"25,012.37",
DFID,DFID,07/01/2013,Technical and Advisory Services ,East and Central Africa ,PRICEWATERHOUSECOOPERS ,200250-111 ,"24,917.60",
DFID,DFID,07/01/2013,Technical and Advisory Services ,Asia  Caribbean and Overseas Territories ,Foreign & Commonwealth Office ,202832-101 ,"19,540.62",
DFID,DFID,07/01/2013,Research & Development costs ,Research and Evidence Division , Overseas Development Institute ,112079-101 ,"17,949.58",
DFID,DFID,07/01/2013,Computer hardware maintenance ,Business Solutions Division Level ,ATTENDA LIMITED ,200002-196 ,"17,376.48",
DFID,DFID,07/01/2013,Technical and Advisory Services ,East and Central Africa ,PUBLIC ADMINISTRATION INTERN ,200103-101 ,"16,660.68",
DFID,DFID,07/01/2013,Technical and Advisory Services ,East and Central Africa ,RSM Tenon Limited ,103548-101 ,"13,962.83",
DFID,DFID,07/01/2013,Secure Staff Accommodation ,Asia  Caribbean and Overseas Territories ,Foreign & Commonwealth Office ,100033-101 ,"13,219.43",
DFID,DFID,07/01/2013,Technical and Advisory Services ,Asia  Caribbean and Overseas Territories ,PRICEWATERHOUSECOOPERS DEVELOPMENT ,107949-101 ,"13,082.00",
DFID,DFID,07/01/2013,Secure Staff Accommodation ,Conflict Humanitarian and Security Division ,Foreign & Commonwealth Office ,202410-101 ,"11,998.39",
DFID,DFID,07/01/2013,Technical and Advisory Services ,Asia  Caribbean and Overseas Territories ,ASARECA ,202787-103 ,"11,777.30",
DFID,DFID,07/01/2013,Technical and Advisory Services ,East and Central Africa ,PUBLIC ADMINISTRATION INTERN ,200103-101 ,"11,394.12",
DFID,DFID,07/01/2013,Hardware -Laptop PCs ,Business Solutions Division Level ,XMA Limited ,200003-154 ,"10,560.00",
DFID,DFID,07/01/2013,Secure Staff Accommodation ,International Relations Division ,Foreign & Commonwealth Office ,202319-101 ,"9,821.04",
DFID,DFID,07/01/2013,Computer Software Licenses ,Business Solutions Division Level ,TRUSTMARQUE SOLUTIONS LTD ,200002-112 ,"9,771.42",
DFID,DFID,07/01/2013,Technical and Advisory Services ,Middle East & North Africa Division (MENAD) ,Foreign & Commonwealth Office ,114325-101 ,"9,677.62",
DFID,DFID,07/01/2013,Technical and Advisory Services ,Asia  Caribbean and Overseas Territories ,PRICEWATERHOUSECOOPERS DEVELOPMENT ,107949-101 ,"7,975.00",
DFID,DFID,07/01/2013,Data Network - land lines ,Business Solutions Division Level ,VERIZON UK LIMITED ,200002-126 ,"4,372.93",
DFID,DFID,07/01/2013,Aid Programme - Joint programme contribution ,West and Southern Africa ,Foreign & Commonwealth Office ,202477-106 ,"4,311.91",
DFID,DFID,07/01/2013,Secure Staff Accommodation ,International Finance Division ,Foreign & Commonwealth Office ,201723-102 ,"3,866.06",
DFID,DFID,07/01/2013,Secure Staff Accommodation ,Conflict Humanitarian and Security Division ,Foreign & Commonwealth Office ,100049-101 ,"3,741.35",
DFID,DFID,07/01/2013,Secure Staff Accommodation ,International Finance Division ,Foreign & Commonwealth Office ,201723-102 ,"3,738.23",
DFID,DFID,07/01/2013,FCO shared service charges ,International Relations Division ,Foreign & Commonwealth Office ,201711-101 ,"3,175.64",
DFID,DFID,07/01/2013,Other Admin Costs ,West and Southern Africa ,Foreign & Commonwealth Office ,101631-101 ,"3,035.55",
DFID,DFID,07/01/2013,Aid Programme - Joint programme contribution ,International Relations Division ,Foreign & Commonwealth Office ,201399-101 ,"2,819.33",
DFID,DFID,07/01/2013,Air fares ,East and Central Africa ,Recipient name withheld ,101635-101 ,"2,610.51",
DFID,DFID,07/01/2013,Secure Staff Accommodation ,Policy Division ,Foreign & Commonwealth Office ,100191-101 ,"2,431.88",
DFID,DFID,07/01/2013,Subscriptions ,Research and Evidence Division ,SAGE PUBLICATIONS LTD ,202348-103 ,"2,418.36",
DFID,DFID,07/01/2013,Training - Course Fees ,Business Solutions Division Level ,SAPPHIRE TECHNOLOGIES LTD ,200001-101 ,"2,398.00",
DFID,DFID,07/01/2013,Secure Staff Accommodation ,East and Central Africa ,Foreign & Commonwealth Office ,200352-101 ,"2,369.52",
DFID,DFID,07/01/2013,Secure Staff Accommodation ,East and Central Africa ,Foreign & Commonwealth Office ,101616-101 ,"2,140.21",
DFID,DFID,07/01/2013,Secure Staff Accommodation ,East and Central Africa ,Foreign & Commonwealth Office ,200352-101 ,"2,120.10",
DFID,DFID,07/01/2013,Technical and Advisory Services ,Asia  Caribbean and Overseas Territories ,OVERSEAS DEVELOPMENT INSTITUTE ,200581-113 ,"1,993.00",
DFID,DFID,07/01/2013,Vehicle Petrol & Oil ,West and Southern Africa ,British High Commission ,101618-101 ,"1,945.20",
DFID,DFID,07/01/2013,Technical and Advisory Services ,Communications Division ,TRIPLE LINE CONSULTING LTD ,114423-102 ,"1,852.06",
DFID,DFID,07/01/2013,Training - Travel & Subsistence ,Asia  Caribbean and Overseas Territories ,Foreign & Commonwealth Office ,101615-101 ,"1,805.20",
DFID,DFID,07/01/2013,FCO shared service charges ,International Relations Division ,Foreign & Commonwealth Office ,201711-101 ,"1,743.76",
DFID,DFID,07/01/2013,Contract & Agency Staff ,Policy Division ,Hays Specialist Recruitment Ltd ,100191-101 ,"1,701.12",
DFID,DFID,07/01/2013,Training - Travel & Subsistence ,Asia  Caribbean and Overseas Territories ,Foreign & Commonwealth Office ,202403-101 ,"1,608.03",
DFID,DFID,07/01/2013,Electricity ,East and Central Africa ,Foreign & Commonwealth Office ,101633-101 ,"1,579.56",
DFID,DFID,07/01/2013,Technical and Advisory Services ,Communications Division ,TRIPLE LINE CONSULTING LTD ,100229-101 ,"1,518.55",
DFID,DFID,07/01/2013,Technical and Advisory Services ,Policy Division ,Foreign & Commonwealth Office ,201724-124 ,"1,479.61",
DFID,DFID,07/01/2013,Secure Staff Accommodation ,East and Central Africa ,Foreign & Commonwealth Office ,101625-104 ,"1,341.38",
DFID,DFID,07/01/2013,Aid Programme - Programme Contribution ,Asia  Caribbean and Overseas Territories ,Foreign & Commonwealth Office ,203478-101 ,"1,280.60",
DFID,DFID,07/01/2013,Hotels - Accommodation only ,Western Asia and Stabilisation Division ,Foreign & Commonwealth Office ,201699-101 ,"1,178.88",
DFID,DFID,07/01/2013,Contract & Agency Staff ,Finance and Corporate Performance Division ,Hays Specialist Recruitment Ltd ,100201-101 ,"1,130.16",
DFID,DFID,07/01/2013,Contract & Agency Staff ,Finance and Corporate Performance Division ,Hays Specialist Recruitment Ltd ,100201-101 ,"1,130.16",
DFID,DFID,07/01/2013,Technical and Advisory Services ,Asia  Caribbean and Overseas Territories ,Foreign & Commonwealth Office ,201942-101 ,"1,107.47",
DFID,DFID,07/01/2013,Contract & Agency Staff ,Finance and Corporate Performance Division ,Hays Specialist Recruitment Ltd ,100201-101 ,"1,102.50",
DFID,DFID,07/01/2013,Contract & Agency Staff ,Finance and Corporate Performance Division ,Hays Specialist Recruitment Ltd ,100201-101 ,"1,102.50",
DFID,DFID,07/01/2013,Training - Travel & Subsistence ,West and Southern Africa ,British Airways PLC ,100152-101 ,"1,099.62",
DFID,DFID,07/01/2013,Facilities Management payments ,East and Central Africa ,Ikondera Company Ltd ,101628-101 ,"1,091.95",
DFID,DFID,07/01/2013,Contract & Agency Staff ,Internal Audit ,Hays Specialist Recruitment Ltd ,100121-101 ,"1,063.77",
DFID,DFID,07/01/2013,Facilities Management payments ,East and Central Africa ,Ikondera Company Ltd ,101628-101 ,"1,062.66",
DFID,DFID,07/01/2013,Contract & Agency Staff ,Internal Audit ,Hays Specialist Recruitment Ltd ,100121-101 ,"1,006.27",
DFID,DFID,07/01/2013,Air fares ,Asia  Caribbean and Overseas Territories ,Foreign & Commonwealth Office ,201942-101 ,990.52,
DFID,DFID,07/01/2013,Furniture & Fittings ,Middle East & North Africa Division (MENAD) ,Foreign & Commonwealth Office ,201705-101 ,979.21,
DFID,DFID,07/01/2013,Postage Costs ,Human Resources Security & Facilities Division ,Royal Mail Courier Services Ltd ,201157-101 ,900.00,
DFID,DFID,07/01/2013,Training - Travel & Subsistence ,West and Southern Africa ,British Airways PLC ,101622-101 ,896.59,
DFID,DFID,07/01/2013,Contract & Agency Staff ,Finance and Corporate Performance Division ,Hays Specialist Recruitment Ltd ,100201-101 ,882.00,
DFID,DFID,07/01/2013,Travel - Subsistence ,Middle East & North Africa Division (MENAD) ,Recipient name withheld ,100146-101 ,862.88,
DFID,DFID,07/01/2013,Hotels - Accommodation only ,East and Central Africa ,Golden Jubilee Ltd ,101630-101 ,852.57,
DFID,DFID,07/01/2013,Technical and Advisory Services ,Policy Division ,Revenue Watch Institute ,203608-106 ,830.24,
DFID,DFID,07/01/2013,Conferences  Seminars & Meeting/Event Resource ,Asia  Caribbean and Overseas Territories ,Ruposhi Bangla Hotel ,114058-101 ,813.86,
DFID,DFID,07/01/2013,Hostile Environment Training ,Middle East & North Africa Division (MENAD) ,Pilgrims Group ,201701-101 ,802.14,
DFID,DFID,07/01/2013,Hostile Environment Training ,Western Asia and Stabilisation Division ,Supplier Name withheld ,101601-110 ,802.14,
DFID,DFID,07/01/2013,Hostile Environment Training ,Western Asia and Stabilisation Division ,Supplier Name withheld ,101601-110 ,802.14,
DFID,DFID,07/01/2013,Training - Course Fees ,West and Southern Africa ,COMMUNICAID GRP LIMITED ,101610-101 ,796.40,
DFID,DFID,07/01/2013,Vehicle Petrol & Oil ,West and Southern Africa ,British High Commission ,100144-101 ,794.52,
DFID,DFID,07/01/2013,Vehicle Repairs & Maintenance ,Western Asia and Stabilisation Division ,Foreign & Commonwealth Office ,201699-101 ,786.23,
DFID,DFID,07/01/2013,Travel - Subsistence ,International Finance Division ,Foreign & Commonwealth Office ,201723-102 ,766.13,
DFID,DFID,07/01/2013,Hostile Environment Training ,Western Asia and Stabilisation Division ,Supplier Name withheld ,201023-104 ,752.11,
DFID,DFID,07/01/2013,Repairs  Maint  Alter - Property & Constrct. Services ,Western Asia and Stabilisation Division ,Foreign & Commonwealth Office ,100061-101 ,731.43,
DFID,DFID,07/01/2013,Technical and Advisory Services ,Human Resources Security & Facilities Division ,HCR Group Ltd ,100269-161 ,714.00,
DFID,DFID,07/01/2013,Contract & Agency Staff ,Finance and Corporate Performance Division ,Hays Specialist Recruitment Ltd ,100201-101 ,699.30,
DFID,DFID,07/01/2013,Contract Catering Services ,East and Central Africa ,Foreign & Commonwealth Office ,100082-101 ,689.38,
DFID,DFID,07/01/2013,Training - Course Fees ,Finance and Corporate Performance Division ,Recipient name withheld ,202836-102 ,612.50,
DFID,DFID,07/01/2013,Hotels - Accommodation only ,Asia  Caribbean and Overseas Territories ,Foreign & Commonwealth Office ,101605-101 ,601.95,
DFID,DFID,07/01/2013,Technical and Advisory Services ,Middle East & North Africa Division (MENAD) ,Foreign & Commonwealth Office ,114325-101 ,597.08,
DFID,DFID,07/01/2013,Hotels - Accommodation only ,East and Central Africa ,Recipient name withheld ,101625-104 ,594.12,
DFID,DFID,07/01/2013,Hostile Environment Training ,East and Central Africa ,Pilgrims Group ,202586-101 ,580.97,
DFID,DFID,07/01/2013,Training - Travel & Subsistence ,West and Southern Africa ,Recipient name withheld ,101622-101 ,558.30,
DFID,DFID,07/01/2013,Repairs  Maint  Alter - Property & Constrct. Services ,West and Southern Africa ,Foreign & Commonwealth Office ,101638-103 ,557.46,
DFID,DFID,07/01/2013,Facilities Management payments ,East and Central Africa ,Ikondera Company Ltd ,100212-101 ,545.98,
DFID,DFID,07/01/2013,Technical and Advisory Services ,International Relations Division ,Foreign & Commonwealth Office ,201711-101 ,542.48,
DFID,DFID,07/01/2013,Building Plant - Air Conditioners ,Asia  Caribbean and Overseas Territories ,Haroon Engineering Limited ,100025-101 ,537.96,
DFID,DFID,07/01/2013,Electricity ,East and Central Africa ,Foreign & Commonwealth Office ,100227-101 ,526.52,
DFID,DFID,07/01/2013,Contract & Agency Staff ,Human Resources Security & Facilities Division ,Anderson Knight Ltd ,100270-102 ,525.61,
DFID,DFID,07/01/2013,Training - Travel & Subsistence ,Asia  Caribbean and Overseas Territories ,Foreign & Commonwealth Office ,101604-101 ,523.86,
DFID,DFID,07/01/2013,Contract & Agency Staff ,Human Resources Security & Facilities Division ,MARGARET HODGE RECRUITMENT LTD ,100266-109 ,520.86,
DFID,DFID,07/01/2013,Contract Catering Services ,Middle East & North Africa Division (MENAD) ,Foreign & Commonwealth Office ,100146-101 ,510.19,
DFID,DFID,07/01/2013,Operating Lease rental of buildings ,West and Southern Africa ,Mrs Slater Deidre ,101638-103 ,"3,775.63",
DFID,DFID,08/01/2013,Encashment of Promissory Notes ,International Finance Division ,International Bank for Reconstruction and Development,202969-102 ,"81,917,500.00",
DFID,DFID,08/01/2013,Encashment of Promissory Notes ,International Finance Division ,International Bank for Reconstruction and Development,200269-104 ,"74,690,000.00",
DFID,DFID,08/01/2013,Aid Programme - Other Financial Aid to Government ,Asia  Caribbean and Overseas Territories , The Government of India ,114040-102 ,"2,431,346.00",
DFID,DFID,08/01/2013,Aid Programme - Partnership Programme Arrangements ,Policy Division ,WWF-UK ,202661-101 ,"772,589.00",
DFID,DFID,08/01/2013,Aid Programme - Accountable Grant Payments ,West and Southern Africa ,Population Council ,202344-102 ,"474,431.00",
DFID,DFID,08/01/2013,Aid Programme - Humanitarian Material Relief Assistance and Services ,Conflict Humanitarian and Security Division ,Pan American Health Organisation ,203755-102 ,"453,680.00",
DFID,DFID,08/01/2013,Technical and Advisory Services ,West and Southern Africa ,HEALTH PARTNERS INTERNATIONAL ,104227-102 ,"418,177.57",
DFID,DFID,08/01/2013,Technical and Advisory Services ,West and Southern Africa ,ADAM SMITH INTERNATIONAL ,201139-101 ,"411,349.85",
DFID,DFID,08/01/2013,Aid Programme - Core contributions ,Research and Evidence Division ,Institute for OneWorld Health ,201369-101 ,"400,000.00",
DFID,DFID,08/01/2013,Technical and Advisory Services ,West and Southern Africa ,HEALTH PARTNERS INTERNATIONAL ,202694-101 ,"343,093.29",
DFID,DFID,08/01/2013,Technical and Advisory Services ,West and Southern Africa ,DAI EUROPE LIMITED ,113961-104 ,"328,091.80",
DFID,DFID,08/01/2013,Research & Development costs ,Research and Evidence Division ,Crown Agents Bank ,114010-102 ,"299,673.36",
DFID,DFID,08/01/2013,Technical and Advisory Services ,Western Asia and Stabilisation Division ,DAI Europe ,114433-102 ,"297,003.03",
DFID,DFID,08/01/2013,Technical and Advisory Services ,Research and Evidence Division ,IBRD (HSBC)  C/O THE WORLD BANK ,203704-101 ,"160,000.00",
DFID,DFID,08/01/2013,Aid Programme - Accountable Grant Payments ,Western Asia and Stabilisation Division ,FOCUS HUMANITARIAN ASSISTANCE ,200873-102 ,"140,637.58",
DFID,DFID,08/01/2013,Technical and Advisory Services ,International Finance Division ,Nathan Associates London Ltd ,114009-102 ,"124,484.53",
DFID,DFID,08/01/2013,Technical and Advisory Services ,Communications Division ,Ecorys UK Ltd ,202883-102 ,"110,000.00",
DFID,DFID,08/01/2013,Research & Development costs ,West and Southern Africa ,HEALTH PARTNERS INTERNATIONAL ,200497-102 ,"107,653.50",
DFID,DFID,08/01/2013,Aid Programme - Accountable Grant Payments ,Research and Evidence Division ,Population Council ,202344-105 ,"89,615.00",
DFID,DFID,08/01/2013,Hardware -Laptop PCs ,Business Solutions Division Level ,XMA Limited ,200003-154 ,"84,480.00",
DFID,DFID,08/01/2013,Hardware -Laptop PCs ,Business Solutions Division Level ,XMA Limited ,200003-154 ,"84,480.00",
DFID,DFID,08/01/2013,Hardware -Laptop PCs ,Business Solutions Division Level ,XMA Limited ,200003-154 ,"84,480.00",
DFID,DFID,08/01/2013,Technical and Advisory Services ,Western Asia and Stabilisation Division ,Supplier Name withheld ,202733-101 ,"75,539.29",
DFID,DFID,08/01/2013,Technical and Advisory Services ,Western Asia and Stabilisation Division ,Supplier Name withheld ,202733-101 ,"75,539.29",
DFID,DFID,08/01/2013,Hostile Environment Training ,Western Asia and Stabilisation Division ,GroundTruth Consulting ,202288-102 ,"41,432.75",Hostile Environment Awareness Training Courses Nov 2012 
DFID,DFID,08/01/2013,Hostile Environment Training ,Western Asia and Stabilisation Division ,GroundTruth Consulting ,202288-102 ,"47,215.00",Hostile Environment Awareness Training Courses Nov 2012 
DFID,DFID,08/01/2013,Technical and Advisory Services ,Research and Evidence Division ,CAB INTERNATIONAL ,112152-101 ,"59,833.72",
DFID,DFID,08/01/2013,Technical and Advisory Services ,Western Asia and Stabilisation Division ,DAI EUROPE LIMITED ,202233-103 ,"53,074.00",
DFID,DFID,08/01/2013,Technical and Advisory Services ,Policy Division ,COFFEY INTERNATIONAL DEVELOPMENT LTD ,202372-104 ,"51,684.56",
DFID,DFID,08/01/2013,Aid Programme - Other Financial Aid to Government ,West and Southern Africa ,Reserve Bank of Malawi ,202524-101 ,"43,869.00",
DFID,DFID,08/01/2013,Technical and Advisory Services ,West and Southern Africa ,IOD PARC ,202344-103 ,"39,777.98",
DFID,DFID,08/01/2013,Technical and Advisory Services ,Western Asia and Stabilisation Division ,Supplier Name withheld ,202733-101 ,"37,769.65",
DFID,DFID,08/01/2013,Hardware -Laptop PCs ,Business Solutions Division Level ,XMA Limited ,200003-154 ,"36,960.00",
DFID,DFID,08/01/2013,Aid Programme - Accountable Grant Payments ,Asia  Caribbean and Overseas Territories ,Absolute Return for Kids (ARK) ,114487-106 ,"33,672.00",
DFID,DFID,08/01/2013,Technical and Advisory Services ,Western Asia and Stabilisation Division ,Supplier Name withheld ,201630-103 ,"31,668.68",
DFID,DFID,08/01/2013,Aid Programme - Accountable Grant Payments ,Conflict Humanitarian and Security Division ,UK-Med ,202878-102 ,"29,909.25",
DFID,DFID,08/01/2013,Technical and Advisory Services ,Western Asia and Stabilisation Division ,DAI EUROPE LIMITED ,202261-101 ,"25,584.58",
DFID,DFID,08/01/2013,Technical and Advisory Services ,Western Asia and Stabilisation Division ,DAI EUROPE LIMITED ,202233-102 ,"25,584.56",
DFID,DFID,08/01/2013,Technical and Advisory Services ,Asia  Caribbean and Overseas Territories ,OXFORD CONSULTING PARTNERS ,203282-103 ,"25,583.04",
DFID,DFID,08/01/2013,Technical and Advisory Services ,East and Central Africa ,COFFEY INTERNATIONAL DEVELOPMENT LTD ,202527-110 ,"23,881.06",
DFID,DFID,08/01/2013,Technical and Advisory Services ,Research and Evidence Division ,CfBT ,201325-101 ,"22,780.00",
DFID,DFID,08/01/2013,Aid Programme - Accountable Grant Payments ,Research and Evidence Division ,WELLCOME TRUST ,113487-102 ,"21,632.15",
DFID,DFID,08/01/2013,Research & Development costs ,Research and Evidence Division ,INSTITUTE OF DEVELOPMENT STUDIES ,201097-102 ,"21,573.00",
DFID,DFID,08/01/2013,Research & Development costs ,Research and Evidence Division ,INSTITUTE OF DEVELOPMENT STUDIES ,201097-101 ,"21,573.00",
DFID,DFID,08/01/2013,Research & Development costs ,Research and Evidence Division , Overseas Development Institute ,203659-101 ,"19,500.00",
DFID,DFID,08/01/2013,Technical and Advisory Services ,East and Central Africa ,HLSP LIMITED ,113303-112 ,"18,801.97",
DFID,DFID,08/01/2013,Technical and Advisory Services ,Policy Division ,SJ Berwin ,201733-114 ,"18,146.28",
DFID,DFID,08/01/2013,Technical and Advisory Services ,Western Asia and Stabilisation Division ,DAI EUROPE LIMITED ,202261-102 ,"14,385.00",
DFID,DFID,08/01/2013,Technical and Advisory Services ,Western Asia and Stabilisation Division ,Ernst & Young Ford Rhodes Sidat  Hyder ,113624-103 ,"9,462.83",
DFID,DFID,08/01/2013,Technical and Advisory Services ,Asia  Caribbean and Overseas Territories ,GHK CONSULTING LTD ,108027-101 ,"7,741.43",
DFID,DFID,08/01/2013,Hardware - desktop PCs ,Business Solutions Division Level ,XMA Limited ,200003-154 ,"7,061.60",
DFID,DFID,08/01/2013,Repairs  Maint  Alter - Property & Constrct. Services ,East and Central Africa ,DMS AFRICA ,202594-101 ,"7,004.00",
DFID,DFID,08/01/2013,Technical and Advisory Services ,International Finance Division ,HEALTH PARTNERS INTERNATIONAL ,201101-102 ,"6,559.96",
DFID,DFID,08/01/2013,Technical and Advisory Services ,Western Asia and Stabilisation Division ,Supplier Name withheld ,202733-101 ,"6,146.43",
DFID,DFID,08/01/2013,Training - Travel & Subsistence ,Human Resources Security & Facilities Division ,CAPITA LEARNING &DEVELOPMENT ,100269-153 ,"5,818.00",
DFID,DFID,08/01/2013,Technical and Advisory Services ,West and Southern Africa ,Charles Kendall & Partners ,202214-103 ,"5,780.27",
DFID,DFID,08/01/2013,Technical and Advisory Services ,Asia  Caribbean and Overseas Territories ,Christopher Godwin ,202787-103 ,"5,250.00",
DFID,DFID,08/01/2013,Training - Course Fees ,Human Resources Security & Facilities Division ,CAPITA LEARNING &DEVELOPMENT ,100269-153 ,"5,128.56",
DFID,DFID,08/01/2013,Training - Course Fees ,Human Resources Security & Facilities Division ,CAPITA LEARNING &DEVELOPMENT ,100269-153 ,"5,128.53",
DFID,DFID,08/01/2013,Training - Course Fees ,Human Resources Security & Facilities Division ,CAPITA LEARNING &DEVELOPMENT ,100269-153 ,"5,128.52",
DFID,DFID,08/01/2013,Data Network - land lines ,Business Solutions Division Level ,Level 3 ,200002-117 ,"4,810.22",
DFID,DFID,08/01/2013,Secure Staff Accommodation ,West and Southern Africa ,Supplier Name withheld ,101638-103 ,"4,074.07",
DFID,DFID,08/01/2013,Training - Course Fees ,Human Resources Security & Facilities Division ,CAPITA LEARNING &DEVELOPMENT ,100269-153 ,"3,876.06",
DFID,DFID,08/01/2013,Data Network - land lines ,Business Solutions Division Level ,Level 3 ,200002-117 ,"3,729.07",
DFID,DFID,08/01/2013,Air fares ,East and Central Africa ,WFP Somalia ,101630-101 ,"3,549.78",
DFID,DFID,08/01/2013,Training - Travel & Subsistence ,Human Resources Security & Facilities Division ,CAPITA LEARNING &DEVELOPMENT ,100269-153 ,"2,989.21",
DFID,DFID,08/01/2013,Technical and Advisory Services ,Asia  Caribbean and Overseas Territories , International Development UEA ,200581-113 ,"2,826.86",
DFID,DFID,08/01/2013,Secure Staff Accommodation ,Asia  Caribbean and Overseas Territories ,Supplier Name withheld ,101621-103 ,"2,821.32",
DFID,DFID,08/01/2013,Secure Staff Accommodation ,Asia  Caribbean and Overseas Territories ,Supplier Name withheld ,101621-103 ,"2,821.32",
DFID,DFID,08/01/2013,Secure Staff Accommodation ,Asia  Caribbean and Overseas Territories ,Supplier Name withheld ,101621-103 ,"2,612.33",
DFID,DFID,08/01/2013,Secure Staff Accommodation ,Asia  Caribbean and Overseas Territories ,Supplier Name withheld ,200609-103 ,"2,612.33",
DFID,DFID,08/01/2013,Secure Staff Accommodation ,Asia  Caribbean and Overseas Territories ,Supplier Name withheld ,101621-103 ,"2,507.84",
DFID,DFID,08/01/2013,Secure Staff Accommodation ,Asia  Caribbean and Overseas Territories ,Supplier Name withheld ,101621-103 ,"2,507.84",
DFID,DFID,08/01/2013,Secure Staff Accommodation ,Asia  Caribbean and Overseas Territories ,Supplier Name withheld ,101621-103 ,"2,507.84",
DFID,DFID,08/01/2013,Secure Staff Accommodation ,Asia  Caribbean and Overseas Territories ,Supplier Name withheld ,101621-103 ,"2,403.34",
DFID,DFID,08/01/2013,Electricity ,East and Central Africa ,Tanzania Electric supply company Ltd ,101634-101 ,"2,402.27",
DFID,DFID,08/01/2013,Technical and Advisory Services ,East and Central Africa ,ATOS CONSULTING LIMITED ,202327-101 ,"2,340.00",
DFID,DFID,08/01/2013,Technical and Advisory Services ,East and Central Africa ,Rugemeleza Albert Kamuhabwa Nshala ,203459-106 ,"2,149.28",
DFID,DFID,08/01/2013,Secure Staff Accommodation ,Asia  Caribbean and Overseas Territories ,Supplier Name withheld ,101621-103 ,"2,089.86",
DFID,DFID,08/01/2013,Storage & Distribution costs ,Human Resources Security & Facilities Division ,PICKFORDS LTD ,203717-101 ,"1,964.29",
DFID,DFID,08/01/2013,Secure Staff Accommodation ,Asia  Caribbean and Overseas Territories ,Supplier Name withheld ,200773-104 ,"1,891.49",
DFID,DFID,08/01/2013,Contract & Agency Staff ,International Finance Division ,Hays Specialist Recruitment Ltd ,100120-101 ,"1,792.80",
DFID,DFID,08/01/2013,Repairs  Maint  Alter - Property & Constrct. Services ,East and Central Africa ,DMS AFRICA ,202586-101 ,"1,751.00",
DFID,DFID,08/01/2013,Secure Staff Accommodation ,Asia  Caribbean and Overseas Territories ,Supplier Name withheld ,101621-103 ,"1,734.59",
DFID,DFID,08/01/2013,Secure Staff Accommodation ,Asia  Caribbean and Overseas Territories ,Supplier Name withheld ,101621-103 ,"1,671.89",
DFID,DFID,08/01/2013,Secure Staff Accommodation ,Asia  Caribbean and Overseas Territories ,Supplier Name withheld ,101621-103 ,"1,609.20",
DFID,DFID,08/01/2013,Secure Staff Accommodation ,Asia  Caribbean and Overseas Territories ,Supplier Name withheld ,101621-103 ,"1,567.40",
DFID,DFID,08/01/2013,Secure Staff Accommodation ,Asia  Caribbean and Overseas Territories ,Supplier Name withheld ,101621-103 ,"1,442.01",
DFID,DFID,08/01/2013,Contract & Agency Staff ,Policy Division ,Hays Specialist Recruitment Ltd ,100191-101 ,"1,424.69",
DFID,DFID,08/01/2013,Facilities Management payments ,East and Central Africa ,Central Highway Contractors Ltd ,101634-101 ,"1,409.40",
DFID,DFID,08/01/2013,Air fares ,East and Central Africa ,Bon Voyage Travel Centre Ltd(USD) ,202593-101 ,"1,384.09",
DFID,DFID,08/01/2013,Technical and Advisory Services ,International Relations Division ,ART OF LIVING ,202319-101 ,"1,286.24",
DFID,DFID,08/01/2013,Air fares ,East and Central Africa ,Bon Voyage Travel Centre Ltd(USD) ,202593-101 ,"1,244.56",
DFID,DFID,08/01/2013,Hostile Environment Training ,Research and Evidence Division ,Pilgrims Group ,100088-101 ,"1,232.57",
DFID,DFID,08/01/2013,Contract & Agency Staff ,Finance and Corporate Performance Division ,Hays Specialist Recruitment Ltd ,100201-101 ,"1,152.00",
DFID,DFID,08/01/2013,Secure Staff Accommodation ,Asia  Caribbean and Overseas Territories ,Supplier Name withheld ,101621-103 ,"1,105.54",
DFID,DFID,08/01/2013,Aid Programme - Accountable Grant Payments ,Research and Evidence Division ,WELLCOME TRUST ,113487-102 ,"1,085.06",
DFID,DFID,08/01/2013,Hostile Environment Training ,Middle East & North Africa Division (MENAD) ,Pilgrims Group ,101619-101 ,"1,027.14",
DFID,DFID,08/01/2013,Technical and Advisory Services ,Asia  Caribbean and Overseas Territories ,HTSPE LTD ,201129-104 ,992.00,
DFID,DFID,08/01/2013,Contract & Agency Staff ,Finance and Corporate Performance Division ,Hays Specialist Recruitment Ltd ,100201-101 ,988.92,
DFID,DFID,08/01/2013,Conferences  Seminars & Meeting/Event Resource ,East and Central Africa ,Sheraton Hotel ,100234-101 ,982.96,
DFID,DFID,08/01/2013,Repairs  Maint  Alter - Property & Constrct. Services ,East and Central Africa ,SAFECON Electro Mechanical Works PLC ,101612-101 ,962.89,
DFID,DFID,08/01/2013,Hotels - Accommodation only ,West and Southern Africa ,Recipient name withheld ,101637-101 ,956.52,
DFID,DFID,08/01/2013,Hostile Environment Training ,Asia  Caribbean and Overseas Territories ,Pilgrims Group ,101604-101 ,854.14,
DFID,DFID,08/01/2013,Hotels - Accommodation only ,East and Central Africa ,Harmony  Hotel ,100082-101 ,846.76,
DFID,DFID,08/01/2013,Hotels - Accommodation only ,East and Central Africa ,Golden Jubilee Ltd ,101630-101 ,844.73,
DFID,DFID,08/01/2013,Hostile Environment Training ,Asia  Caribbean and Overseas Territories ,Pilgrims Group ,101604-101 ,756.19,
DFID,DFID,08/01/2013,Water charges ,West and Southern Africa ,Komawara ,101638-103 ,753.09,
DFID,DFID,08/01/2013,Office Equipment - Maintenance ,East and Central Africa ,CANOCITY ,101634-101 ,752.96,
DFID,DFID,08/01/2013,Research & Development costs ,Research and Evidence Division ,CRANFIELD UNIVERSITY ,201642-101 ,750.00,
DFID,DFID,08/01/2013,Secure Staff Accommodation ,West and Southern Africa ,Supplier Name withheld ,101638-103 ,740.74,
DFID,DFID,08/01/2013,Uniforms ,Asia  Caribbean and Overseas Territories ,Maheshwari Traders ,100150-103 ,728.77,
DFID,DFID,08/01/2013,Hotels - Accommodation only ,Policy Division ,Recipient name withheld ,200659-115 ,684.45,
DFID,DFID,08/01/2013,Storage & Distribution costs ,Human Resources Security & Facilities Division ,PICKFORDS LTD ,203717-101 ,642.14,
DFID,DFID,08/01/2013,Storage & Distribution costs ,Human Resources Security & Facilities Division ,PICKFORDS LTD ,203717-101 ,621.43,
DFID,DFID,08/01/2013,Facilities Management payments ,East and Central Africa ,Dream Clean Limited ,101635-101 ,602.42,
DFID,DFID,08/01/2013,Hostile Environment Training ,East and Central Africa ,Pilgrims Group ,202594-101 ,580.97,
DFID,DFID,08/01/2013,Subscriptions ,West and Southern Africa ,Munn Marketing ,101638-105 ,576.16,
DFID,DFID,08/01/2013,Printer Consumables ,Asia  Caribbean and Overseas Territories ,Kasthamandap Asia International ,101621-103 ,575.97,
DFID,DFID,08/01/2013,Electricity ,West and Southern Africa ,Power Holding co of Nigeria ,101622-101 ,572.63,
DFID,DFID,08/01/2013,Hotels - Accommodation only ,Policy Division ,Recipient name withheld ,202373-104 ,527.28,
DFID,DFID,08/01/2013,Training - Travel & Subsistence ,Asia  Caribbean and Overseas Territories ,Recipient name withheld ,101636-101 ,526.54,
DFID,DFID,08/01/2013,Technical and Advisory Services ,Research and Evidence Division ,RICK DAVIES ,201014-102 ,720.00,
DFID,DFID,09/01/2013,Technical and Advisory Services ,Asia  Caribbean and Overseas Territories ,GARTH ARMSTRONG ,202083-102 ,"6,981.68",
DFID,DFID,09/01/2013,Aid Programme - Core contributions ,Research and Evidence Division ,INTERNATIONAL AIDS VACCINE INITIATIV ,114405-101 ,"5,000,000.00",
DFID,DFID,09/01/2013,Aid Programme - Core contributions ,Research and Evidence Division ,International Partnership for Microbicides ,114398-102 ,"2,500,000.00",
DFID,DFID,09/01/2013,Aid Programme - Partnership Programme Arrangements ,Policy Division ,PLAN INTERNATIONAL UK ,202755-101 ,"1,025,263.75",
DFID,DFID,09/01/2013,Aid Programme - Core contributions ,Research and Evidence Division ,WHO (GENEVA) ,114366-101 ,"1,000,000.00",
DFID,DFID,09/01/2013,Aid Programme - Accountable Grant Payments ,International Finance Division ,Water & Sanitation for the Urban Poor ,203583-101 ,"955,500.00",
DFID,DFID,09/01/2013,Aid Programme - Partnership Programme Arrangements ,Policy Division ,The Global Alliance for Improved Nutrition ,202780-101 ,"787,449.00",
DFID,DFID,09/01/2013,Aid Programme - Voluntary contributions ,East and Central Africa ,UNOPS ,201622-101 ,"550,231.00",
DFID,DFID,09/01/2013,Technical and Advisory Services ,Western Asia and Stabilisation Division ,Supplier Name withheld ,202109-102 ,"529,971.17",
DFID,DFID,09/01/2013,Technical and Advisory Services ,Western Asia and Stabilisation Division ,Supplier Name withheld ,202109-102 ,"418,669.43",
DFID,DFID,09/01/2013,Aid Programme - Partnership Programme Arrangements ,Policy Division ,ACTION ON DISABILITY AND DE ,202561-101 ,"283,456.25",
DFID,DFID,09/01/2013,Technical and Advisory Services ,West and Southern Africa ,DAI Europe ,201958-102 ,"195,081.90",
DFID,DFID,09/01/2013,Aid Programme - Voluntary contributions ,Asia  Caribbean and Overseas Territories ,CARICOM SECRETARIAT ,203353-101 ,"132,517.00",
DFID,DFID,09/01/2013,Aid Programme - Accountable Grant Payments ,Asia  Caribbean and Overseas Territories ,INTERNATIONAL RESCUE COMMITTEE UK ,114532-102 ,"89,459.00",
DFID,DFID,09/01/2013,Technical and Advisory Services ,Western Asia and Stabilisation Division ,Supplier Name withheld ,201000-102 ,"82,796.60",
DFID,DFID,09/01/2013,Technical and Advisory Services ,Asia  Caribbean and Overseas Territories ,IMC Worldwide Ltd ,202433-106 ,"74,398.55",
DFID,DFID,09/01/2013,Aid Programme - Accountable Grant Payments ,Policy Division ,BOND ,202907-101 ,"47,955.00",
DFID,DFID,09/01/2013,Technical and Advisory Services ,Asia  Caribbean and Overseas Territories ,IMC Worldwide Ltd ,113537-101 ,"46,659.86",
DFID,DFID,09/01/2013,Technical and Advisory Services ,Joint Trade Policy Division ,COFFEY INTERNATIONAL DEVELOPMENT LTD ,203535-101 ,"43,357.00",
DFID,DFID,09/01/2013,Technical and Advisory Services ,Human Resources Security & Facilities Division ,TURNER & TOWNSEND ,203716-101 ,"40,905.20",
DFID,DFID,09/01/2013,Aid Programme - Accountable Grant Payments ,Asia  Caribbean and Overseas Territories ,Institute of Public Policy  Beaconhouse National University ,203035-101 ,"40,038.00",
DFID,DFID,09/01/2013,Aid Programme - Accountable Grant Payments ,Communications Division ,Retrak ,202197-101 ,"40,000.00",
DFID,DFID,09/01/2013,Computer Software Licenses ,Business Solutions Division Level ,EQUANET LTD ,200003-154 ,"39,297.60",
DFID,DFID,09/01/2013,Technical and Advisory Services ,Asia  Caribbean and Overseas Territories ,IMC Worldwide Ltd ,113537-103 ,"37,695.98",
DFID,DFID,09/01/2013,Technical and Advisory Services ,Asia  Caribbean and Overseas Territories ,TURNER & TOWNSEND ,201652-105 ,"34,418.05",
DFID,DFID,09/01/2013,Aid Programme - Accountable Grant Payments ,Communications Division ,UNIVERSITY OF LONDON INSTIT ,201203-101 ,"26,221.62",
DFID,DFID,09/01/2013,Technical and Advisory Services ,Western Asia and Stabilisation Division ,Supplier Name withheld ,203629-101 ,"18,645.12",
DFID,DFID,09/01/2013,Technical and Advisory Services ,East and Central Africa ,COFFEY INTERNATIONAL DEVELOPMENT LTD ,202610-101 ,"17,828.22",
DFID,DFID,09/01/2013,Technical and Advisory Services ,West and Southern Africa ,Charles Kendall & Partners ,202214-103 ,"14,746.02",
DFID,DFID,09/01/2013,Secure Staff Accommodation ,East and Central Africa ,Supplier Name withheld ,101634-101 ,"13,067.83",
DFID,DFID,09/01/2013,Technical and Advisory Services ,Asia  Caribbean and Overseas Territories ,Foreign & Commonwealth Office ,202083-101 ,"12,437.57",
DFID,DFID,09/01/2013,Technical and Advisory Services ,Western Asia and Stabilisation Division ,MARK MCGIVERN ,201699-101 ,"7,700.00",
DFID,DFID,09/01/2013,FCO shared service charges ,East and Central Africa ,JMC Umoja House ,101634-101 ,"7,457.37",
DFID,DFID,09/01/2013,Storage & Distribution costs ,Business Solutions Division Level ,TNT Express (UK) Ltd ,200001-101 ,"5,501.32",
DFID,DFID,09/01/2013,Research & Development costs ,Research and Evidence Division ,Courtenay Cabto Venton GBP ,203750-101 ,"4,500.00",
DFID,DFID,09/01/2013,Air fares ,Top Management Group ,Corporate Travel Provider ,100232-105 ,"3,509.89",
DFID,DFID,09/01/2013,Electricity ,Asia  Caribbean and Overseas Territories ,BSES RAJDHANI POWER LIMITED ,201689-105 ,"3,441.83",
DFID,DFID,09/01/2013,Telephone Usage & services ,Business Solutions Division Level ,BT BACS PAYMENTS ,200002-130 ,"3,183.89",
DFID,DFID,09/01/2013,Air fares ,Top Management Group ,Corporate Travel Provider ,100232-108 ,"2,963.15",
DFID,DFID,09/01/2013,Air fares ,Top Management Group ,Corporate Travel Provider ,100232-104 ,"2,902.85",
DFID,DFID,09/01/2013,Air fares ,Asia  Caribbean and Overseas Territories ,KUONI BUSINESS TRAVEL INDIA PVT LTD ,201689-101 ,"2,895.22",
DFID,DFID,09/01/2013,Hotels - Accommodation only ,Internal Audit ,Corporate Travel Provider ,100121-101 ,"2,861.18",
DFID,DFID,09/01/2013,Hotels - Accommodation only ,Internal Audit ,Corporate Travel Provider ,100121-101 ,"2,861.18",
DFID,DFID,09/01/2013,Air fares ,Asia  Caribbean and Overseas Territories ,KUONI BUSINESS TRAVEL INDIA PVT LTD ,201689-101 ,"2,558.11",
DFID,DFID,09/01/2013,Air fares ,Top Management Group ,Corporate Travel Provider ,100232-104 ,"2,471.35",
DFID,DFID,09/01/2013,Air fares ,Western Asia and Stabilisation Division ,Corporate Travel Provider ,101624-101 ,"2,447.49",
DFID,DFID,09/01/2013,Technical and Advisory Services ,Communications Division ,Digital My Way ,100154-101 ,"2,437.50",
DFID,DFID,09/01/2013,Air fares ,Western Asia and Stabilisation Division ,Corporate Travel Provider ,101601-110 ,"2,418.98",
DFID,DFID,09/01/2013,Air fares ,Western Asia and Stabilisation Division ,Corporate Travel Provider ,101601-110 ,"2,204.14",
DFID,DFID,09/01/2013,FCO shared service charges ,East and Central Africa ,JMC Umoja House ,100230-101 ,"2,090.85",
DFID,DFID,09/01/2013,Air fares ,Western Asia and Stabilisation Division ,Corporate Travel Provider ,101624-101 ,"1,978.33",
DFID,DFID,09/01/2013,Repairs  Maint  Alter - Property & Constrct. Services ,Asia  Caribbean and Overseas Territories ,R M B Engineers and Builders Pvt Ltd ,101621-103 ,"1,848.01",
DFID,DFID,09/01/2013,Hotels - Accommodation only ,West and Southern Africa ,Supplier Name withheld ,101622-101 ,"1,728.03",
DFID,DFID,09/01/2013,Air fares ,West and Southern Africa ,Supplier Name withheld ,101622-101 ,"1,692.19",
DFID,DFID,09/01/2013,Training Providers/Facilitation Services ,Business Solutions Division Level ,Emergn ,200001-101 ,"1,648.33",
DFID,DFID,09/01/2013,Air fares ,Western Asia and Stabilisation Division ,Corporate Travel Provider ,101601-110 ,"1,590.77",
DFID,DFID,09/01/2013,Contract & Agency Staff ,Finance and Corporate Performance Division ,Hays Specialist Recruitment Ltd ,202836-101 ,"1,551.34",
DFID,DFID,09/01/2013,Air fares ,Research and Evidence Division ,Corporate Travel Provider ,100039-108 ,"1,536.69",
DFID,DFID,09/01/2013,Contract & Agency Staff ,Finance and Corporate Performance Division ,MICHAEL PAGE INTERNATIONAL RECRUITMENT LIMITED ,100201-101 ,"1,513.32",
DFID,DFID,09/01/2013,Contract & Agency Staff ,Finance and Corporate Performance Division ,MICHAEL PAGE INTERNATIONAL RECRUITMENT LIMITED ,100201-101 ,"1,513.32",
DFID,DFID,09/01/2013,Air fares ,Asia  Caribbean and Overseas Territories ,KUONI BUSINESS TRAVEL INDIA PVT LTD ,201689-101 ,"1,374.18",
DFID,DFID,09/01/2013,Mobile telephones & accessories ,West and Southern Africa ,MCell ,101620-101 ,"1,366.69",
DFID,DFID,09/01/2013,Air fares ,West and Southern Africa ,Corporate Travel Provider ,101629-101 ,"1,328.49",
DFID,DFID,09/01/2013,Air fares ,Internal Audit ,Corporate Travel Provider ,100121-101 ,"1,310.36",
DFID,DFID,09/01/2013,Air fares ,East and Central Africa ,Corporate Travel Provider ,101625-104 ,"1,252.99",
DFID,DFID,09/01/2013,Air fares ,Western Asia and Stabilisation Division ,Corporate Travel Provider ,101601-110 ,"1,224.30",
DFID,DFID,09/01/2013,Hotels - Accommodation only ,East and Central Africa ,Corporate Travel Provider ,101612-101 ,"1,201.80",
DFID,DFID,09/01/2013,Contract & Agency Staff ,Finance and Corporate Performance Division ,Search Consultancy Ltd ,100201-101 ,"1,200.00",
DFID,DFID,09/01/2013,Contract & Agency Staff ,Finance and Corporate Performance Division ,Search Consultancy Ltd ,100201-101 ,"1,200.00",
DFID,DFID,09/01/2013,Hotels - Accommodation only ,Middle East & North Africa Division (MENAD) ,Corporate Travel Provider ,201705-101 ,"1,170.48",
DFID,DFID,09/01/2013,Air fares ,Research and Evidence Division ,Corporate Travel Provider ,202392-103 ,"1,167.46",
DFID,DFID,09/01/2013,Air fares ,International Relations Division ,Corporate Travel Provider ,100240-102 ,"1,167.36",
DFID,DFID,09/01/2013,Contract & Agency Staff ,Finance and Corporate Performance Division ,Hays Specialist Recruitment Ltd ,100201-101 ,"1,152.00",
DFID,DFID,09/01/2013,Air fares ,Conflict Humanitarian and Security Division ,Corporate Travel Provider ,202410-101 ,"1,135.79",
DFID,DFID,09/01/2013,Hotels - Accommodation only ,West and Southern Africa ,Corporate Travel Provider ,100254-101 ,"1,120.74",
DFID,DFID,09/01/2013,Air fares ,Research and Evidence Division ,Corporate Travel Provider ,100039-106 ,"1,078.59",
DFID,DFID,09/01/2013,Air fares ,Research and Evidence Division ,Corporate Travel Provider ,202392-106 ,"1,071.49",
DFID,DFID,09/01/2013,Air fares ,International Relations Division ,Corporate Travel Provider ,100240-102 ,"1,065.16",
DFID,DFID,09/01/2013,Air fares ,West and Southern Africa ,Corporate Travel Provider ,101613-101 ,"1,046.70",
DFID,DFID,09/01/2013,Hotels - Accommodation only ,East and Central Africa ,Corporate Travel Provider ,103015-101 ,"1,028.64",
DFID,DFID,09/01/2013,Hotels - Accommodation only ,East and Central Africa ,Corporate Travel Provider ,103015-101 ,"1,028.64",
DFID,DFID,09/01/2013,Hotels - Accommodation only ,East and Central Africa ,Corporate Travel Provider ,103015-101 ,"1,028.64",
DFID,DFID,09/01/2013,Air fares ,International Finance Division ,Corporate Travel Provider ,202259-101 ,"1,023.94",
DFID,DFID,09/01/2013,Air fares ,International Finance Division ,Corporate Travel Provider ,202259-101 ,"1,000.05",
DFID,DFID,09/01/2013,Hotels - Accommodation only ,East and Central Africa ,Recipient name withheld ,101612-101 ,987.60,
DFID,DFID,09/01/2013,Technical and Advisory Services ,West and Southern Africa ,COFFEY INTERNATIONAL DEVELOPMENT LTD ,201198-102 ,971.69,
DFID,DFID,09/01/2013,Hotels - Accommodation only ,West and Southern Africa ,Supplier Name withheld ,100152-109 ,960.67,
DFID,DFID,09/01/2013,Air fares ,Western Asia and Stabilisation Division ,Corporate Travel Provider ,202288-104 ,959.60,
DFID,DFID,09/01/2013,Electricity ,West and Southern Africa ,Power Holding co of Nigeria ,101622-101 ,914.64,
DFID,DFID,09/01/2013,Air fares ,Asia  Caribbean and Overseas Territories ,Corporate Travel Provider ,201739-101 ,912.26,
DFID,DFID,09/01/2013,Air fares ,Research and Evidence Division ,Corporate Travel Provider ,202392-106 ,906.05,
DFID,DFID,09/01/2013,Air fares ,Research and Evidence Division ,Corporate Travel Provider ,202332-101 ,904.65,
DFID,DFID,09/01/2013,Air fares ,Western Asia and Stabilisation Division ,Corporate Travel Provider ,202288-104 ,889.60,
DFID,DFID,09/01/2013,Contract & Agency Staff ,Finance and Corporate Performance Division ,Hays Specialist Recruitment Ltd ,100201-101 ,882.00,
DFID,DFID,09/01/2013,Air fares ,Policy Division ,Corporate Travel Provider ,100191-101 ,880.19,
DFID,DFID,09/01/2013,Air fares ,Policy Division ,Corporate Travel Provider ,100191-101 ,880.19,
DFID,DFID,09/01/2013,Air fares ,Policy Division ,Corporate Travel Provider ,100191-101 ,879.99,
DFID,DFID,09/01/2013,Technical and Advisory Services ,Asia  Caribbean and Overseas Territories ,Web Werks India Pvt. Ltd. ,114506-101 ,864.10,
DFID,DFID,09/01/2013,Hotels - Accommodation only ,Business Solutions Division Level ,Corporate Travel Provider ,200001-103 ,862.85,
DFID,DFID,09/01/2013,Air fares ,Research and Evidence Division ,Corporate Travel Provider ,202333-101 ,859.99,
DFID,DFID,09/01/2013,Hotels - Accommodation only ,West and Southern Africa ,Supplier Name withheld ,101622-101 ,851.28,
DFID,DFID,09/01/2013,Air fares ,Asia  Caribbean and Overseas Territories ,Corporate Travel Provider ,201689-106 ,836.99,
DFID,DFID,09/01/2013,Air fares ,Asia  Caribbean and Overseas Territories ,Corporate Travel Provider ,201689-106 ,836.99,
DFID,DFID,09/01/2013,Air fares ,Research and Evidence Division ,Corporate Travel Provider ,202392-107 ,834.35,
DFID,DFID,09/01/2013,Contract & Agency Staff ,Asia  Caribbean and Overseas Territories ,Hays Specialist Recruitment Ltd ,100084-101 ,810.54,
DFID,DFID,09/01/2013,Air fares ,Policy Division ,Corporate Travel Provider ,201724-102 ,806.99,
DFID,DFID,09/01/2013,Air fares ,Policy Division ,Corporate Travel Provider ,200659-115 ,795.65,
DFID,DFID,09/01/2013,Hotels - Accommodation only ,Business Solutions Division Level ,Corporate Travel Provider ,200001-101 ,783.02,
DFID,DFID,09/01/2013,Air fares ,Policy Division ,Corporate Travel Provider ,100191-101 ,782.99,
DFID,DFID,09/01/2013,Air fares ,Finance and Corporate Performance Division ,Corporate Travel Provider ,202438-101 ,782.65,
DFID,DFID,09/01/2013,Contract & Agency Staff ,Finance and Corporate Performance Division ,Hays Specialist Recruitment Ltd ,100201-101 ,777.00,
DFID,DFID,09/01/2013,Air fares ,Asia  Caribbean and Overseas Territories ,KUONI BUSINESS TRAVEL INDIA PVT LTD ,201689-101 ,771.85,
DFID,DFID,09/01/2013,Air fares ,Asia  Caribbean and Overseas Territories ,Corporate Travel Provider ,100084-101 ,766.95,
DFID,DFID,09/01/2013,Air fares ,West and Southern Africa ,Corporate Travel Provider ,101613-101 ,758.19,
DFID,DFID,09/01/2013,Electricity ,West and Southern Africa ,Power Holding co of Nigeria ,101622-101 ,758.02,
DFID,DFID,09/01/2013,Hotels - Accommodation only ,Human Resources Security & Facilities Division ,Corporate Travel Provider ,100269-128 ,752.32,
DFID,DFID,09/01/2013,Hotels - Accommodation only ,Asia  Caribbean and Overseas Territories ,Corporate Travel Provider ,100244-101 ,752.32,
DFID,DFID,09/01/2013,Air fares ,West and Southern Africa ,Supplier Name withheld ,101622-101 ,742.88,
DFID,DFID,09/01/2013,Air fares ,Western Asia and Stabilisation Division ,Corporate Travel Provider ,100020-101 ,739.70,
DFID,DFID,09/01/2013,Air fares ,West and Southern Africa ,Corporate Travel Provider ,201551-105 ,736.25,
DFID,DFID,09/01/2013,Air fares ,Research and Evidence Division ,Corporate Travel Provider ,202392-103 ,727.25,
DFID,DFID,09/01/2013,Hotels - Accommodation only ,West and Southern Africa ,Corporate Travel Provider ,101620-101 ,721.62,
DFID,DFID,09/01/2013,Electricity ,West and Southern Africa ,Power Holding co of Nigeria ,101622-101 ,717.56,
DFID,DFID,09/01/2013,Air fares ,Conflict Humanitarian and Security Division ,Corporate Travel Provider ,202410-101 ,701.65,
DFID,DFID,09/01/2013,Hotels - Accommodation only ,East and Central Africa ,Corporate Travel Provider ,101630-101 ,693.37,
DFID,DFID,09/01/2013,Hotels - Accommodation only ,Policy Division ,Corporate Travel Provider ,100045-101 ,693.37,
DFID,DFID,09/01/2013,Contract & Agency Staff ,Finance and Corporate Performance Division ,Hays Specialist Recruitment Ltd ,100201-101 ,691.20,
DFID,DFID,09/01/2013,Air fares ,Internal Audit ,Corporate Travel Provider ,100121-101 ,689.65,
DFID,DFID,09/01/2013,Air fares ,Business Solutions Division Level ,Corporate Travel Provider ,200001-101 ,688.66,
DFID,DFID,09/01/2013,Air fares ,Western Asia and Stabilisation Division ,Corporate Travel Provider ,202288-104 ,672.77,
DFID,DFID,09/01/2013,Air fares ,Internal Audit ,Corporate Travel Provider ,100121-101 ,668.99,
DFID,DFID,09/01/2013,Air fares ,Internal Audit ,Corporate Travel Provider ,100121-101 ,668.69,
DFID,DFID,09/01/2013,Air fares ,Asia  Caribbean and Overseas Territories ,Corporate Travel Provider ,100025-101 ,657.53,
DFID,DFID,09/01/2013,Air fares ,West and Southern Africa ,Corporate Travel Provider ,100189-101 ,656.76,
DFID,DFID,09/01/2013,Air fares ,Middle East & North Africa Division (MENAD) ,Corporate Travel Provider ,201701-101 ,655.10,
DFID,DFID,09/01/2013,Air fares ,East and Central Africa ,Corporate Travel Provider ,101612-101 ,645.69,
DFID,DFID,09/01/2013,Air fares ,Research and Evidence Division ,Corporate Travel Provider ,202332-101 ,637.25,
DFID,DFID,09/01/2013,Air fares ,Asia  Caribbean and Overseas Territories ,KUONI BUSINESS TRAVEL INDIA PVT LTD ,100113-101 ,630.97,
DFID,DFID,09/01/2013,Hotels - Accommodation only ,West and Southern Africa ,Corporate Travel Provider ,101631-101 ,629.51,
DFID,DFID,09/01/2013,Hotels - Accommodation only ,Human Resources Security & Facilities Division ,Corporate Travel Provider ,100270-102 ,629.51,
DFID,DFID,09/01/2013,Hotels - Accommodation only ,Business Solutions Division Level ,Corporate Travel Provider ,200001-101 ,629.51,
DFID,DFID,09/01/2013,Air fares ,West and Southern Africa ,Corporate Travel Provider ,100189-101 ,623.39,
DFID,DFID,09/01/2013,Hotels - Accommodation only ,Asia  Caribbean and Overseas Territories ,Corporate Travel Provider ,101615-101 ,623.38,
DFID,DFID,09/01/2013,Air fares ,West and Southern Africa ,Supplier Name withheld ,101622-101 ,595.90,
DFID,DFID,09/01/2013,Hotels - Accommodation only ,Human Resources Security & Facilities Division ,Corporate Travel Provider ,100261-101 ,588.57,
DFID,DFID,09/01/2013,Other travel costs ,Business Solutions Division Level ,KUONI BUSINESS TRAVEL INDIA PVT LTD ,200001-101 ,584.97,
DFID,DFID,09/01/2013,Air fares ,Asia  Caribbean and Overseas Territories ,Corporate Travel Provider ,100084-101 ,582.25,
DFID,DFID,09/01/2013,Air fares ,Research and Evidence Division ,Corporate Travel Provider ,202332-101 ,578.90,
DFID,DFID,09/01/2013,Air fares ,West and Southern Africa ,Corporate Travel Provider ,101631-101 ,569.49,
DFID,DFID,09/01/2013,Hotels - Accommodation only ,East and Central Africa ,Corporate Travel Provider ,101616-101 ,568.10,
DFID,DFID,09/01/2013,Hotels - Accommodation only ,West and Southern Africa ,Supplier Name withheld ,104223-101 ,567.52,
DFID,DFID,09/01/2013,Hotels - Accommodation only ,Human Resources Security & Facilities Division ,UNISON HOTELS LTD ,100269-153 ,553.87,
DFID,DFID,09/01/2013,Air fares ,Asia  Caribbean and Overseas Territories ,KUONI BUSINESS TRAVEL INDIA PVT LTD ,201689-101 ,552.51,
DFID,DFID,09/01/2013,Hotels - Accommodation only ,Policy Division ,Recipient name withheld ,100275-101 ,552.00,
DFID,DFID,09/01/2013,Air fares ,Asia  Caribbean and Overseas Territories ,Corporate Travel Provider ,100084-101 ,545.09,
DFID,DFID,09/01/2013,Electricity ,West and Southern Africa ,Power Holding co of Nigeria ,100152-101 ,541.32,
DFID,DFID,09/01/2013,Hotels - Accommodation only ,West and Southern Africa ,Corporate Travel Provider ,101610-101 ,539.46,
DFID,DFID,09/01/2013,Hotels - Accommodation only ,West and Southern Africa ,Supplier Name withheld ,101622-101 ,533.92,
DFID,DFID,09/01/2013,Hotels - Accommodation only ,Research and Evidence Division ,Corporate Travel Provider ,100039-108 ,523.90,
DFID,DFID,09/01/2013,Hotels - Accommodation only ,East and Central Africa ,Corporate Travel Provider ,101612-101 ,523.90,
DFID,DFID,09/01/2013,Hotels - Accommodation only ,Internal Audit ,Corporate Travel Provider ,100121-101 ,523.90,
DFID,DFID,09/01/2013,Hotels - Accommodation only ,Human Resources Security & Facilities Division ,Corporate Travel Provider ,100268-101 ,522.06,
DFID,DFID,09/01/2013,Mobile telephones & accessories ,Policy Division ,VODAFONE CORPORATE ,100276-101 ,517.33,
DFID,DFID,09/01/2013,Hotels - Accommodation only ,Policy Division ,Recipient name withheld ,202419-104 ,502.76,
DFID,DFID,09/01/2013,Technical and Advisory Services ,Policy Division ,RACHEL PHILLIPSON ,201245-101 ,"1,544.00",
DFID,DFID,09/01/2013,Technical and Advisory Services ,Policy Division ,RACHEL PHILLIPSON ,201245-101 ,"1,541.54",
DFID,DFID,10/01/2013,Recruitment costs ,Human Resources Security & Facilities Division ,JA ANNING ,100269-130 ,"1,560.00",
DFID,DFID,10/01/2013,Aid Programme - Core contributions ,West and Southern Africa ,USAID Washington ,202504-102 ,"6,750,625.00",
DFID,DFID,10/01/2013,Aid Programme - Core contributions ,Research and Evidence Division ,WHO Human Reproduction Programme ,114397-101 ,"1,500,000.00",
DFID,DFID,10/01/2013,Aid Programme - Core contributions ,Research and Evidence Division ,WHO (GENEVA) ,202041-101 ,"1,000,000.00",
DFID,DFID,10/01/2013,Aid Programme - Core contributions ,East and Central Africa ,TRADEMARK EAST AFRICA ,200294-103 ,"750,000.00",
DFID,DFID,10/01/2013,Aid Programme - Partnership Programme Arrangements ,Policy Division ,  Norwegian Refugee Council ,202688-101 ,"635,786.25",
DFID,DFID,10/01/2013,Technical and Advisory Services ,Policy Division ,TROPICAL HEALTH AND EDUCATION TRUST ,202208-101 ,"419,078.00",
DFID,DFID,10/01/2013,Aid Programme - Partnership Programme Arrangements ,Policy Division ,AVOCATS SANS FRONTIERES ,202739-101 ,"362,612.75",
DFID,DFID,10/01/2013,Technical and Advisory Services ,Communications Division ,VOLUNTARY SERVICE OVERSEAS ,202883-101 ,"324,976.80",
DFID,DFID,10/01/2013,Aid Programme - Accountable Grant Payments ,Policy Division , Triple Line Consulting Ltd ,202035-101 ,"248,992.93",
DFID,DFID,10/01/2013,Aid Programme - Partnership Programme Arrangements ,Policy Division ,GENDER LINKS ,202576-101 ,"156,216.75",
DFID,DFID,10/01/2013,Technical and Advisory Services ,Business Solutions Division Level ,GARTNERGROUP UK LTD ,200001-101 ,"30,000.00","Annual subscription (2013) to Technical Services for IT professionals for access to high quality research, technical architecture, technical subject matter experts"
DFID,DFID,10/01/2013,Research & Development costs ,Research and Evidence Division ,Research into Results Ltd ,112189-101 ,"100,000.00",
DFID,DFID,10/01/2013,Technical and Advisory Services ,Middle East & North Africa Division (MENAD) ,OXFORD POLICY MANAGEMENT ,202241-104 ,"70,583.62",
DFID,DFID,10/01/2013,Secure Staff Accommodation ,East and Central Africa ,Supplier Name withheld ,202586-101 ,"45,064.80",6 months Secure Staff Accommodation  (Dec 2013 to May 2014) 2 Premises
DFID,DFID,10/01/2013,Technical and Advisory Services ,Policy Division ,TROPICAL HEALTH AND EDUCATION TRUST ,202208-101 ,"68,605.13",
DFID,DFID,10/01/2013,Aid Programme - Accountable Grant Payments ,Middle East & North Africa Division (MENAD) ,MERCY CORPS ,203236-112 ,"64,095.00",
DFID,DFID,10/01/2013,Technical and Advisory Services ,Middle East & North Africa Division (MENAD) ,OXFORD POLICY MANAGEMENT ,202241-104 ,"62,617.67",
DFID,DFID,10/01/2013,Technical and Advisory Services ,East and Central Africa ,ACCENTURE ,200094-104 ,"62,500.00",
DFID,DFID,10/01/2013,Hardware -monitors ,Business Solutions Division Level ,Stone Computers Ltd ,200003-154 ,"55,989.90",
DFID,DFID,10/01/2013,Technical and Advisory Services ,Western Asia and Stabilisation Division ,OXFORD POLICY MANAGEMENT ,108742-101 ,"44,657.32",
DFID,DFID,10/01/2013,Technical and Advisory Services ,Conflict Humanitarian and Security Division ,MINES ADVISORY GROUP ,201745-101 ,"43,785.00",
DFID,DFID,10/01/2013,Research & Development costs ,Research and Evidence Division ,CLIMATE STRATEGIES ,203359-101 ,"36,368.00",
DFID,DFID,10/01/2013,Technical and Advisory Services ,East and Central Africa ,COFFEY INTERNATIONAL DEVELOPMENT LTD ,202302-102 ,"33,750.00",
DFID,DFID,10/01/2013,Technical and Advisory Services ,Conflict Humanitarian and Security Division ,MINES ADVISORY GROUP ,201745-108 ,"31,652.00",
DFID,DFID,10/01/2013,Secure Staff Accommodation ,East and Central Africa ,Supplier Name withheld ,202594-101 ,"180,259.20",6 months Secure staff Accommodation for 10 premises (Dec 2013 - May 2014) - Sudan
DFID,DFID,10/01/2013,Technical and Advisory Services ,Conflict Humanitarian and Security Division ,MINES ADVISORY GROUP ,201745-103 ,"27,385.00",
DFID,DFID,10/01/2013,Technical and Advisory Services ,Conflict Humanitarian and Security Division ,MINES ADVISORY GROUP ,201745-102 ,"25,901.00",
DFID,DFID,10/01/2013,Technical and Advisory Services ,West and Southern Africa ,MOTT MACDONALD LTD ,103269-101 ,"25,772.16",
DFID,DFID,10/01/2013,Technical and Advisory Services ,Conflict Humanitarian and Security Division ,MINES ADVISORY GROUP ,201745-104 ,"23,313.00",
DFID,DFID,10/01/2013,Research & Development costs ,Research and Evidence Division ,TEARFUND ,203287-101 ,"22,170.00",
DFID,DFID,10/01/2013,Technical and Advisory Services ,Asia  Caribbean and Overseas Territories ,DELOITTE TOUCHE TOHMATSU INDIA PRIVA ,108070-101 ,"21,105.32",
DFID,DFID,10/01/2013,Technical and Advisory Services ,Policy Division ,SJ Berwin ,201733-114 ,"19,406.39",
DFID,DFID,10/01/2013,Technical and Advisory Services ,Business Solutions Division Level ,LRQA LTD ,200001-101 ,"17,466.98",
DFID,DFID,10/01/2013,Technical and Advisory Services ,Research and Evidence Division ,THE UK EVALUATION SOCIETY ,202444-101 ,"14,400.00",
DFID,DFID,10/01/2013,Technical and Advisory Services ,Asia  Caribbean and Overseas Territories ,IMC Worldwide Ltd ,113537-102 ,"14,058.09",
DFID,DFID,10/01/2013,Aid Programme - Accountable Grant Payments ,Conflict Humanitarian and Security Division ,UK-Med ,202878-101 ,"13,750.00",
DFID,DFID,10/01/2013,Technical and Advisory Services ,West and Southern Africa ,CHANNEL RESEARCH ,202416-104 ,"13,716.10",
DFID,DFID,10/01/2013,Secure Staff Accommodation ,Asia  Caribbean and Overseas Territories ,Supplier Name withheld ,101615-101 ,"11,730.95",
DFID,DFID,10/01/2013,Technical and Advisory Services ,West and Southern Africa ,CHANNEL RESEARCH ,202416-104 ,"10,943.91",
DFID,DFID,10/01/2013,Secure Staff Accommodation ,Asia  Caribbean and Overseas Territories ,Supplier Name withheld ,101603-101 ,"9,639.30",
DFID,DFID,10/01/2013,Technical and Advisory Services ,Asia  Caribbean and Overseas Territories ,EnviClim Net ,114058-101 ,"7,826.10",
DFID,DFID,10/01/2013,Computer Software Licenses ,Business Solutions Division Level ,TRUSTMARQUE SOLUTIONS LTD ,200003-153 ,"7,568.40",
DFID,DFID,10/01/2013,Secure Staff Accommodation ,Asia  Caribbean and Overseas Territories ,Supplier Name withheld ,101636-101 ,"6,908.45",
DFID,DFID,10/01/2013,Technical and Advisory Services ,West and Southern Africa ,Bertin and Bertin ,202857-103 ,"6,857.86",
DFID,DFID,10/01/2013,Data Network - land lines ,West and Southern Africa ,MICRO COM Sprl ,101610-101 ,"6,455.74",
DFID,DFID,10/01/2013,Secure Staff Accommodation ,Asia  Caribbean and Overseas Territories ,Supplier Name withheld ,101636-101 ,"5,923.71",
DFID,DFID,10/01/2013,Aid Programme - Accountable Grant Payments ,Conflict Humanitarian and Security Division ,UK-Med ,202878-102 ,"5,000.00",
DFID,DFID,10/01/2013,Conferences  Seminars & Meeting/Event Resource ,International Relations Division ,TAKE ONE PRODUCTIONS UK LTD ,100262-101 ,"4,200.00",
DFID,DFID,10/01/2013,Contract & Agency Staff ,Policy Division ,SOCIAL DEVELOPMENT DIRECT LTD ,200659-115 ,"4,032.00",
DFID,DFID,10/01/2013,Contract & Agency Staff ,Conflict Humanitarian and Security Division ,SOCIAL DEVELOPMENT DIRECT LTD ,100049-101 ,"3,750.00",
DFID,DFID,10/01/2013,other information and communication technologies ,Finance and Corporate Performance Division ,BOTTOMLINE TECHNOLOGIES EUROPE LTD ,100008-101 ,"3,235.44",
DFID,DFID,10/01/2013,Mobile telephones & accessories ,Asia  Caribbean and Overseas Territories ,Excel Telecom (Pvt) Ltd ,100025-101 ,"2,702.60",
DFID,DFID,10/01/2013,Technical and Advisory Services ,Asia  Caribbean and Overseas Territories ,SPC MANAGEMENT SERVICES PRIVATE LIMI ,114177-101 ,"2,481.25",
DFID,DFID,10/01/2013,Technical and Advisory Services ,Policy Division ,Robert Muggah ,203608-106 ,"2,181.28",
DFID,DFID,10/01/2013,Air fares ,Asia  Caribbean and Overseas Territories ,MINISTRY OF DEFENCE - HQ BRITFOR ,201739-101 ,"1,858.00",
DFID,DFID,10/01/2013,Other passenger transport ,Asia  Caribbean and Overseas Territories ,ANDREW WEIR SHIPPING LTD ,201739-101 ,"1,854.00",
DFID,DFID,10/01/2013,Other passenger transport ,Asia  Caribbean and Overseas Territories ,ANDREW WEIR SHIPPING LTD ,201739-101 ,"1,854.00",
DFID,DFID,10/01/2013,Other passenger transport ,Asia  Caribbean and Overseas Territories ,ANDREW WEIR SHIPPING LTD ,201739-101 ,"1,854.00",
DFID,DFID,10/01/2013,Other passenger transport ,Asia  Caribbean and Overseas Territories ,ANDREW WEIR SHIPPING LTD ,201739-101 ,"1,854.00",
DFID,DFID,10/01/2013,Hotels - Accommodation only ,West and Southern Africa ,The Country Lodge Complex ,200485-101 ,"1,809.92",
DFID,DFID,10/01/2013,Computer Consumables ,Business Solutions Division Level ,COMPUTACENTER (UK) LTD ,200003-154 ,"1,682.77",
DFID,DFID,10/01/2013,Contract & Agency Staff ,Finance and Corporate Performance Division ,MICHAEL PAGE INTERNATIONAL RECRUITMENT LIMITED ,100201-101 ,"1,650.00",
DFID,DFID,10/01/2013,Contract & Agency Staff ,Finance and Corporate Performance Division ,MICHAEL PAGE INTERNATIONAL RECRUITMENT LIMITED ,100201-101 ,"1,650.00",
DFID,DFID,10/01/2013,Secure Staff Accommodation ,Asia  Caribbean and Overseas Territories ,Supplier Name withheld ,100025-101 ,"1,607.05",
DFID,DFID,10/01/2013,Training Providers/Facilitation Services ,Policy Division ,UNIVERSITY OF CAMBRIDGE ,100191-101 ,"1,500.00",
DFID,DFID,10/01/2013,Technical and Advisory Services ,West and Southern Africa ,Julie F Momoh ,200485-101 ,"1,478.76",
DFID,DFID,10/01/2013,Contract & Agency Staff ,Finance and Corporate Performance Division ,MICHAEL PAGE INTERNATIONAL RECRUITMENT LIMITED ,100201-101 ,"1,150.02",
DFID,DFID,10/01/2013,Contract & Agency Staff ,Finance and Corporate Performance Division ,MICHAEL PAGE INTERNATIONAL RECRUITMENT LIMITED ,100201-101 ,"1,150.02",
DFID,DFID,10/01/2013,Data Network - land lines ,Business Solutions Division Level ,COLT TELECOMMUNICATIONS ,200002-124 ,"1,125.00",
DFID,DFID,10/01/2013,Contract & Agency Staff ,Internal Audit ,Hays Specialist Recruitment Ltd ,100121-101 ,"1,063.77",
DFID,DFID,10/01/2013,Mobile telephones & accessories ,West and Southern Africa ,MTN (Zambia) Limited ,101637-101 ,"1,050.24",
DFID,DFID,10/01/2013,Contract Catering Services ,Asia  Caribbean and Overseas Territories ,THE GOURMET FACTORY ,201689-105 ,"1,046.94",
DFID,DFID,10/01/2013,Technical and Advisory Services ,Finance and Corporate Performance Division ,TRIAY AND TRIAY ,100182-101 ,"1,007.00",
DFID,DFID,10/01/2013,Contract & Agency Staff ,Finance and Corporate Performance Division ,Hays Specialist Recruitment Ltd ,100201-101 ,988.92,
DFID,DFID,10/01/2013,Contract & Agency Staff ,Finance and Corporate Performance Division ,Hays Specialist Recruitment Ltd ,100201-101 ,988.92,
DFID,DFID,10/01/2013,Contract & Agency Staff ,Finance and Corporate Performance Division ,Hays Specialist Recruitment Ltd ,100201-101 ,882.00,
DFID,DFID,10/01/2013,Hotels - Accommodation only ,Research and Evidence Division ,MEDICAL RESEARCH COUNCIL ,202392-106 ,865.60,
DFID,DFID,10/01/2013,Contract & Agency Staff ,Internal Audit ,Hays Specialist Recruitment Ltd ,100121-101 ,828.00,
DFID,DFID,10/01/2013,Hotels - Accommodation only ,East and Central Africa ,Recipient name withheld ,101616-101 ,828.00,
DFID,DFID,10/01/2013,Other Admin Costs ,West and Southern Africa ,Positive People Company ,101631-101 ,816.80,
DFID,DFID,10/01/2013,Vehicle Petrol & Oil ,Asia  Caribbean and Overseas Territories ,QUTAB SERVICE STATION ,201689-105 ,738.28,
DFID,DFID,10/01/2013,Contract & Agency Staff ,Finance and Corporate Performance Division ,MICHAEL PAGE INTERNATIONAL RECRUITMENT LIMITED ,100201-101 ,690.01,
DFID,DFID,10/01/2013,Contract & Agency Staff ,Human Resources Security & Facilities Division ,MICHAEL PAGE INTERNATIONAL RECRUITMENT LIMITED ,100266-110 ,591.09,
DFID,DFID,10/01/2013,Vehicle Petrol & Oil ,Asia  Caribbean and Overseas Territories ,Sikder Filling and Serivce Station ,100025-101 ,589.61,
DFID,DFID,10/01/2013,Hotels - Accommodation only ,Business Solutions Division Level ,J.H Simex PLC/Intercontinental Hotel ,200003-121 ,575.84,
DFID,DFID,10/01/2013,Data Network - land lines ,West and Southern Africa ,MICRO COM Sprl ,100068-101 ,561.10,
DFID,DFID,10/01/2013,Vehicle Repairs & Maintenance ,West and Southern Africa ,Annewetey Auto Parts ,101613-101 ,539.92,
DFID,DFID,10/01/2013,Hostile Environment Training ,East and Central Africa ,Grand Hotel ,101616-101 ,504.73,
DFID,DFID,10/01/2013,Technical and Advisory Services ,West and Southern Africa ,Mrs Lonnah Ndhlovu ,202214-101 ,"3,360.41",
DFID,DFID,11/01/2013,Aid Programme - Other Financial Aid to Government ,West and Southern Africa ,Ministry of Health  Support for Malawi Health SWAp ,202214-102 ,"4,000,000.00",
DFID,DFID,11/01/2013,Aid Programme - Partnership Programme Arrangements ,Policy Division ,International Planned Parent ,114146-101 ,"2,150,000.00",
DFID,DFID,11/01/2013,Aid Programme - Partnership Programme Arrangements ,Policy Division ,HELPAGE INTERNATIONAL ,202566-101 ,"667,567.25",
DFID,DFID,11/01/2013,Aid Programme - Accountable Grant Payments ,Research and Evidence Division ,GLOBAL DEVELOPMENT NETWORK (3ie) ,200135-104 ,"491,231.00",
DFID,DFID,11/01/2013,Aid Programme - Partnership Programme Arrangements ,Policy Division ,SAFERWORLD ,202709-101 ,"434,790.00",
DFID,DFID,11/01/2013,Technical and Advisory Services ,East and Central Africa ,ADAM SMITH INTERNATIONAL  LTD ,200329-107 ,"322,170.99",
DFID,DFID,11/01/2013,Technical and Advisory Services ,East and Central Africa ,ADAM SMITH INTERNATIONAL  LTD ,200329-107 ,"227,635.39",
DFID,DFID,11/01/2013,Technical and Advisory Services ,West and Southern Africa ,Crown Agents Bank ,202183-101 ,"188,181.84",
DFID,DFID,11/01/2013,Technical and Advisory Services ,East and Central Africa ,ADAM SMITH INTERNATIONAL  LTD ,200329-108 ,"168,814.95",
DFID,DFID,11/01/2013,Technical and Advisory Services ,East and Central Africa ,ADAM SMITH INTERNATIONAL  LTD ,200329-108 ,"150,125.42",
DFID,DFID,11/01/2013,Aid Programme - Partnership Programme Arrangements ,Policy Division ,WOMANKIND WORLDWIDE (JFS) ,202548-101 ,"140,095.75",
DFID,DFID,11/01/2013,Aid Programme - Voluntary contributions ,East and Central Africa ,UNESCO ,103022-108 ,"98,832.00",
DFID,DFID,11/01/2013,Technical and Advisory Services ,Research and Evidence Division ,ROYAL TROPICAL INSTITUTE ,201727-101 ,"56,924.29",
DFID,DFID,11/01/2013,Aid Programme - Core contributions ,Research and Evidence Division ,FOOD AND AGRICULTURE ORGANISATION ,202279-101 ,"48,494.00",
DFID,DFID,11/01/2013,Aid Programme - Core contributions ,Research and Evidence Division ,FOOD AND AGRICULTURE ORGANISATION ,202279-102 ,"48,490.00",
DFID,DFID,11/01/2013,Aid Programme - Accountable Grant Payments ,Research and Evidence Division ,World Federation of Science Journalists (CAD) ,112150-103 ,"34,703.72",
DFID,DFID,11/01/2013,Technical and Advisory Services ,Research and Evidence Division ,COFFEY INTERNATIONAL DEVELOPMENT LTD ,203193-101 ,"27,165.60",
DFID,DFID,11/01/2013,Hardware -Laptop PCs ,Business Solutions Division Level ,XMA Limited ,200003-154 ,"26,417.50",
DFID,DFID,11/01/2013,Property rates ,Human Resources Security & Facilities Division ,CITY OF WESTMINSTER ,100187-101 ,"776,170.00",Quarterly Business Rates for DFID HQ Palace Street
DFID,DFID,11/01/2013,Technical and Advisory Services ,Research and Evidence Division , Natural Environment Research Council ,200376-101 ,"25,000.00",
DFID,DFID,11/01/2013,Training Providers/Facilitation Services ,Business Solutions Division Level ,Emergn ,200001-101 ,"20,625.00",
DFID,DFID,11/01/2013,Training Providers/Facilitation Services ,Business Solutions Division Level ,Emergn ,200001-101 ,"20,625.00",
DFID,DFID,11/01/2013,Technical and Advisory Services ,West and Southern Africa ,MACRAE MASON DEVELOPMENT ,202678-101 ,"15,242.39",
DFID,DFID,11/01/2013,Professional member subscriptions ,Human Resources Security & Facilities Division ,HM TREASURY VOTES CASH ACCOUNT ,100269-117 ,"13,200.00",
DFID,DFID,11/01/2013,Contraceptives ,East and Central Africa ,IPA-International Procurement Agency (BV) ,202420-103 ,"12,964.27",
DFID,DFID,11/01/2013,Aid Programme - Programme Contribution ,International Relations Division ,PRACTITIONERS NETWORK FOR EUROPEAN DEVELOPMENT COOPERATION ,201272-103 ,"12,382.50",
DFID,DFID,11/01/2013,Technical and Advisory Services ,West and Southern Africa ,TRIPLE LINE CONSULTING LTD ,202183-102 ,"10,374.95",
DFID,DFID,11/01/2013,Supplier Services ,Human Resources Security & Facilities Division ,AMCS UK ,100272-101 ,"9,900.00",
DFID,DFID,11/01/2013,Aid Programme - Challenge Fund payments ,Policy Division ,Triple Line Consulting Limited ,201242-101 ,"9,209.85",
DFID,DFID,11/01/2013,Technical and Advisory Services ,East and Central Africa ,Garry Whiteknight CPA ,200284-105 ,"7,134.50",
DFID,DFID,11/01/2013,Contract & Agency Staff ,Finance and Corporate Performance Division ,HUDSON GLOBAL RESOURCES LTD ,100201-101 ,"6,310.20",
DFID,DFID,11/01/2013,Contract & Agency Staff ,Finance and Corporate Performance Division ,HUDSON GLOBAL RESOURCES LTD ,100201-101 ,"6,062.34",
DFID,DFID,11/01/2013,Contract & Agency Staff ,Finance and Corporate Performance Division ,HUDSON GLOBAL RESOURCES LTD ,100201-101 ,"6,028.99",
DFID,DFID,11/01/2013,Technical and Advisory Services ,East and Central Africa ,Sian Lord  ,202913-101 ,"5,450.00",
DFID,DFID,11/01/2013,Technical and Advisory Services ,Human Resources Security & Facilities Division ,TURNER & TOWNSEND ,203716-101 ,"5,241.60",
DFID,DFID,11/01/2013,Aid Programme - Accountable Grant Payments ,Asia  Caribbean and Overseas Territories ,British Council China ,203174-101 ,"4,666.00",
DFID,DFID,11/01/2013,Technical and Advisory Services ,Research and Evidence Division ,RS DREW LTD ,201014-102 ,"4,462.50",
DFID,DFID,11/01/2013,Hotels - Accommodation only ,Western Asia and Stabilisation Division ,Juba Grand Hotel ,202288-107 ,"4,382.02",
DFID,DFID,11/01/2013,Aid Programme - Accountable Grant Payments ,Asia  Caribbean and Overseas Territories ,SAINT HELENA NATIONAL TRUST ,201049-101 ,"3,483.83",
DFID,DFID,11/01/2013,Hotels - Accommodation only ,East and Central Africa ,Juba Grand Hotel ,202594-101 ,"3,258.43",
DFID,DFID,11/01/2013,Air fares ,East and Central Africa ,The Express Travel Group ,101612-101 ,"2,337.21",
DFID,DFID,11/01/2013,Technical and Advisory Services ,Asia  Caribbean and Overseas Territories ,Purushottam Ojha ,203035-102 ,"2,103.98",
DFID,DFID,11/01/2013,Medical/Health Services ,West and Southern Africa ,MASM ,101618-101 ,"1,974.51",
DFID,DFID,11/01/2013,Contract & Agency Staff ,International Finance Division ,Hays Specialist Recruitment Ltd ,100120-101 ,"1,830.16",
DFID,DFID,11/01/2013,Hotels - Accommodation only ,Western Asia and Stabilisation Division ,Juba Grand Hotel ,202288-106 ,"1,797.75",
DFID,DFID,11/01/2013,Electricity ,Human Resources Security & Facilities Division ,EDF ENERGY ,203717-101 ,"1,607.87",
DFID,DFID,11/01/2013,Repairs  Maint  Alter - Property & Constrct. Services ,Middle East & North Africa Division (MENAD) ,TURNER & TOWNSEND ,100302-101 ,"1,588.60",
DFID,DFID,11/01/2013,Contract & Agency Staff ,Finance and Corporate Performance Division ,Hays Specialist Recruitment Ltd ,202836-101 ,"1,551.34",
DFID,DFID,11/01/2013,Contract & Agency Staff ,Finance and Corporate Performance Division ,Hays Specialist Recruitment Ltd ,202836-101 ,"1,551.34",
DFID,DFID,11/01/2013,Printer Consumables ,West and Southern Africa ,Formats Projects Services Limited ,101622-101 ,"1,541.93",
DFID,DFID,11/01/2013,Contract & Agency Staff ,Finance and Corporate Performance Division ,MICHAEL PAGE INTERNATIONAL RECRUITMENT LIMITED ,100201-101 ,"1,513.32",
DFID,DFID,11/01/2013,Hotels - Accommodation only ,East and Central Africa ,Juba Grand Hotel ,203542-105 ,"1,507.49",
DFID,DFID,11/01/2013,Contract & Agency Staff ,Finance and Corporate Performance Division ,Hays Specialist Recruitment Ltd ,202836-101 ,"1,292.78",
DFID,DFID,11/01/2013,Contract & Agency Staff ,Finance and Corporate Performance Division ,Hays Specialist Recruitment Ltd ,202836-101 ,"1,292.78",
DFID,DFID,11/01/2013,Contract & Agency Staff ,Finance and Corporate Performance Division ,Hays Specialist Recruitment Ltd ,202836-101 ,"1,292.78",
DFID,DFID,11/01/2013,Contract & Agency Staff ,Finance and Corporate Performance Division ,Hays Specialist Recruitment Ltd ,202836-101 ,"1,292.78",
DFID,DFID,11/01/2013,Contract & Agency Staff ,Finance and Corporate Performance Division ,Search Consultancy Ltd ,100201-101 ,"1,200.00",
DFID,DFID,11/01/2013,Printer Consumables ,West and Southern Africa ,Formats Projects Services Limited ,100152-101 ,"1,163.21",
DFID,DFID,11/01/2013,Contract & Agency Staff ,Finance and Corporate Performance Division ,Hays Specialist Recruitment Ltd ,100201-101 ,"1,130.16",
DFID,DFID,11/01/2013,Contract & Agency Staff ,International Finance Division ,Hays Specialist Recruitment Ltd ,100120-101 ,996.01,
DFID,DFID,11/01/2013,Hotels - Accommodation only ,East and Central Africa ,Sheraton Hotel ,101635-101 ,986.95,
DFID,DFID,11/01/2013,Technical and Advisory Services ,Business Solutions Division Level ,Parity Resources ,200005-111 ,826.99,
DFID,DFID,11/01/2013,Hostile Environment Training ,Asia  Caribbean and Overseas Territories ,Pilgrims Group ,101611-101 ,802.14,
DFID,DFID,11/01/2013,Technical and Advisory Services ,Research and Evidence Division ,THE IDL GROUP ,201014-102 ,780.00,
DFID,DFID,11/01/2013,Technical and Advisory Services ,Western Asia and Stabilisation Division ,HOME OFFICE ,100020-101 ,749.39,
DFID,DFID,11/01/2013,Technical and Advisory Services ,East and Central Africa ,ATOS CONSULTING LIMITED ,202327-101 ,709.29,
DFID,DFID,11/01/2013,Technical and Advisory Services ,Research and Evidence Division ,Development Evaluation Cons. LLC ( J R Eriksson) ,201014-102 ,699.86,
DFID,DFID,11/01/2013,Technical and Advisory Services ,Research and Evidence Division ,Development Evaluation Cons. LLC ( J R Eriksson) ,201014-102 ,699.64,
DFID,DFID,11/01/2013,Hotels - Accommodation only ,Top Management Group ,Juba Grand Hotel ,100232-108 ,674.16,
DFID,DFID,11/01/2013,Furniture & Fittings ,Asia  Caribbean and Overseas Territories ,POSTURITE (UK) LTD ,201739-101 ,631.98,
DFID,DFID,11/01/2013,Technical and Advisory Services ,Asia  Caribbean and Overseas Territories ,Andreas Wilkes ,200581-113 ,600.00,
DFID,DFID,11/01/2013,Training - Course Fees ,Conflict Humanitarian and Security Division ,WORKING SOLUTIONS ,100049-101 ,600.00,
DFID,DFID,11/01/2013,Contract & Agency Staff ,Human Resources Security & Facilities Division ,Hays Specialist Recruitment Ltd ,100270-102 ,588.68,
DFID,DFID,11/01/2013,Technical and Advisory Services ,Research and Evidence Division ,THE IDL GROUP ,201014-102 ,585.00,
DFID,DFID,11/01/2013,Contract & Agency Staff ,Human Resources Security & Facilities Division ,Hays Specialist Recruitment Ltd ,100270-102 ,573.40,
DFID,DFID,11/01/2013,Subscriptions ,Communications Division ,THE PRESS ASSOCIATION ,100197-101 ,558.07,
DFID,DFID,11/01/2013,Hotels - Accommodation only ,Conflict Humanitarian and Security Division ,J.H Simex PLC/Intercontinental Hotel ,202410-101 ,541.90,
DFID,DFID,11/01/2013,Medical/Health Services ,West and Southern Africa ,MASM ,100144-101 ,537.48,
DFID,DFID,11/01/2013,Technical and Advisory Services ,Asia  Caribbean and Overseas Territories ,Nicholas Freeland ,107402-108 ,"12,910.08",
DFID,DFID,12/01/2013,Hostile Environment Training ,East and Central Africa ,Pilgrims Group ,101630-101 ,"1,027.14",
DFID,DFID,13/01/2013,Air fares ,Western Asia and Stabilisation Division ,Supplier Name withheld ,101601-110 ,"3,690.14",
DFID,DFID,13/01/2013,Air fares ,Western Asia and Stabilisation Division ,Supplier Name withheld ,100011-110 ,593.01,
DFID,DFID,14/01/2013,Aid Programme - Joint programme contribution ,Policy Division ,WHO Human Reproduction Programme ,203324-103 ,"2,500,000.00",
DFID,DFID,14/01/2013,Research & Development costs ,Research and Evidence Division ,UNIVERSITY OF  OXFORD ,200425-101 ,"433,063.57",
DFID,DFID,14/01/2013,Aid Programme - Accountable Grant Payments ,Policy Division ,Rights and Resources Institute ,201724-117 ,"324,353.37",
DFID,DFID,14/01/2013,Technical and Advisory Services ,Western Asia and Stabilisation Division ,McKinsey & Co  Inc. UK ,203297-101 ,"134,065.00",
DFID,DFID,14/01/2013,Aid Programme - Accountable Grant Payments ,Policy Division ,ICAR (UK) ,200458-102 ,"125,000.00",
DFID,DFID,14/01/2013,Technical and Advisory Services ,Asia  Caribbean and Overseas Territories ,OPTIONS CONSULTANCY SERVICES LIMITED ,113963-101 ,"91,104.54",
DFID,DFID,14/01/2013,Aid Programme - Accountable Grant Payments ,West and Southern Africa ,CONCERN WORLDWIDE ,203445-102 ,"75,269.00",
DFID,DFID,14/01/2013,Aid Programme - Trust Funds contributions ,Middle East & North Africa Division (MENAD) ,IBRD HSBC T ,203397-101 ,"61,250.00",
DFID,DFID,14/01/2013,Hostile Environment Training ,Western Asia and Stabilisation Division ,GroundTruth Consulting ,202288-102 ,"56,376.00",Hostile Environment Awareness Training (HEAT) 2012/13
DFID,DFID,14/01/2013,Aid Programme - Challenge Fund payments ,Western Asia and Stabilisation Division ,Supplier Name withheld ,200898-104 ,"51,102.78",
DFID,DFID,14/01/2013,Professional member subscriptions ,Business Solutions Division Level ,GARTNERGROUP UK LTD ,200001-101 ,"81,240.00","Annual subscription (2013) to IT executives programme providing access to IT strategy, resources, advice and expert research for DFID use"
DFID,DFID,14/01/2013,Technical and Advisory Services ,East and Central Africa ,SOCIAL DEVELOPMENT DIRECT LTD ,200787-106 ,"29,062.24",
DFID,DFID,14/01/2013,Aid Programme - Challenge Fund payments ,Western Asia and Stabilisation Division ,Supplier Name withheld ,200898-104 ,"28,267.00",
DFID,DFID,14/01/2013,Technical and Advisory Services ,West and Southern Africa ,Pathfinder International - US ,202462-104 ,"28,009.58",
DFID,DFID,14/01/2013,Technical and Advisory Services ,East and Central Africa ,THE SAVE THE CHILDREN FUND ,201312-108 ,"16,797.00",
DFID,DFID,14/01/2013,Aid Programme - Accountable Grant Payments ,Research and Evidence Division ,INSTITUTE OF DEV  STUDIES UNIVER ,201841-101 ,"15,551.00",
DFID,DFID,14/01/2013,Technical and Advisory Services ,Asia  Caribbean and Overseas Territories ,OXFORD POLICY MANAGEMENT ,202083-101 ,"9,583.69",
DFID,DFID,14/01/2013,Technical and Advisory Services ,Non-Departmental Public Body ,NATIONAL AUDIT OFFICE ,203064-101 ,"9,206.90",
DFID,DFID,14/01/2013,Technical and Advisory Services ,Asia  Caribbean and Overseas Territories ,OPTIONS CONSULTANCY SERVICES LIMITED ,113963-101 ,"9,058.07",
DFID,DFID,14/01/2013,Technical and Advisory Services ,West and Southern Africa ,COFFEY INTERNATIONAL DEVELOPMENT LTD ,202493-102 ,"7,118.80",
DFID,DFID,14/01/2013,Electricity ,Human Resources Security & Facilities Division ,EDF ENERGY ,203717-101 ,"6,990.43",
DFID,DFID,14/01/2013,Technical and Advisory Services ,East and Central Africa ,Otieno Ayany (RW) ,202171-101 ,"5,080.55",
DFID,DFID,14/01/2013,Technical and Advisory Services ,Western Asia and Stabilisation Division ,Supplier Name withheld ,201023-104 ,"5,029.12",
DFID,DFID,14/01/2013,Technical and Advisory Services ,Western Asia and Stabilisation Division ,Ipsos MORI ,202491-104 ,"4,800.00",
DFID,DFID,14/01/2013,Contract & Agency Staff ,Business Solutions Division Level ,ALLEGIS GROUP LIMITED ,200001-101 ,"4,212.00",
DFID,DFID,14/01/2013,Air fares ,Western Asia and Stabilisation Division ,Corporate Travel Provider ,202112-101 ,"3,985.09",
DFID,DFID,14/01/2013,Technical and Advisory Services ,East and Central Africa ,LTS International Ltd. ,201866-106 ,"3,740.00",
DFID,DFID,14/01/2013,Office Equipment - Purchases ,Human Resources Security & Facilities Division ,ABBEY POLYTHENE LTD ,100187-101 ,"3,465.00",
DFID,DFID,14/01/2013,Air fares ,Western Asia and Stabilisation Division ,Corporate Travel Provider ,202112-101 ,"3,126.20",
DFID,DFID,14/01/2013,Air fares ,Top Management Group ,Corporate Travel Provider ,100232-105 ,"2,962.11",
DFID,DFID,14/01/2013,Recruitment costs ,Asia  Caribbean and Overseas Territories ,Eshna Management Services ,101603-101 ,"2,895.77",
DFID,DFID,14/01/2013,Air fares ,Policy Division ,Corporate Travel Provider ,100191-101 ,"2,876.99",
DFID,DFID,14/01/2013,Data Network - land lines ,Business Solutions Division Level ,KUBE NETWORKS LTD ,200002-130 ,"2,366.87",
DFID,DFID,14/01/2013,Air fares ,Conflict Humanitarian and Security Division ,Corporate Travel Provider ,100049-101 ,"2,346.39",
DFID,DFID,14/01/2013,Air fares ,Western Asia and Stabilisation Division ,Corporate Travel Provider ,101601-110 ,"1,923.30",
DFID,DFID,14/01/2013,Air fares ,East and Central Africa ,Corporate Travel Provider ,202315-110 ,"1,918.79",
DFID,DFID,14/01/2013,Air fares ,West and Southern Africa ,Supplier Name withheld ,101622-101 ,"1,898.89",
DFID,DFID,14/01/2013,Other Building Costs ,West and Southern Africa ,MJB Electrical Pvt Ltd ,100255-101 ,"1,846.34",
DFID,DFID,14/01/2013,Air fares ,Western Asia and Stabilisation Division ,Corporate Travel Provider ,100011-110 ,"1,793.48",
DFID,DFID,14/01/2013,Electricity ,West and Southern Africa ,ZESA ,101638-103 ,"1,769.91",
DFID,DFID,14/01/2013,Technical and Advisory Services ,East and Central Africa ,LTS International Ltd. ,201866-106 ,"1,711.00",
DFID,DFID,14/01/2013,Air fares ,Top Management Group ,Corporate Travel Provider ,100232-105 ,"1,680.99",
DFID,DFID,14/01/2013,Contract & Agency Staff ,Finance and Corporate Performance Division ,MICHAEL PAGE INTERNATIONAL RECRUITMENT LIMITED ,100201-101 ,"1,650.00",
DFID,DFID,14/01/2013,Generators & spares ,West and Southern Africa ,NP (SL) Ltd ,101629-101 ,"1,587.20",
DFID,DFID,14/01/2013,Contract & Agency Staff ,Finance and Corporate Performance Division ,MICHAEL PAGE INTERNATIONAL RECRUITMENT LIMITED ,100201-101 ,"1,513.32",
DFID,DFID,14/01/2013,Air fares ,Top Management Group ,Corporate Travel Provider ,100232-105 ,"1,388.30",
DFID,DFID,14/01/2013,Aid Programme - Accountable Grant Payments ,East and Central Africa ,Corporate Travel Provider ,202850-101 ,"1,387.70",
DFID,DFID,14/01/2013,Facilities Management payments ,Asia  Caribbean and Overseas Territories ,Firesec India Systems (P) Ltd. ,201689-105 ,"1,380.58",
DFID,DFID,14/01/2013,Air fares ,Communications Division ,Corporate Travel Provider ,100197-101 ,"1,307.99",
DFID,DFID,14/01/2013,Air fares ,East and Central Africa ,Corporate Travel Provider ,101634-101 ,"1,299.79",
DFID,DFID,14/01/2013,Air fares ,International Relations Division ,Corporate Travel Provider ,100240-102 ,"1,134.70",
DFID,DFID,14/01/2013,Air fares ,Research and Evidence Division ,Corporate Travel Provider ,202333-101 ,"1,133.69",
DFID,DFID,14/01/2013,Air fares ,West and Southern Africa ,Corporate Travel Provider ,101618-101 ,"1,117.90",
DFID,DFID,14/01/2013,Bank Charges/Services ,Finance and Corporate Performance Division , ,100008-101 ,"1,102.89",
DFID,DFID,14/01/2013,Air fares ,Western Asia and Stabilisation Division ,Corporate Travel Provider ,101601-110 ,"1,095.18",
DFID,DFID,14/01/2013,Uniforms ,Asia  Caribbean and Overseas Territories ,Style Tailors & Fabrics ,100025-101 ,"1,071.58",
DFID,DFID,14/01/2013,Air fares ,Top Management Group ,Corporate Travel Provider ,100232-102 ,"1,066.50",
DFID,DFID,14/01/2013,Air fares ,Top Management Group ,Corporate Travel Provider ,100232-102 ,"1,066.50",
DFID,DFID,14/01/2013,Air fares ,Top Management Group ,Corporate Travel Provider ,100232-103 ,"1,066.50",
DFID,DFID,14/01/2013,Air fares ,Top Management Group ,Corporate Travel Provider ,100232-102 ,977.75,
DFID,DFID,14/01/2013,Air fares ,Top Management Group ,Corporate Travel Provider ,100232-102 ,977.75,
DFID,DFID,14/01/2013,Air fares ,Top Management Group ,Corporate Travel Provider ,100232-103 ,977.75,
DFID,DFID,14/01/2013,Air fares ,Western Asia and Stabilisation Division ,Corporate Travel Provider ,202288-104 ,966.67,
DFID,DFID,14/01/2013,Air fares ,Policy Division ,Corporate Travel Provider ,202373-103 ,958.10,
DFID,DFID,14/01/2013,Repairs  Maint  Alter - Removal & waste disposal services ,Human Resources Security & Facilities Division ,SHANKS WASTE MANAGMENT LIMITED ,100106-101 ,955.74,
DFID,DFID,14/01/2013,Air fares ,West and Southern Africa ,Corporate Travel Provider ,101618-101 ,940.90,
DFID,DFID,14/01/2013,Air fares ,West and Southern Africa ,Corporate Travel Provider ,101618-101 ,940.90,
DFID,DFID,14/01/2013,Air fares ,Policy Division ,Corporate Travel Provider ,202373-103 ,938.65,
DFID,DFID,14/01/2013,Air fares ,Asia  Caribbean and Overseas Territories ,Corporate Travel Provider ,101611-101 ,929.45,
DFID,DFID,14/01/2013,Air fares ,Policy Division ,Corporate Travel Provider ,202373-103 ,923.86,
DFID,DFID,14/01/2013,Air fares ,Asia  Caribbean and Overseas Territories ,Corporate Travel Provider ,101605-101 ,917.25,
DFID,DFID,14/01/2013,Air fares ,East and Central Africa ,Corporate Travel Provider ,101628-101 ,911.35,
DFID,DFID,14/01/2013,Air fares ,International Finance Division ,Corporate Travel Provider ,202259-101 ,904.65,
DFID,DFID,14/01/2013,Air fares ,West and Southern Africa ,Lamar Travel Agency ,101629-101 ,895.91,
DFID,DFID,14/01/2013,Air fares ,Western Asia and Stabilisation Division ,Corporate Travel Provider ,101601-110 ,888.27,
DFID,DFID,14/01/2013,Hotels - Accommodation only ,Policy Division ,Recipient name withheld ,100191-101 ,874.11,
DFID,DFID,14/01/2013,Hotels - Accommodation only ,Western Asia and Stabilisation Division ,Corporate Travel Provider ,202288-104 ,862.85,
DFID,DFID,14/01/2013,Air fares ,West and Southern Africa ,Corporate Travel Provider ,100189-101 ,852.85,
DFID,DFID,14/01/2013,Air fares ,West and Southern Africa ,Corporate Travel Provider ,101613-101 ,830.14,
DFID,DFID,14/01/2013,Hotels - Accommodation only ,Finance and Corporate Performance Division ,Corporate Travel Provider ,202836-101 ,813.72,
DFID,DFID,14/01/2013,Air fares ,Internal Audit ,Corporate Travel Provider ,100121-101 ,809.06,
DFID,DFID,14/01/2013,Air fares ,Top Management Group ,Corporate Travel Provider ,100232-102 ,806.65,
DFID,DFID,14/01/2013,Air fares ,Top Management Group ,Corporate Travel Provider ,100232-102 ,806.65,
DFID,DFID,14/01/2013,Air fares ,Top Management Group ,Corporate Travel Provider ,100232-103 ,806.65,
DFID,DFID,14/01/2013,Air fares ,Western Asia and Stabilisation Division ,Corporate Travel Provider ,100020-101 ,806.65,
DFID,DFID,14/01/2013,Training - Travel & Subsistence ,West and Southern Africa ,Pilgrims Group ,100068-101 ,802.14,
DFID,DFID,14/01/2013,Air fares ,Research and Evidence Division ,Corporate Travel Provider ,202333-101 ,797.95,
DFID,DFID,14/01/2013,Air fares ,Western Asia and Stabilisation Division ,Corporate Travel Provider ,202288-104 ,793.61,
DFID,DFID,14/01/2013,Air fares ,Western Asia and Stabilisation Division ,Corporate Travel Provider ,101624-101 ,793.45,
DFID,DFID,14/01/2013,Air fares ,Western Asia and Stabilisation Division ,Corporate Travel Provider ,101624-101 ,793.45,
DFID,DFID,14/01/2013,Air fares ,International Relations Division ,Corporate Travel Provider ,100240-101 ,761.95,
DFID,DFID,14/01/2013,Repairs  Maint  Alter - Property & Constrct. Services ,West and Southern Africa ,WATERMATE PURIFICATION ZIMBABWE (PVT) LTD ,101638-103 ,749.69,
DFID,DFID,14/01/2013,Air fares ,Internal Audit ,Corporate Travel Provider ,100121-101 ,742.06,
DFID,DFID,14/01/2013,Air fares ,Western Asia and Stabilisation Division ,Corporate Travel Provider ,202288-106 ,736.39,
DFID,DFID,14/01/2013,Air fares ,Research and Evidence Division ,Corporate Travel Provider ,202334-101 ,733.55,
DFID,DFID,14/01/2013,Hotels - Accommodation only ,Asia  Caribbean and Overseas Territories ,Corporate Travel Provider ,101603-102 ,721.59,
DFID,DFID,14/01/2013,Air fares ,West and Southern Africa ,Corporate Travel Provider ,101631-101 ,703.29,
DFID,DFID,14/01/2013,Air fares ,Policy Division ,Corporate Travel Provider ,100274-109 ,699.60,
DFID,DFID,14/01/2013,Air fares ,Finance and Corporate Performance Division ,Corporate Travel Provider ,100008-101 ,699.50,
DFID,DFID,14/01/2013,Data Network - land lines ,Business Solutions Division Level ,Level 3 ,200002-117 ,698.94,
DFID,DFID,14/01/2013,Air fares ,Asia  Caribbean and Overseas Territories ,Corporate Travel Provider ,201739-101 ,691.01,
DFID,DFID,14/01/2013,Air fares ,Asia  Caribbean and Overseas Territories ,Corporate Travel Provider ,201739-101 ,689.04,
DFID,DFID,14/01/2013,Air fares ,Asia  Caribbean and Overseas Territories ,Corporate Travel Provider ,201739-101 ,689.04,
DFID,DFID,14/01/2013,Air fares ,International Finance Division ,Corporate Travel Provider ,202259-101 ,684.87,
DFID,DFID,14/01/2013,Air fares ,Western Asia and Stabilisation Division ,Corporate Travel Provider ,101601-110 ,670.67,
DFID,DFID,14/01/2013,Air fares ,Policy Division ,Corporate Travel Provider ,202373-103 ,670.65,
DFID,DFID,14/01/2013,Air fares ,East and Central Africa ,Recipient name withheld ,101625-102 ,669.22,
DFID,DFID,14/01/2013,Air fares ,West and Southern Africa ,Corporate Travel Provider ,101631-101 ,665.69,
DFID,DFID,14/01/2013,Air fares ,Research and Evidence Division ,Corporate Travel Provider ,202333-101 ,665.69,
DFID,DFID,14/01/2013,Air fares ,East and Central Africa ,Corporate Travel Provider ,101625-103 ,662.02,
DFID,DFID,14/01/2013,Air fares ,Finance and Corporate Performance Division ,Corporate Travel Provider ,100008-104 ,656.76,
DFID,DFID,14/01/2013,Air fares ,West and Southern Africa ,Supplier Name withheld ,101622-101 ,643.49,
DFID,DFID,14/01/2013,Hotels - Accommodation only ,Business Solutions Division Level ,Corporate Travel Provider ,200001-101 ,629.51,
DFID,DFID,14/01/2013,Air fares ,East and Central Africa ,Corporate Travel Provider ,101628-101 ,623.79,
DFID,DFID,14/01/2013,Air fares ,Asia  Caribbean and Overseas Territories ,Corporate Travel Provider ,101621-101 ,623.09,
DFID,DFID,14/01/2013,Air fares ,West and Southern Africa ,Corporate Travel Provider ,101620-101 ,610.50,
DFID,DFID,14/01/2013,Hotels - Accommodation only ,Asia  Caribbean and Overseas Territories ,Corporate Travel Provider ,202403-101 ,609.09,
DFID,DFID,14/01/2013,Air fares ,Asia  Caribbean and Overseas Territories ,Corporate Travel Provider ,201739-101 ,597.11,
DFID,DFID,14/01/2013,Air fares ,East and Central Africa ,Recipient name withheld ,101625-104 ,584.60,
DFID,DFID,14/01/2013,Cleaning Costs ,West and Southern Africa ,Yeane Enterprises ,101629-101 ,582.99,
DFID,DFID,14/01/2013,Air fares ,Western Asia and Stabilisation Division ,Corporate Travel Provider ,203350-101 ,578.09,
DFID,DFID,14/01/2013,Air fares ,Western Asia and Stabilisation Division ,Corporate Travel Provider ,203350-101 ,578.09,
DFID,DFID,14/01/2013,Mobile telephones & accessories ,West and Southern Africa ,ECONET ,101638-104 ,577.91,
DFID,DFID,14/01/2013,Air fares ,Western Asia and Stabilisation Division ,Corporate Travel Provider ,202288-104 ,576.09,
DFID,DFID,14/01/2013,Travel documentation costs ,East and Central Africa ,Recipient name withheld ,101625-102 ,570.72,
DFID,DFID,14/01/2013,Vehicle Petrol & Oil ,East and Central Africa ,TOTAL Uganda Ltd ,101635-101 ,570.50,
DFID,DFID,14/01/2013,Air fares ,Conflict Humanitarian and Security Division ,Corporate Travel Provider ,100049-101 ,566.65,
DFID,DFID,14/01/2013,Hotels - Accommodation only ,East and Central Africa ,Harmony  Hotel ,202991-101 ,563.99,
DFID,DFID,14/01/2013,Electricity ,East and Central Africa ,Recipient name withheld ,101625-102 ,561.68,
DFID,DFID,14/01/2013,Air fares ,Western Asia and Stabilisation Division ,Corporate Travel Provider ,202288-104 ,556.41,
DFID,DFID,14/01/2013,Air fares ,Western Asia and Stabilisation Division ,Corporate Travel Provider ,202288-104 ,556.41,
DFID,DFID,14/01/2013,Air fares ,Western Asia and Stabilisation Division ,Corporate Travel Provider ,101601-110 ,551.68,
DFID,DFID,14/01/2013,Travel documentation costs ,West and Southern Africa ,Corporate Travel Provider ,101622-101 ,544.84,
DFID,DFID,14/01/2013,Vehicle Repairs & Maintenance ,Asia  Caribbean and Overseas Territories ,Navana Toyota 3S Center ,100025-101 ,516.48,
DFID,DFID,14/01/2013,Air fares ,Internal Audit ,Corporate Travel Provider ,100121-101 ,505.70,
DFID,DFID,14/01/2013,Cleaning Costs ,West and Southern Africa ,Yeane Enterprises ,101629-101 ,503.94,
DFID,DFID,15/01/2013,Aid Programme - Core contributions ,International Finance Division ,IBRD HSBC T ,200763-101 ,"12,450,000.00",
DFID,DFID,15/01/2013,Aid Programme - Other Financial Aid to Government ,West and Southern Africa ,GH GIFMIS PROJECT  GHANA ,201584-101 ,"3,120,500.40",
DFID,DFID,15/01/2013,Technical and Advisory Services ,West and Southern Africa ,MALARIA CONSORTIUM ,104223-101 ,"901,572.00",
DFID,DFID,15/01/2013,Technical and Advisory Services ,Policy Division ,LONDON SCHOOL OF ECONOMICS AND POLITICAL SCIENCE ,114188-101 ,"306,963.00",
DFID,DFID,15/01/2013,Technical and Advisory Services ,Asia  Caribbean and Overseas Territories ,PRICEWATERHOUSECOOPERS PRIVATE LTD ,113287-102 ,"240,020.86",
DFID,DFID,15/01/2013,Technical and Advisory Services ,Policy Division ,LONDON SCHOOL OF ECONOMICS AND POLITICAL SCIENCE ,114188-101 ,"212,734.80",
DFID,DFID,15/01/2013,Aid Programme - Accountable Grant Payments ,Policy Division ,World Wide Web Foundation ,203318-101 ,"137,919.33",
DFID,DFID,15/01/2013,Technical and Advisory Services ,Asia  Caribbean and Overseas Territories ,CAPITA HELM CORPORATION LTD ,107448-101 ,"107,578.00",
DFID,DFID,15/01/2013,Technical and Advisory Services ,Western Asia and Stabilisation Division ,Supplier Name withheld ,201000-102 ,"100,638.10",
DFID,DFID,15/01/2013,Aid Programme - Accountable Grant Payments ,Asia  Caribbean and Overseas Territories ,ACTION AID INTERNATIONAL ,203400-104 ,"89,936.00",
DFID,DFID,15/01/2013,Hardware - networking equipment ,Human Resources Security & Facilities Division ,KCOM Group Plc ,203716-101 ,"68,340.00",
DFID,DFID,15/01/2013,Technical and Advisory Services ,Western Asia and Stabilisation Division ,Supplier Name withheld ,201000-102 ,"57,958.53",
DFID,DFID,15/01/2013,Technical and Advisory Services ,East and Central Africa ,ADAM SMITH INTERNATIONAL  LTD ,200221-107 ,"38,188.31",
DFID,DFID,15/01/2013,Technical and Advisory Services ,Research and Evidence Division ,COFFEY INTERNATIONAL DEVELOPMENT LTD ,203193-101 ,"27,165.60",
DFID,DFID,15/01/2013,Repairs  Maint  Alter - Property & Constrct. Services ,West and Southern Africa ,Lilleker Bros (Nigeria) Ltd ,100153-101 ,"27,053.77",
DFID,DFID,15/01/2013,Hardware -Laptop PCs ,Business Solutions Division Level ,EQUANET LTD ,200003-154 ,"25,860.00",
DFID,DFID,15/01/2013,Technical and Advisory Services ,East and Central Africa ,KPMG EAST AFRICA LTD ,201866-109 ,"23,380.54",
DFID,DFID,15/01/2013,Technical and Advisory Services ,Asia  Caribbean and Overseas Territories ,MAXWELL STAMP PLC ,107370-101 ,"22,110.27",
DFID,DFID,15/01/2013,Technical and Advisory Services ,Human Resources Security & Facilities Division ,Healix International Limited (Fees) ,202423-101 ,"16,706.28",
DFID,DFID,15/01/2013,Technical and Advisory Services ,Policy Division ,PATH ,202674-101 ,"13,126.75",
DFID,DFID,15/01/2013,Technical and Advisory Services ,Asia  Caribbean and Overseas Territories ,OPTIONS CONSULTANCY SERVICES LIMITED ,113963-101 ,"12,982.66",
DFID,DFID,15/01/2013,Training - Course Fees ,West and Southern Africa ,Pilgrims Group ,101610-101 ,"10,259.43",
DFID,DFID,15/01/2013,Technical and Advisory Services ,Western Asia and Stabilisation Division ,Supplier Name withheld ,202054-102 ,"10,211.53",
DFID,DFID,15/01/2013,Facilities Management payments ,East and Central Africa ,WESTBURY ESTATE SERVICES LTD ,101634-101 ,"9,520.00",
DFID,DFID,15/01/2013,Technical and Advisory Services ,East and Central Africa ,SAANA CONSULTING LTD ,200171-104 ,"9,244.32",
DFID,DFID,15/01/2013,Technical and Advisory Services ,East and Central Africa ,KPMG EAST AFRICA LTD ,201866-109 ,"8,281.54",
DFID,DFID,15/01/2013,Technical and Advisory Services ,West and Southern Africa ,HTSPE LTD ,202345-103 ,"6,620.67",
DFID,DFID,15/01/2013,Technical and Advisory Services ,International Finance Division ,INSPIRIS ,111549-106 ,"6,000.00",
DFID,DFID,15/01/2013,Other rentals ,Western Asia and Stabilisation Division ,Supplier Name withheld ,100011-110 ,"5,909.98",
DFID,DFID,15/01/2013,Technical and Advisory Services ,West and Southern Africa ,Eva Oberg ,103269-101 ,"5,803.09",
DFID,DFID,15/01/2013,Research & Development costs ,Research and Evidence Division ,THE UNIVERSITY OF YORK ,201642-101 ,"5,700.00",
DFID,DFID,15/01/2013,Medical/Health Services ,West and Southern Africa ,HYGEIA HMO Ltd ,101622-101 ,"5,491.87",
DFID,DFID,15/01/2013,Technical and Advisory Services ,Asia  Caribbean and Overseas Territories ,TURNER & TOWNSEND ,100114-104 ,"5,157.90",
DFID,DFID,15/01/2013,Contract & Agency Staff ,Business Solutions Division Level ,ALLEGIS GROUP LIMITED ,200001-101 ,"5,148.00",
DFID,DFID,15/01/2013,Medical/Health Services ,West and Southern Africa ,HYGEIA HMO Ltd ,100152-101 ,"4,142.99",
DFID,DFID,15/01/2013,Repairs  Maint  Alter - Removal & waste disposal services ,Human Resources Security & Facilities Division ,BYWATERS ,100187-101 ,"3,045.74",
DFID,DFID,15/01/2013,Technical and Advisory Services ,West and Southern Africa ,Erika Schutze ,202536-103 ,"3,007.76",
DFID,DFID,15/01/2013,Technical and Advisory Services ,Western Asia and Stabilisation Division ,Supplier Name withheld ,203309-103 ,"2,975.00",
DFID,DFID,15/01/2013,Technical and Advisory Services ,Policy Division ,Suncity Travels and Tours ,203608-106 ,"2,302.02",
DFID,DFID,15/01/2013,Data network- remote working ,Business Solutions Division Level ,IPNX Nigeria Ltd ,200002-121 ,"1,754.65",
DFID,DFID,15/01/2013,Training - Course Fees ,International Relations Division ,GATEWAY LANGUAGE SERVICES LTD ,100086-101 ,"1,490.62",
DFID,DFID,15/01/2013,Telephone Usage & services ,East and Central Africa ,MTN RWANDACELL ,101628-101 ,"1,408.98",
DFID,DFID,15/01/2013,Training - Course Fees ,Business Solutions Division Level ,QA Limited ,200001-101 ,"1,225.00",
DFID,DFID,15/01/2013,Oil - Other Utilities ,East and Central Africa ,British High Commission(Tsh) ,101634-101 ,741.90,
DFID,DFID,15/01/2013,Cleaning Costs ,West and Southern Africa ,Recipient name withheld ,101610-101 ,729.43,
DFID,DFID,15/01/2013,Gas ,East and Central Africa ,COFELY ,101628-101 ,704.51,
DFID,DFID,15/01/2013,Furniture & Fittings ,West and Southern Africa ,Pekolyn Tech. Services ,101622-101 ,694.32,
DFID,DFID,15/01/2013,Contract & Agency Staff ,Finance and Corporate Performance Division ,MICHAEL PAGE INTERNATIONAL RECRUITMENT LIMITED ,100201-101 ,690.01,
DFID,DFID,15/01/2013,Facilities Management payments ,East and Central Africa ,THERMOCOOL UGANDA LIMITED ,101635-101 ,672.74,
DFID,DFID,15/01/2013,Telephone Usage & services ,East and Central Africa ,RWANDATEL SA ,101628-101 ,575.17,
DFID,DFID,15/01/2013,Travel documentation costs ,East and Central Africa ,Sion McGeever (Tsh) ,101634-101 ,555.57,
DFID,DFID,15/01/2013,Furniture & Fittings ,West and Southern Africa ,Pekolyn Tech. Services ,100152-101 ,523.78,
DFID,DFID,15/01/2013,Data Network - land lines ,Business Solutions Division Level ,Level 3 ,200002-117 ,516.00,
DFID,DFID,16/01/2013,Aid Programme - Accountable Grant Payments ,Middle East & North Africa Division (MENAD) ,OXFAM INSTITUTIONAL INCOME ACCOUNT ,203119-102 ,"3,310,290.00",
DFID,DFID,16/01/2013,Aid Programme - Partnership Programme Arrangements ,Policy Division ,CAFOD ,202669-101 ,"1,044,410.25",
DFID,DFID,16/01/2013,Aid Programme - Humanitarian Material Relief Assistance and Services ,West and Southern Africa ,World Food  Programme ,203744-101 ,"1,000,000.00",
DFID,DFID,16/01/2013,Aid Programme - Accountable Grant Payments ,East and Central Africa ,OXFAM ,203183-103 ,"970,734.00",
DFID,DFID,16/01/2013,Technical and Advisory Services ,Communications Division ,VOLUNTARY SERVICE OVERSEAS ,202883-101 ,"904,219.20",
DFID,DFID,16/01/2013,Subscriptions ,Research and Evidence Division ,Elsevier B.V. ,202348-103 ,"25,186.67",Annual subscription (2013) for online indexing database for use by DFID advisers
DFID,DFID,16/01/2013,Technical and Advisory Services ,West and Southern Africa ,ADAM SMITH INTERNATIONAL ,201139-101 ,"441,928.23",
DFID,DFID,16/01/2013,Aid Programme - Partnership Programme Arrangements ,Policy Division ,INTERNATIONAL ALERT ,202687-101 ,"434,790.00",
DFID,DFID,16/01/2013,Aid Programme - Accountable Grant Payments ,Western Asia and Stabilisation Division ,Supplier Name withheld ,201023-111 ,"397,061.00",
DFID,DFID,16/01/2013,Technical and Advisory Services ,West and Southern Africa ,Abt Associates ,202342-102 ,"316,851.78",
DFID,DFID,16/01/2013,Aid Programme - Humanitarian Material Relief Assistance and Services ,East and Central Africa ,UN OCHA ,202237-101 ,"300,000.00",
DFID,DFID,16/01/2013,Aid Programme - Joint programme contribution ,Research and Evidence Division ,MET OFFICE ,200823-101 ,"270,183.34",
DFID,DFID,16/01/2013,Aid Programme - Voluntary contributions ,Research and Evidence Division , OECD ,200300-101 ,"250,000.00",
DFID,DFID,16/01/2013,Aid Programme - Accountable Grant Payments ,International Finance Division ,Results for Development Institute ,203314-101 ,"187,355.00",
DFID,DFID,16/01/2013,Repairs  Maint  Alter - Property & Constrct. Services ,East and Central Africa ,DMS AFRICA ,202594-101 ,"28,979.44",Security film installed on windows of Secure Staff Accommodation and DFID office premises - South Sudan
DFID,DFID,16/01/2013,Technical and Advisory Services ,Research and Evidence Division ,AFRICAN CENTRE FOR TECHNOLOGY STUDIES ,112080-101 ,"132,684.00",
DFID,DFID,16/01/2013,Research & Development costs ,West and Southern Africa ,HEALTH PARTNERS INTERNATIONAL ,200497-102 ,"126,217.92",
DFID,DFID,16/01/2013,Aid Programme - Humanitarian Material Relief Assistance and Services ,Middle East & North Africa Division (MENAD) ,International Health Partners (UK) Ltd ,203783-102 ,"100,000.00",
DFID,DFID,16/01/2013,Technical and Advisory Services ,Asia  Caribbean and Overseas Territories ,CHRISTIAN AID ,113311-101 ,"94,181.99",
DFID,DFID,16/01/2013,Technical and Advisory Services ,Asia  Caribbean and Overseas Territories ,OPTIONS CONSULTANCY SERVICES LIMITED ,113963-101 ,"84,391.39",
DFID,DFID,16/01/2013,Technical and Advisory Services ,Asia  Caribbean and Overseas Territories ,OPTIONS CONSULTANCY SERVICES LIMITED ,113963-101 ,"79,116.92",
DFID,DFID,16/01/2013,Technical and Advisory Services ,Asia  Caribbean and Overseas Territories ,OPTIONS CONSULTANCY SERVICES LIMITED ,113963-101 ,"79,116.92",
DFID,DFID,16/01/2013,Technical and Advisory Services ,Asia  Caribbean and Overseas Territories ,OPTIONS CONSULTANCY SERVICES LIMITED ,113963-101 ,"79,116.92",
DFID,DFID,16/01/2013,Aid Programme - Accountable Grant Payments ,International Relations Division ,UNESCO ,202791-101 ,"75,933.69",
DFID,DFID,16/01/2013,Secure Staff Accommodation ,East and Central Africa ,Foreign & Commonwealth Office ,101633-101 ,"41,154.83",12 months Secure Staff Accommodation (Dec 12 - Dec 13) - Sudan
DFID,DFID,16/01/2013,Research & Development costs ,Research and Evidence Division ,Center for Strategic & International Studies  Inc. ,203239-101 ,"71,419.43",
DFID,DFID,16/01/2013,Technical and Advisory Services ,Asia  Caribbean and Overseas Territories ,OXFORD POLICY MANAGEMENT ,201375-105 ,"71,210.23",
DFID,DFID,16/01/2013,Aid Programme - Accountable Grant Payments ,West and Southern Africa ,Ghana Center for Democratic Development ,202477-103 ,"31,757.71",
DFID,DFID,16/01/2013,Electricity ,Human Resources Security & Facilities Division ,EDF ENERGY ,100187-101 ,"23,593.73",
DFID,DFID,16/01/2013,Technical and Advisory Services ,Middle East & North Africa Division (MENAD) ,Integrity Research and Consultancy ,203702-101 ,"20,000.00",
DFID,DFID,16/01/2013,Technical and Advisory Services ,Asia  Caribbean and Overseas Territories ,Foreign & Commonwealth Office ,200581-117 ,"19,931.92",
DFID,DFID,16/01/2013,Aid Programme - Programme Refunds ,Central Department Division ,Asian Development Bank (USA) ,202447-101 ,"19,293.91",
DFID,DFID,16/01/2013,Secure Staff Accommodation ,East and Central Africa ,Foreign & Commonwealth Office ,101630-101 ,"17,401.64",
DFID,DFID,16/01/2013,Technical and Advisory Services ,Policy Division ,PATH ,202674-101 ,"16,503.19",
DFID,DFID,16/01/2013,Secure Staff Accommodation ,Western Asia and Stabilisation Division ,Foreign & Commonwealth Office ,201699-101 ,"14,965.39",
DFID,DFID,16/01/2013,Facilities Management payments ,Asia  Caribbean and Overseas Territories ,CB RICHARD ELLIS SOUTH ASIA PVT LTD ,201689-105 ,"13,387.44",
DFID,DFID,16/01/2013,Technical and Advisory Services ,International Relations Division ,Data GISconsulting Sh.P.K. ,202961-101 ,"12,216.39",
DFID,DFID,16/01/2013,Technical and Advisory Services ,Asia  Caribbean and Overseas Territories ,INDIA DEVELOPMENT FOUNDATION ,108027-101 ,"12,014.41",
DFID,DFID,16/01/2013,Secure Staff Accommodation ,East and Central Africa ,Supplier Name withheld ,101635-101 ,"11,201.00",
DFID,DFID,16/01/2013,Technical and Advisory Services ,West and Southern Africa ,Camco Advisory Services Kenya Ltd ,202536-103 ,"10,872.18",
DFID,DFID,16/01/2013,Technical and Advisory Services ,Business Solutions Division Level ,OPIN SYSTEMS LIMITED ,200002-151 ,"10,010.56",
DFID,DFID,16/01/2013,Research & Development costs ,Research and Evidence Division ,Humanitarian Outcomes Limited ,203727-101 ,"10,000.00",
DFID,DFID,16/01/2013,Oil - Other Utilities ,East and Central Africa ,TAAM Petroleum Ltd(US$) ,202594-101 ,"9,259.49",
DFID,DFID,16/01/2013,Technical and Advisory Services ,Asia  Caribbean and Overseas Territories ,INDIA DEVELOPMENT FOUNDATION ,108027-101 ,"8,581.72",
DFID,DFID,16/01/2013,Repairs  Maint  Alter - Property & Constrct. Services ,East and Central Africa ,DMS AFRICA ,202586-101 ,"7,244.86",
DFID,DFID,16/01/2013,Technical and Advisory Services ,Asia  Caribbean and Overseas Territories ,Pricewaterhousecoopers Pvt. Ltd. ,113963-101 ,"6,883.78",
DFID,DFID,16/01/2013,Technical and Advisory Services ,Business Solutions Division Level ,IRW Systems ,200005-111 ,"6,696.00",
DFID,DFID,16/01/2013,Technical and Advisory Services ,Asia  Caribbean and Overseas Territories ,Foreign & Commonwealth Office ,201942-101 ,"6,206.35",
DFID,DFID,16/01/2013,Repairs  Maint  Alter - Property & Constrct. Services ,East and Central Africa ,Foreign & Commonwealth Office ,100136-101 ,"6,030.39",
DFID,DFID,16/01/2013,Contract & Agency Staff ,Business Solutions Division Level ,OPIN SYSTEMS LIMITED ,200001-101 ,"5,712.00",
DFID,DFID,16/01/2013,Contract & Agency Staff ,Business Solutions Division Level ,Networkers Recruitment Services Ltd ,200001-101 ,"5,627.76",
DFID,DFID,16/01/2013,Air fares ,Asia  Caribbean and Overseas Territories ,Foreign & Commonwealth Office ,202403-101 ,"5,333.80",
DFID,DFID,16/01/2013,Computer software maintenance ,Business Solutions Division Level ,CESG ,200002-201 ,"5,258.40",
DFID,DFID,16/01/2013,Legal costs ,West and Southern Africa ,Marriott Davies Yapp LLP ,203000-101 ,"4,854.56",
DFID,DFID,16/01/2013,Air fares ,East and Central Africa ,WFP Sudan Juba Sub Imprest(US$) ,202594-101 ,"4,841.71",
DFID,DFID,16/01/2013,Secure Staff Accommodation ,East and Central Africa ,Foreign & Commonwealth Office ,200352-101 ,"4,747.31",
DFID,DFID,16/01/2013,Technical and Advisory Services ,Asia  Caribbean and Overseas Territories ,Foreign & Commonwealth Office ,201942-101 ,"4,670.84",
DFID,DFID,16/01/2013,Air fares ,Asia  Caribbean and Overseas Territories ,Foreign & Commonwealth Office ,101605-101 ,"4,601.86",
DFID,DFID,16/01/2013,Secure Staff Accommodation ,East and Central Africa ,Foreign & Commonwealth Office ,200352-101 ,"4,247.60",
DFID,DFID,16/01/2013,Courier & Bag Services ,East and Central Africa ,Foreign & Commonwealth Office ,202586-101 ,"4,245.02",
DFID,DFID,16/01/2013,Technical and Advisory Services ,Asia  Caribbean and Overseas Territories ,Dinh Xuan Lam ,200608-101 ,"4,155.38",
DFID,DFID,16/01/2013,Technical and Advisory Services ,Human Resources Security & Facilities Division ,BRUTON KNOWLES ,100187-101 ,"4,064.40",
DFID,DFID,16/01/2013,Legal costs ,Asia  Caribbean and Overseas Territories ,Marriott Davies Yapp LLP ,202083-101 ,"3,654.30",
DFID,DFID,16/01/2013,Technical and Advisory Services ,East and Central Africa ,Byenkya Julius Atwooki ,200787-108 ,"3,101.36",
DFID,DFID,16/01/2013,Technical and Advisory Services ,Research and Evidence Division ,Burt Perrin ,201014-102 ,"3,100.00",
DFID,DFID,16/01/2013,Air fares ,Asia  Caribbean and Overseas Territories ,Foreign & Commonwealth Office ,200581-115 ,"2,953.94",
DFID,DFID,16/01/2013,Legal costs ,Policy Division ,Marriott Davies Yapp LLP ,201733-109 ,"2,943.75",
DFID,DFID,16/01/2013,Training - Travel & Subsistence ,Asia  Caribbean and Overseas Territories ,Foreign & Commonwealth Office ,202403-101 ,"2,874.35",
DFID,DFID,16/01/2013,Technical and Advisory Services ,West and Southern Africa , Damian Kofi Mereku ,103269-101 ,"2,851.66",
DFID,DFID,16/01/2013,Technical and Advisory Services ,West and Southern Africa ,Foreign & Commonwealth Office ,104229-101 ,"2,771.79",
DFID,DFID,16/01/2013,Travel - Subsistence ,Asia  Caribbean and Overseas Territories ,Foreign & Commonwealth Office ,200581-115 ,"2,585.34",
DFID,DFID,16/01/2013,Repairs  Maint  Alter - Property & Constrct. Services ,East and Central Africa ,DMS AFRICA ,202594-101 ,"2,551.73",
DFID,DFID,16/01/2013,Travel - Subsistence ,Asia  Caribbean and Overseas Territories ,Foreign & Commonwealth Office ,200581-115 ,"2,501.74",
DFID,DFID,16/01/2013,Other Admin Costs ,West and Southern Africa ,Foreign & Commonwealth Office ,101631-101 ,"2,454.71",
DFID,DFID,16/01/2013,Travel - Subsistence ,Asia  Caribbean and Overseas Territories ,Foreign & Commonwealth Office ,200581-115 ,"2,382.86",
DFID,DFID,16/01/2013,Computer hardware maintenance ,Business Solutions Division Level ,Rufus Leonard Ltd ,200002-196 ,"2,316.00",
DFID,DFID,16/01/2013,Oil - Other Utilities ,East and Central Africa ,TAAM Petroleum Ltd(US$) ,202586-101 ,"2,314.87",
DFID,DFID,16/01/2013,Travel - Subsistence ,Asia  Caribbean and Overseas Territories ,Foreign & Commonwealth Office ,200581-115 ,"2,302.49",
DFID,DFID,16/01/2013,Print Services ,Asia  Caribbean and Overseas Territories ,Foreign & Commonwealth Office ,200581-117 ,"2,275.13",
DFID,DFID,16/01/2013,Technical and Advisory Services ,Asia  Caribbean and Overseas Territories ,Foreign & Commonwealth Office ,202832-101 ,"2,219.54",
DFID,DFID,16/01/2013,Mobile telephones & accessories ,Middle East & North Africa Division (MENAD) ,Foreign & Commonwealth Office ,201705-101 ,"2,143.49",
DFID,DFID,16/01/2013,Travel - Subsistence ,Asia  Caribbean and Overseas Territories ,Foreign & Commonwealth Office ,200581-115 ,"2,125.55",
DFID,DFID,16/01/2013,Travel - Subsistence ,Asia  Caribbean and Overseas Territories ,Foreign & Commonwealth Office ,200581-115 ,"2,120.44",
DFID,DFID,16/01/2013,Travel - Subsistence ,Asia  Caribbean and Overseas Territories ,Foreign & Commonwealth Office ,200581-115 ,"2,074.53",
DFID,DFID,16/01/2013,Technical and Advisory Services ,Business Solutions Division Level ,OPIN SYSTEMS LIMITED ,200001-101 ,"1,920.00",
DFID,DFID,16/01/2013,Technical and Advisory Services ,Asia  Caribbean and Overseas Territories ,Foreign & Commonwealth Office ,202832-101 ,"1,900.29",
DFID,DFID,16/01/2013,Technical and Advisory Services ,East and Central Africa ,Foreign & Commonwealth Office ,100137-101 ,"1,900.00",
DFID,DFID,16/01/2013,Technical and Advisory Services ,East and Central Africa ,Foreign & Commonwealth Office ,100218-101 ,"1,900.00",
DFID,DFID,16/01/2013,Hotels - Accommodation only ,Western Asia and Stabilisation Division ,Foreign & Commonwealth Office ,201699-101 ,"1,786.68",
DFID,DFID,16/01/2013,Cleaning Costs ,West and Southern Africa ,Foreign & Commonwealth Office ,101631-101 ,"1,720.62",
DFID,DFID,16/01/2013,Technical and Advisory Services ,Western Asia and Stabilisation Division ,Supplier Name withheld ,201023-104 ,"1,719.85",
DFID,DFID,16/01/2013,Vehicle Repairs & Maintenance ,Middle East & North Africa Division (MENAD) ,Foreign & Commonwealth Office ,100303-101 ,"1,709.04",
DFID,DFID,16/01/2013,Training - Course Fees ,West and Southern Africa ,inlingua - Centro Suiço Línguas  Lda ,100148-101 ,"1,701.21",
DFID,DFID,16/01/2013,Contract & Agency Staff ,Finance and Corporate Performance Division ,MICHAEL PAGE INTERNATIONAL RECRUITMENT LIMITED ,100201-101 ,"1,650.00",
DFID,DFID,16/01/2013,Generators & spares ,West and Southern Africa ,NP (SL) Ltd ,101629-101 ,"1,593.51",
DFID,DFID,16/01/2013,Generators & spares ,West and Southern Africa ,NP (SL) Ltd ,100214-101 ,"1,593.51",
DFID,DFID,16/01/2013,Gas ,Middle East & North Africa Division (MENAD) ,Foreign & Commonwealth Office ,100303-101 ,"1,501.45",
DFID,DFID,16/01/2013,Electricity ,Western Asia and Stabilisation Division ,Foreign & Commonwealth Office ,101624-101 ,"1,384.68",
DFID,DFID,16/01/2013,Vehicle Petrol & Oil ,East and Central Africa ,TAAM Petroleum Ltd(US$) ,202594-101 ,"1,359.05",
DFID,DFID,16/01/2013,Travel - Subsistence ,Asia  Caribbean and Overseas Territories ,Foreign & Commonwealth Office ,200581-115 ,"1,322.24",
DFID,DFID,16/01/2013,Technical and Advisory Services ,Research and Evidence Division ,Ian C Davies Conseil Inc ,201014-102 ,"1,248.00",
DFID,DFID,16/01/2013,Air fares ,Asia  Caribbean and Overseas Territories ,Foreign & Commonwealth Office ,200581-117 ,"1,213.46",
DFID,DFID,16/01/2013,Furniture & Fittings ,West and Southern Africa ,Foreign & Commonwealth Office ,101631-101 ,"1,203.64",
DFID,DFID,16/01/2013,Training - Course Fees ,East and Central Africa ,CIPD ENTERPRISES LIMITED ,100227-101 ,"1,194.00",
DFID,DFID,16/01/2013,Air fares ,Middle East & North Africa Division (MENAD) ,Foreign & Commonwealth Office ,201701-101 ,"1,181.24",
DFID,DFID,16/01/2013,Gas ,Middle East & North Africa Division (MENAD) ,Foreign & Commonwealth Office ,201705-101 ,"1,163.63",
DFID,DFID,16/01/2013,Other travel costs ,Middle East & North Africa Division (MENAD) ,Foreign & Commonwealth Office ,100303-101 ,"1,152.04",
DFID,DFID,16/01/2013,Generators & spares ,West and Southern Africa ,Mahmoud Sabrah (SL) ,101629-101 ,"1,014.08",
DFID,DFID,16/01/2013,Conferences  Seminars & Meeting/Event Resource ,Asia  Caribbean and Overseas Territories ,Foreign & Commonwealth Office ,100084-101 ,983.18,
DFID,DFID,16/01/2013,Travel - Subsistence ,Western Asia and Stabilisation Division ,Foreign & Commonwealth Office ,101624-101 ,947.38,
DFID,DFID,16/01/2013,Technical and Advisory Services ,Asia  Caribbean and Overseas Territories ,Foreign & Commonwealth Office ,201942-101 ,941.88,
DFID,DFID,16/01/2013,Office Supplies ,West and Southern Africa ,Foreign & Commonwealth Office ,101631-101 ,939.30,
DFID,DFID,16/01/2013,Repairs  Maint  Alter - Removal & waste disposal services ,Human Resources Security & Facilities Division ,SHANKS WASTE MANAGMENT LIMITED ,100106-101 ,890.23,
DFID,DFID,16/01/2013,Travel - Subsistence ,Middle East & North Africa Division (MENAD) ,Foreign & Commonwealth Office ,100307-101 ,868.63,
DFID,DFID,16/01/2013,Air fares ,Asia  Caribbean and Overseas Territories ,Foreign & Commonwealth Office ,101605-101 ,855.52,
DFID,DFID,16/01/2013,Reproduction & Printing Materials ,Human Resources Security & Facilities Division ,INCEPTION BUSINESS TECHNOLOGY LTD ,100187-101 ,828.60,
DFID,DFID,16/01/2013,Hotels - Accommodation only ,Asia  Caribbean and Overseas Territories ,Recipient name withheld ,101603-102 ,828.00,
DFID,DFID,16/01/2013,other information and communication technologies ,East and Central Africa ,RCS Radio & Satellite Communication Ltd(Local) ,202594-101 ,785.54,
DFID,DFID,16/01/2013,Electricity ,Western Asia and Stabilisation Division ,Foreign & Commonwealth Office ,101624-101 ,727.28,
DFID,DFID,16/01/2013,Hotels - Accommodation only ,West and Southern Africa ,Ryalls Hotel ,101618-101 ,690.41,
DFID,DFID,16/01/2013,Facilities Management payments ,Asia  Caribbean and Overseas Territories ,KMAC Environmental Services Pvt. Ltd. ,201689-105 ,666.61,
DFID,DFID,16/01/2013,Technical and Advisory Services ,West and Southern Africa ,Foreign & Commonwealth Office ,101622-101 ,663.60,
DFID,DFID,16/01/2013,Hotels - Accommodation only ,Middle East & North Africa Division (MENAD) ,Foreign & Commonwealth Office ,201705-101 ,648.73,
DFID,DFID,16/01/2013,Telephone Usage & services ,Western Asia and Stabilisation Division ,ABICA ,100185-101 ,648.00,
DFID,DFID,16/01/2013,Cleaning Costs ,Middle East & North Africa Division (MENAD) ,Foreign & Commonwealth Office ,100303-101 ,636.49,
DFID,DFID,16/01/2013,Furniture & Fittings ,West and Southern Africa ,Game Maputo ,100148-101 ,605.31,
DFID,DFID,16/01/2013,Hotels - Accommodation only ,Western Asia and Stabilisation Division ,Foreign & Commonwealth Office ,201699-101 ,589.44,
DFID,DFID,16/01/2013,Air fares ,Research and Evidence Division ,Foreign & Commonwealth Office ,100039-103 ,558.67,
DFID,DFID,16/01/2013,Subscriptions ,Communications Division ,THE PRESS ASSOCIATION ,100197-101 ,558.07,
DFID,DFID,16/01/2013,Vehicle Repairs & Maintenance ,East and Central Africa ,AFS INTERNATIONAL ,100082-101 ,551.39,
DFID,DFID,16/01/2013,Training - Course Fees ,East and Central Africa ,Hilton International Hotel ,100082-101 ,547.30,
DFID,DFID,16/01/2013,Office Supplies ,Asia  Caribbean and Overseas Territories ,Foreign & Commonwealth Office ,101615-101 ,546.85,
DFID,DFID,16/01/2013,Office Supplies ,East and Central Africa ,JIT Beverages ,202594-101 ,529.63,
DFID,DFID,16/01/2013,Gas ,Middle East & North Africa Division (MENAD) ,Foreign & Commonwealth Office ,201705-101 ,514.08,
DFID,DFID,16/01/2013,Gas ,Middle East & North Africa Division (MENAD) ,Foreign & Commonwealth Office ,201705-101 ,502.66,
DFID,DFID,16/01/2013,Travel - Subsistence ,Asia  Caribbean and Overseas Territories ,Foreign & Commonwealth Office ,200581-115 ,501.70,
DFID,DFID,17/01/2013,Technical and Advisory Services ,Western Asia and Stabilisation Division ,Lou Perrotta ,203336-101 ,"7,503.65",
DFID,DFID,17/01/2013,Aid Programme - Contributions to Debt Relief ,International Finance Division ,AFRICAN  DEVELOPMENT BANK GROUP ,110990-101 ,"10,232,307.80",
DFID,DFID,17/01/2013,Aid Programme - Core contributions ,Conflict Humanitarian and Security Division , UNHCR ,202458-101 ,"10,000,000.00",
DFID,DFID,17/01/2013,Aid Programme - Partnership Programme Arrangements ,Policy Division ,The Asia Foundation (GBP) ,202703-101 ,"611,257.50",
DFID,DFID,17/01/2013,Technical and Advisory Services ,Research and Evidence Division ,UNIVERSITY COLLEGE LONDON ,202796-101 ,"354,350.71",
DFID,DFID,17/01/2013,Technical and Advisory Services ,Asia  Caribbean and Overseas Territories ,FAMILY HEALTH INTERNATIONAL ,113707-101 ,"318,851.00",
DFID,DFID,17/01/2013,Aid Programme - Accountable Grant Payments ,Research and Evidence Division ,Global Development Network ,112135-103 ,"205,000.00",
DFID,DFID,17/01/2013,Aid Programme - Accountable Grant Payments ,Middle East & North Africa Division (MENAD) ,CHF INTERNATIONAL ,114325-103 ,"164,224.22",
DFID,DFID,17/01/2013,Technical and Advisory Services ,Asia  Caribbean and Overseas Territories ,INFRASTRUCTURE PROFESSIONALS ENTERPRISE ,114040-101 ,"140,405.06",
DFID,DFID,17/01/2013,Aid Programme - Voluntary contributions ,East and Central Africa ,UNESCO GBP Account ,103022-108 ,"98,832.00",
DFID,DFID,17/01/2013,Technical and Advisory Services ,Western Asia and Stabilisation Division ,Supplier Name withheld ,202733-101 ,"93,525.78",
DFID,DFID,17/01/2013,Aid Programme - Accountable Grant Payments ,Conflict Humanitarian and Security Division ,HUMAN SECURITY RESEARCH GROUP ,202724-101 ,"86,282.68",
DFID,DFID,17/01/2013,Technical and Advisory Services ,Asia  Caribbean and Overseas Territories ,CARE INTERNATIONAL ,114506-101 ,"81,346.42",
DFID,DFID,17/01/2013,Technical and Advisory Services ,Asia  Caribbean and Overseas Territories ,CARE INTERNATIONAL ,114506-101 ,"81,346.42",
DFID,DFID,17/01/2013,Technical and Advisory Services ,Asia  Caribbean and Overseas Territories ,CARE INTERNATIONAL ,114506-101 ,"81,346.42",
DFID,DFID,17/01/2013,Technical and Advisory Services ,Research and Evidence Division ,COFFEY INTERNATIONAL DEVELOPMENT LTD ,203193-101 ,"77,572.80",
DFID,DFID,17/01/2013,Technical and Advisory Services ,Research and Evidence Division ,COFFEY INTERNATIONAL DEVELOPMENT LTD ,203193-101 ,"77,572.80",
DFID,DFID,17/01/2013,Furniture & Fittings ,Human Resources Security & Facilities Division ,Senator International  ,203716-101 ,"64,203.01",
DFID,DFID,17/01/2013,FCO shared service charges ,East and Central Africa ,FOREIGN AND COMMONWEALTH OFFICE (FCO) ,101634-101 ,"55,400.00",12 months Secure Staff Accommodation (Aug 11 - Aug 12) - Tanzania
DFID,DFID,17/01/2013,Aid Programme - Accountable Grant Payments ,Policy Division ,Institute of Development Studies. ,201692-101 ,"45,187.00",
DFID,DFID,17/01/2013,Technical and Advisory Services ,Western Asia and Stabilisation Division ,Supplier Name withheld ,202733-101 ,"44,892.37",
DFID,DFID,17/01/2013,Technical and Advisory Services ,Asia  Caribbean and Overseas Territories ,FAMILY HEALTH INTERNATIONAL ,201388-101 ,"19,733.00",
DFID,DFID,17/01/2013,Repairs  Maint  Alter - Property & Constrct. Services ,West and Southern Africa ,Lilleker Bros (Nigeria) Ltd ,100153-101 ,"16,000.00",
DFID,DFID,17/01/2013,Technical and Advisory Services ,Asia  Caribbean and Overseas Territories ,Castlerock Consulting Pte. Ltd. ,201942-101 ,"15,643.75",
DFID,DFID,17/01/2013,Technical and Advisory Services ,Asia  Caribbean and Overseas Territories ,FAMILY HEALTH INTERNATIONAL ,201388-101 ,"14,800.00",
DFID,DFID,17/01/2013,Electricity ,Human Resources Security & Facilities Division ,EDF ENERGY ,100106-101 ,"13,710.73",
DFID,DFID,17/01/2013,Secure Staff Accommodation ,International Finance Division ,Foreign & Commonwealth Office ,201723-102 ,"12,188.07",
DFID,DFID,17/01/2013,FCO shared service charges ,East and Central Africa ,FOREIGN AND COMMONWEALTH OFFICE (FCO) ,100230-101 ,"9,979.37",
DFID,DFID,17/01/2013,Secure Staff Accommodation ,East and Central Africa ,Supplier Name withheld ,101612-101 ,"9,108.23",
DFID,DFID,17/01/2013,Telephone Usage & services ,Business Solutions Division Level ,NCS GROUP LTD ,200002-143 ,"8,338.34",
DFID,DFID,17/01/2013,Technical and Advisory Services ,International Relations Division ,Foreign & Commonwealth Office ,201399-101 ,"7,156.03",
DFID,DFID,17/01/2013,Technical and Advisory Services ,Asia  Caribbean and Overseas Territories ,INFRASTRUCTURE PROFESSIONALS ENTERPRISE ,114040-101 ,"7,123.21",
DFID,DFID,17/01/2013,Gas ,Human Resources Security & Facilities Division ,CORONA ENERGY ,100187-101 ,"6,071.12",
DFID,DFID,17/01/2013,Gas ,Human Resources Security & Facilities Division ,CORONA ENERGY ,100106-101 ,"5,738.06",
DFID,DFID,17/01/2013,Technical and Advisory Services ,Asia  Caribbean and Overseas Territories ,Nguyen Quang Quynh ,200608-101 ,"4,414.89",
DFID,DFID,17/01/2013,Secure Staff Accommodation ,West and Southern Africa ,Supplier Name withheld ,101638-103 ,"4,202.54",
DFID,DFID,17/01/2013,Gas ,Human Resources Security & Facilities Division ,CORONA ENERGY ,100106-101 ,"4,200.00",
DFID,DFID,17/01/2013,FCO shared service charges ,International Relations Division ,Foreign & Commonwealth Office ,201711-101 ,"3,654.10",
DFID,DFID,17/01/2013,Technical and Advisory Services ,Asia  Caribbean and Overseas Territories ,Southasia Institute of Advance Studies ,114324-102 ,"3,540.61",
DFID,DFID,17/01/2013,Postage Costs ,Human Resources Security & Facilities Division ,ROYAL MAIL ,100187-101 ,"3,480.00",
DFID,DFID,17/01/2013,Hotels - Accommodation only ,East and Central Africa ,Juba Grand Hotel ,202594-101 ,"3,463.69",
DFID,DFID,17/01/2013,FCO shared service charges ,International Relations Division ,Foreign & Commonwealth Office ,201711-101 ,"3,296.83",
DFID,DFID,17/01/2013,Vehicle Petrol & Oil ,Asia  Caribbean and Overseas Territories ,Nepal Oil Corporation ,101621-103 ,"2,783.42",
DFID,DFID,17/01/2013,Recruitment costs ,Human Resources Security & Facilities Division ,Anderson Knight Ltd ,100270-103 ,"1,915.20",
DFID,DFID,17/01/2013,Recruitment costs ,Human Resources Security & Facilities Division ,Anderson Knight Ltd ,100270-103 ,"1,915.20",
DFID,DFID,17/01/2013,Air fares ,West and Southern Africa ,Supplier Name withheld ,101622-101 ,"1,732.74",
DFID,DFID,17/01/2013,Storage & Distribution costs ,Western Asia and Stabilisation Division ,SPECTRA  GROUP UK LTD ,102014-102 ,"1,710.00",
DFID,DFID,17/01/2013,Telephone Usage & services ,Finance and Corporate Performance Division ,VODAFONE CORPORATE ,100201-101 ,"1,338.08",
DFID,DFID,17/01/2013,Aid Programme - Joint programme contribution ,Asia  Caribbean and Overseas Territories ,Foreign & Commonwealth Office ,203478-101 ,"1,281.00",
DFID,DFID,17/01/2013,Electricity ,West and Southern Africa ,ESCOM ,101618-101 ,"1,088.54",
DFID,DFID,17/01/2013,Generators & spares ,West and Southern Africa ,NP (SL) Ltd ,101629-101 ,985.24,
DFID,DFID,17/01/2013,Hotels - Accommodation only ,Policy Division ,Foreign & Commonwealth Office ,100276-104 ,982.10,
DFID,DFID,17/01/2013,Hotels - Accommodation only ,Middle East & North Africa Division (MENAD) ,Foreign & Commonwealth Office ,100307-101 ,982.10,
DFID,DFID,17/01/2013,Training - Course Fees ,International Relations Division ,Foreign & Commonwealth Office ,100240-101 ,938.87,
DFID,DFID,17/01/2013,Air fares ,West and Southern Africa ,Harvey World Travel Centurion ,101631-101 ,889.83,
DFID,DFID,17/01/2013,Technical and Advisory Services ,East and Central Africa ,IPA-International Procurement Agency (BV) ,113400-111 ,810.00,
DFID,DFID,17/01/2013,Conferences  Seminars & Meeting/Event Resource ,Western Asia and Stabilisation Division ,PEARL CONTINENTAL HOTEL LAHORE ,101624-101 ,714.38,
DFID,DFID,17/01/2013,Training - Course Fees ,International Finance Division ,Recipient name withheld ,100098-101 ,714.00,
DFID,DFID,17/01/2013,Training - Travel & Subsistence ,Western Asia and Stabilisation Division ,Supplier Name withheld ,202112-101 ,673.13,
DFID,DFID,17/01/2013,Office Supplies ,West and Southern Africa ,Papirus Plus Lda ,101620-101 ,657.05,
DFID,DFID,17/01/2013,Hotels - Accommodation only ,Top Management Group ,Foreign & Commonwealth Office ,100232-105 ,654.74,
DFID,DFID,17/01/2013,Hotels - Accommodation only ,Top Management Group ,Foreign & Commonwealth Office ,100232-106 ,654.74,
DFID,DFID,17/01/2013,Hotels - Accommodation only ,Top Management Group ,Foreign & Commonwealth Office ,100232-106 ,654.74,
DFID,DFID,17/01/2013,Hotels - Accommodation only ,Policy Division ,Foreign & Commonwealth Office ,100191-101 ,654.74,
DFID,DFID,17/01/2013,UK Staff overseas - Overseas Allowances ,West and Southern Africa ,Recipient name withheld ,101637-101 ,600.00,
DFID,DFID,17/01/2013,Hotels - Accommodation only ,Western Asia and Stabilisation Division ,Avari Lahore ,101624-101 ,567.15,
DFID,DFID,17/01/2013,Telephone Usage & services ,West and Southern Africa ,Ghana Telecommunications Company Ltd ,101613-101 ,559.51,
DFID,DFID,17/01/2013,Telephone Usage & services ,West and Southern Africa ,Ghana Telecommunications Company Ltd ,101613-101 ,553.70,
DFID,DFID,17/01/2013,Conferences  Seminars & Meeting/Event Resource ,Western Asia and Stabilisation Division ,PEARL CONTINENTAL HOTEL LAHORE ,101624-101 ,545.54,
DFID,DFID,17/01/2013,Repairs  Maint  Alter - Property & Constrct. Services ,West and Southern Africa ,Lilleker Bros (Nigeria) Ltd ,101622-101 ,545.31,
DFID,DFID,17/01/2013,Technical and Advisory Services ,International Relations Division ,Foreign & Commonwealth Office ,201711-101 ,542.48,
DFID,DFID,17/01/2013,Air fares ,West and Southern Africa ,Supplier Name withheld ,104223-101 ,535.53,
DFID,DFID,17/01/2013,Vehicle Petrol & Oil ,West and Southern Africa ,FOREIGN AND COMMONWEALTH OFFICE (FCO) ,100152-101 ,532.51,
DFID,DFID,17/01/2013,Air fares ,West and Southern Africa ,Supplier Name withheld ,101622-101 ,513.84,
DFID,DFID,18/01/2013,Technical and Advisory Services ,Western Asia and Stabilisation Division ,Lou Perrotta ,203336-103 ,"1,040.00",
DFID,DFID,18/01/2013,Aid Programme - Contributions to Debt Relief ,International Finance Division ,AFRICAN  DEVELOPMENT BANK GROUP ,110990-101 ,"1,715,305.63",
DFID,DFID,18/01/2013,Aid Programme - Trust Funds contributions ,Middle East & North Africa Division (MENAD) ,IBRD (HSBC)  C/O THE WORLD BANK ,203756-101 ,"1,100,000.00",
DFID,DFID,18/01/2013,Aid Programme - Refugee Relief Payments ,East and Central Africa ,WFP CONTRIBUTIONS UNIT ,203722-102 ,"1,000,000.00",
DFID,DFID,18/01/2013,Aid Programme - Accountable Grant Payments ,Communications Division ,CHRISTIAN AID ,202197-101 ,"425,000.00",
DFID,DFID,18/01/2013,Technical and Advisory Services ,West and Southern Africa ,GRM INTERNATIONAL LTD ,114230-101 ,"410,973.59",
DFID,DFID,18/01/2013,Aid Programme - Accountable Grant Payments ,International Finance Division ,Results for Development Institute ,201101-108 ,"251,688.00",
DFID,DFID,18/01/2013,Technical and Advisory Services ,West and Southern Africa ,Futures Group Europe ,202295-102 ,"239,813.32",
DFID,DFID,18/01/2013,DFID Purchased Relief Supplies ,East and Central Africa ,CHARLES KENDALL & PARTNERS LIMITED (PROCUREMENT) ,202513-101 ,"217,431.06",
DFID,DFID,18/01/2013,Aid Programme - Core contributions ,Research and Evidence Division ,Consortium for National Health Research (CNHR) ,113982-104 ,"171,641.00",
DFID,DFID,18/01/2013,Technical and Advisory Services ,West and Southern Africa ,GRM INTERNATIONAL LTD ,202370-102 ,"116,639.14",
DFID,DFID,18/01/2013,Technical and Advisory Services ,West and Southern Africa ,CHARLES KENDALL & PARTNERS LIMITED (PROCUREMENT) ,113961-106 ,"95,634.00",
DFID,DFID,18/01/2013,Technical and Advisory Services ,East and Central Africa ,DELOITTE (UGANDA) LIMITED ,200787-107 ,"89,418.04",
DFID,DFID,18/01/2013,Research & Development costs ,Research and Evidence Division ,INSTITUTE OF DEVELOPMENT STUDIES ,202042-101 ,"86,436.26",
DFID,DFID,18/01/2013,Technical and Advisory Services ,Human Resources Security & Facilities Division ,MidlandHR ,100272-101 ,"56,986.00",
DFID,DFID,18/01/2013,Aid Programme - Other Financial Aid to Government ,Asia  Caribbean and Overseas Territories ,Turks and Caicos Government ,201049-102 ,"49,905.00",
DFID,DFID,18/01/2013,Technical and Advisory Services ,West and Southern Africa ,CHARLES KENDALL & PARTNERS LIMITED (PROCUREMENT) ,113961-106 ,"48,689.22",
DFID,DFID,18/01/2013,Technical and Advisory Services ,Western Asia and Stabilisation Division ,PRICEWATERHOUSECOOPERS ,202378-104 ,"44,511.10",
DFID,DFID,18/01/2013,Data Network -Satellite ,Business Solutions Division Level ,FCO RECOVERIES UNIT ,203329-101 ,"75,581.08",Data/Broadband/Telecoms services for overseas offices for October 2012 to December 2012
DFID,DFID,18/01/2013,Research & Development costs ,Research and Evidence Division ,INSTITUTE OF DEVELOPMENT STUDIES ,202042-101 ,"41,194.70",
DFID,DFID,18/01/2013,Aid Programme - Aid and Trade Provision ,Asia  Caribbean and Overseas Territories ,ECGD ACCOUNT ,108238-101 ,"39,343.83",
DFID,DFID,18/01/2013,Technical and Advisory Services ,West and Southern Africa ,Co- Creation Hub Limited ,104254-101 ,"31,016.92",
DFID,DFID,18/01/2013,Aid Programme - Accountable Grant Payments ,Western Asia and Stabilisation Division ,Supplier Name withheld ,202277-101 ,"30,987.00",
DFID,DFID,18/01/2013,Data Network -Satellite ,Business Solutions Division Level ,FCO RECOVERIES UNIT ,200002-120 ,"146,716.21",Data/Broadband/Telecoms services for overseas offices for October 2012 to December 2012
DFID,DFID,18/01/2013,Technical and Advisory Services ,Asia  Caribbean and Overseas Territories ,SIDBI MUMBAI ,114293-103 ,"19,273.13",
DFID,DFID,18/01/2013,Hotels - Accommodation only ,West and Southern Africa ,Supplier Name withheld ,101622-101 ,"16,004.49",
DFID,DFID,18/01/2013,Consultancy Services ,Conflict Humanitarian and Security Division ,RMS ,100049-101 ,"12,814.47",
DFID,DFID,18/01/2013,Technical and Advisory Services ,International Finance Division ,Nathan Associates London Ltd ,114009-101 ,"11,423.75",
DFID,DFID,18/01/2013,Hotels - Accommodation only ,Western Asia and Stabilisation Division ,PEARL CONTINENTAL HOTEL LAHORE ,101624-101 ,"9,614.80",
DFID,DFID,18/01/2013,Technical and Advisory Services ,Business Solutions Division Level ,Networkers Recruitment Services Ltd ,200003-154 ,"7,729.86",
DFID,DFID,18/01/2013,Legal costs ,Asia  Caribbean and Overseas Territories ,Amarchand & Mangaldas & Suresh A Shroff & Co. ,107955-101 ,"5,616.91",
DFID,DFID,18/01/2013,Legal costs ,Asia  Caribbean and Overseas Territories ,Amarchand & Mangaldas & Suresh A Shroff & Co. ,107955-101 ,"5,522.12",
DFID,DFID,18/01/2013,Further Education costs ,West and Southern Africa ,Management Dev Ctr Ltd ,101622-101 ,"5,516.00",
DFID,DFID,18/01/2013,Technical and Advisory Services ,West and Southern Africa ,Kwabena Adjei-Mensah ,113923-102 ,"4,812.05",
DFID,DFID,18/01/2013,Technical and Advisory Services ,East and Central Africa ,IRWIN GRAYSON ASSOCIATES ,101634-101 ,"4,622.22",
DFID,DFID,18/01/2013,Repairs  Maint  Alter - Property & Constrct. Services ,West and Southern Africa ,Pekolyn Tech. Services ,101622-101 ,"4,468.26",
DFID,DFID,18/01/2013,Technical and Advisory Services ,West and Southern Africa ,Basel Institute On Governance ,202742-101 ,"4,410.50",
DFID,DFID,18/01/2013,Legal costs ,East and Central Africa ,CRB AFRICA LEGAL ,101634-101 ,"3,200.12",
DFID,DFID,18/01/2013,Technical and Advisory Services ,Western Asia and Stabilisation Division ,WILSON  BRYDON & KENNEDY ,203341-102 ,"2,963.88",
DFID,DFID,18/01/2013,Other Building Costs ,Human Resources Security & Facilities Division ,HCS Business Interiors ,100106-101 ,"2,746.80",
DFID,DFID,18/01/2013,Facilities Management payments ,Asia  Caribbean and Overseas Territories ,SSD ELECTRO-MECH PRIVATE LIMITED ,201689-105 ,"2,739.95",
DFID,DFID,18/01/2013,Technical and Advisory Services ,Policy Division ,GIST ADVISORY PRIVATE LTD ,203608-106 ,"2,680.94",
DFID,DFID,18/01/2013,Contract & Agency Staff ,Human Resources Security & Facilities Division ,Michaeil Page Int. Recruitment Ltd ,100268-101 ,"2,220.00",
DFID,DFID,18/01/2013,Security Equipment Maintenance & Upgrades ,West and Southern Africa ,KOIZA INTERNATIONAL LTD ,101622-101 ,"1,685.28",
DFID,DFID,18/01/2013,Data Network -Satellite Communication ,Western Asia and Stabilisation Division ,SPECTRA  GROUP UK LTD ,102014-102 ,"1,512.00",
DFID,DFID,18/01/2013,Repairs  Maint  Alter - Property & Constrct. Services ,Asia  Caribbean and Overseas Territories ,John Sanday Associates Pvt. Ltd ,101621-103 ,"1,454.82",
DFID,DFID,18/01/2013,Professional member subscriptions ,Research and Evidence Division ,THE ROYAL STATISTICAL SOCIETY ,100039-114 ,"1,378.40",
DFID,DFID,18/01/2013,Other Building Costs ,West and Southern Africa ,Kay Two Zambia Limited ,101637-101 ,"1,217.48",
DFID,DFID,18/01/2013,Recruitment costs ,Finance and Corporate Performance Division ,Capita Resourcing Ltd ,100008-104 ,"1,128.00",
DFID,DFID,18/01/2013,Technical and Advisory Services ,East and Central Africa ,Jasper-Semu & Associates (USD) ,200187-101 ,976.87,
DFID,DFID,18/01/2013,Telephone Usage & services ,East and Central Africa ,VODACOM TANZANIA ,101634-101 ,868.13,
DFID,DFID,18/01/2013,Air fares ,West and Southern Africa ,Supplier Name withheld ,101622-101 ,753.29,
DFID,DFID,18/01/2013,Training - Travel & Subsistence ,Western Asia and Stabilisation Division ,OMAR TRAVELS ,101624-101 ,742.53,
DFID,DFID,18/01/2013,Contract & Agency Staff ,Finance and Corporate Performance Division ,Search Consultancy Ltd ,100201-101 ,720.00,
DFID,DFID,18/01/2013,Contract & Agency Staff ,Finance and Corporate Performance Division ,Search Consultancy Ltd ,100201-101 ,720.00,
DFID,DFID,18/01/2013,Computer software maintenance ,Human Resources Security & Facilities Division ,WORLD CAREERS NETWORK PLC ,100269-131 ,714.00,
DFID,DFID,18/01/2013,Training - Travel & Subsistence ,Western Asia and Stabilisation Division ,BONDS TRAVEL BUREAU ,101624-101 ,652.02,
DFID,DFID,18/01/2013,Hotels - Accommodation only ,Research and Evidence Division ,Recipient name withheld ,202392-106 ,577.64,
DFID,DFID,18/01/2013,Facilities Management payments ,East and Central Africa ,British High Commission(Tsh) ,101634-101 ,510.68,
DFID,DFID,18/01/2013,Hotels - Accommodation only ,Asia  Caribbean and Overseas Territories ,Recipient name withheld ,101603-102 ,500.00,
DFID,DFID,18/01/2013,Technical and Advisory Services ,Western Asia and Stabilisation Division ,SHAHID HAFIZ KARDAR ,202378-107 ,975.81,
DFID,DFID,20/01/2013,Generators & spares ,Western Asia and Stabilisation Division ,Supplier Name withheld ,101601-110 ,778.34,
DFID,DFID,21/01/2013,Aid Programme - Humanitarian Material Relief Assistance and Services ,Western Asia and Stabilisation Division ,UN OCHA ,203787-104 ,"3,000,000.00",
DFID,DFID,21/01/2013,Encashment of Promissory Notes ,Communications Division ,Charity Projects International,202329-101 ,"2,640,696.00",
DFID,DFID,21/01/2013,Aid Programme - Accountable Grant Payments ,Joint Trade Policy Division ,International Centre for Trade and Sustainable Development ,203524-101 ,"2,125,000.00",
DFID,DFID,21/01/2013,Aid Programme - Refugee Relief Payments ,East and Central Africa , UNHCR ,203722-101 ,"2,000,000.00",
DFID,DFID,21/01/2013,Aid Programme - Trust Funds contributions ,Middle East & North Africa Division (MENAD) ,African Development Bank TFT ,203715-101 ,"500,000.00",
DFID,DFID,21/01/2013,Aid Programme - Accountable Grant Payments ,Conflict Humanitarian and Security Division ,Namati ,202186-102 ,"407,718.64",
DFID,DFID,21/01/2013,Aid Programme - Trust Funds contributions ,Middle East & North Africa Division (MENAD) ,African Development Bank TFT ,203055-101 ,"327,000.00",
DFID,DFID,21/01/2013,Technical and Advisory Services ,East and Central Africa ,Mennonite Economic Development Associates of Canada ,202481-104 ,"291,159.33",
DFID,DFID,21/01/2013,Technical and Advisory Services ,Asia  Caribbean and Overseas Territories ,GHK CONSULTING LTD ,114168-101 ,"128,743.00",
DFID,DFID,21/01/2013,Technical and Advisory Services ,East and Central Africa ,Deloitte Consulting Pvt Ltd Co. ,202913-101 ,"100,912.49",
DFID,DFID,21/01/2013,Technical and Advisory Services ,Human Resources Security & Facilities Division ,Cabinet Office RM Shared Services ,100269-104 ,"34,843.25",DFID�s Accountancy and Financial Services charges 2012
DFID,DFID,21/01/2013,DFID Purchased Relief Supplies ,West and Southern Africa ,CHARLES KENDALL & PARTNERS LIMITED (PROCUREMENT) ,202524-112 ,"60,692.31",
DFID,DFID,21/01/2013,Technical and Advisory Services ,Research and Evidence Division ,OXFORD POLICY MANAGEMENT ,203193-101 ,"58,934.40",
DFID,DFID,21/01/2013,Technical and Advisory Services ,Research and Evidence Division ,OXFORD POLICY MANAGEMENT ,203193-101 ,"58,934.40",
DFID,DFID,21/01/2013,FCO shared service charges ,Western Asia and Stabilisation Division ,Supplier Name withheld ,101601-110 ,"70,093.23",FCO shared services (Security) - Afghanistan
DFID,DFID,21/01/2013,Technical and Advisory Services ,Western Asia and Stabilisation Division ,PRICEWATERHOUSECOOPERS ,202911-101 ,"30,735.04",
DFID,DFID,21/01/2013,Technical and Advisory Services ,Asia  Caribbean and Overseas Territories ,UNIVERSITY OF EAST LONDON ,108070-101 ,"29,260.00",
DFID,DFID,21/01/2013,FCO shared service charges ,Western Asia and Stabilisation Division ,Supplier Name withheld ,100011-110 ,"24,384.77",
DFID,DFID,21/01/2013,Hardware - networking equipment ,Business Solutions Division Level ,FCO RECOVERIES UNIT ,200003-121 ,"23,700.00",
DFID,DFID,21/01/2013,Vehicle Repairs & Maintenance ,Western Asia and Stabilisation Division ,Supplier Name withheld ,101601-110 ,"11,836.00",
DFID,DFID,21/01/2013,Technical and Advisory Services ,Asia  Caribbean and Overseas Territories ,Paula SIlva Villanueva ,201989-101 ,"9,150.00",
DFID,DFID,21/01/2013,Supplier Services ,Human Resources Security & Facilities Division ,AMCS UK ,100272-101 ,"7,700.00",
DFID,DFID,21/01/2013,Contract & Agency Staff ,Business Solutions Division Level ,Parity Resources ,200005-111 ,"7,030.98",
DFID,DFID,21/01/2013,Technical and Advisory Services ,East and Central Africa ,Tom Power Consultancy ,104978-115 ,"6,598.39",
DFID,DFID,21/01/2013,Postage Costs ,Human Resources Security & Facilities Division ,FCO SERVICES ,201157-101 ,"5,700.36",
DFID,DFID,21/01/2013,Technical and Advisory Services ,East and Central Africa ,BRITISH COUNCIL ,201587-112 ,"3,440.00",
DFID,DFID,21/01/2013,Technical and Advisory Services ,West and Southern Africa ,CHARLES KENDALL & PARTNERS LIMITED (PROCUREMENT) ,202524-113 ,"3,034.62",
DFID,DFID,21/01/2013,Technical and Advisory Services ,Research and Evidence Division ,ATTENDA LIMITED ,100039-107 ,"2,369.52",
DFID,DFID,21/01/2013,Contract & Agency Staff ,Human Resources Security & Facilities Division ,Michaeil Page Int. Recruitment Ltd ,100268-101 ,"2,220.00",
DFID,DFID,21/01/2013,Contract & Agency Staff ,Human Resources Security & Facilities Division ,Michaeil Page Int. Recruitment Ltd ,100268-101 ,"2,220.00",
DFID,DFID,21/01/2013,Contract & Agency Staff ,Human Resources Security & Facilities Division ,Michaeil Page Int. Recruitment Ltd ,100268-101 ,"2,109.00",
DFID,DFID,21/01/2013,Consultancy Services ,Finance and Corporate Performance Division ,AMCS UK ,202836-101 ,"1,952.00",
DFID,DFID,21/01/2013,Legal costs ,West and Southern Africa ,O.O.Olowokure & Co. ,100152-101 ,"1,774.22",
DFID,DFID,21/01/2013,Training - Course Fees ,International Finance Division ,BPP LEARNING MEDIA LIMITED ,202259-101 ,"1,704.00",
DFID,DFID,21/01/2013,Contract & Agency Staff ,Finance and Corporate Performance Division ,MICHAEL PAGE INTERNATIONAL RECRUITMENT LIMITED ,100201-101 ,"1,513.32",
DFID,DFID,21/01/2013,Conferences  Seminars & Meeting/Event Resource ,Asia  Caribbean and Overseas Territories ,BRITISH COUNCIL DIVISION ,100113-101 ,"1,165.03",
DFID,DFID,21/01/2013,Contract & Agency Staff ,Finance and Corporate Performance Division ,Hays Specialist Recruitment Ltd ,100201-101 ,988.92,
DFID,DFID,21/01/2013,Hotels - Accommodation only ,Asia  Caribbean and Overseas Territories ,Recipient name withheld ,101603-102 ,830.12,
DFID,DFID,21/01/2013,Contract & Agency Staff ,Finance and Corporate Performance Division ,Hays Specialist Recruitment Ltd ,100201-101 ,691.20,
DFID,DFID,21/01/2013,Air fares ,East and Central Africa ,Recipient name withheld ,101625-102 ,669.22,
DFID,DFID,21/01/2013,Training - Course Fees ,International Finance Division ,BPP LEARNING MEDIA LIMITED ,202259-101 ,612.00,
DFID,DFID,21/01/2013,other information and communication technologies ,West and Southern Africa ,Limeline Sierra Leone Ltd ,101629-101 ,505.92,
DFID,DFID,22/01/2013,Air fares ,Western Asia and Stabilisation Division ,Recipient name withheld ,101624-101 ,"2,500.00",
DFID,DFID,22/01/2013,Aid Programme - Contributions to Debt Relief ,International Finance Division ,INTERNATIONAL DEVELOPMENT ASSOCIATION 'B ACC' ,110951-101 ,"72,980,000.00",
DFID,DFID,22/01/2013,Encashment of Promissory Notes ,Policy Division ,International Bank for Reconstruction and Development,202216-102 ,"7,350,000.00",
DFID,DFID,22/01/2013,Encashment of Promissory Notes ,Policy Division ,International Bank for Reconstruction and Development,113819-103 ,"3,150,000.00",
DFID,DFID,22/01/2013,Aid Programme - Pooled/Basket funding ,West and Southern Africa ,Liberia Health Sector Pool Fund Grant ,113608-101 ,"2,000,000.00",
DFID,DFID,22/01/2013,Aid Programme - Trust Funds contributions ,West and Southern Africa ,IBRD HSBC T ,202854-101 ,"1,545,000.00",
DFID,DFID,22/01/2013,Technical and Advisory Services ,West and Southern Africa ,Cambridge  Education Limited ,104200-101 ,"1,148,574.43",
DFID,DFID,22/01/2013,Aid Programme - Partnership Programme Arrangements ,Policy Division ,Fairtrade Labelling Organizations International e.V. ,201718-101 ,"750,000.00",
DFID,DFID,22/01/2013,Aid Programme - Accountable Grant Payments ,West and Southern Africa ,CAMFED ,203292-101 ,"704,721.00",
DFID,DFID,22/01/2013,Aid Programme - Accountable Grant Payments ,Policy Division ,OVERSEAS DEVELOPMENT INSTITUTE ,202814-101 ,"662,110.14",
DFID,DFID,22/01/2013,Technical and Advisory Services ,West and Southern Africa ,HTSPE LTD ,104189-101 ,"637,617.21",
DFID,DFID,22/01/2013,Aid Programme - Core contributions ,Research and Evidence Division ,USDA-ARS ,202108-102 ,"587,819.00",
DFID,DFID,22/01/2013,Technical and Advisory Services ,West and Southern Africa ,PRICEWATERHOUSECOOPERS ,113961-102 ,"542,384.30",
DFID,DFID,22/01/2013,Technical and Advisory Services ,West and Southern Africa ,ATOS CONSULTING LIMITED ,200452-101 ,"385,021.10",
DFID,DFID,22/01/2013,Aid Programme - Partnership Programme Arrangements ,Policy Division ,ISLAMIC RELIEF ,203105-101 ,"350,000.00",
DFID,DFID,22/01/2013,Research & Development costs ,Research and Evidence Division , Overseas Development Institute ,201009-101 ,"230,292.85",
DFID,DFID,22/01/2013,Aid Programme - Accountable Grant Payments ,East and Central Africa ,CRANFIELD UNIVERSITY ,203510-101 ,"191,835.74",
DFID,DFID,22/01/2013,Aid Programme - Accountable Grant Payments ,West and Southern Africa ,AFRICAN MONITOR ,203622-103 ,"159,763.00",
DFID,DFID,22/01/2013,Technical and Advisory Services ,West and Southern Africa ,PRICEWATERHOUSECOOPERS ,113961-103 ,"118,524.70",
DFID,DFID,22/01/2013,Print Services ,West and Southern Africa ,New Horizon Printing Press ,201978-102 ,"106,009.08",
DFID,DFID,22/01/2013,Technical and Advisory Services ,Business Solutions Division Level ,SCC Ltd ,200005-112 ,"102,946.08",
DFID,DFID,22/01/2013,Research & Development costs ,Research and Evidence Division , University Of Oxford ,113580-101 ,"100,960.77",
DFID,DFID,22/01/2013,Research & Development costs ,Research and Evidence Division ,CENTRE FOR ECONOMIC POLICY RESEARCH ,202835-101 ,"96,928.92",
DFID,DFID,22/01/2013,Aid Programme - Accountable Grant Payments ,Asia  Caribbean and Overseas Territories ,india development... foundation. ,203217-101 ,"79,499.00",
DFID,DFID,22/01/2013,Technical and Advisory Services ,Western Asia and Stabilisation Division ,Supplier Name withheld ,114348-102 ,"76,759.55",
DFID,DFID,22/01/2013,Technical and Advisory Services ,Research and Evidence Division ,HTSPE LTD ,203193-101 ,"58,950.00",
DFID,DFID,22/01/2013,Technical and Advisory Services ,West and Southern Africa ,Coffey International Development (Do not use) ,203355-101 ,"58,415.00",
DFID,DFID,22/01/2013,Aid Programme - Accountable Grant Payments ,Communications Division ,INTERNATIONAL BROADCASTING TRUST ,201455-101 ,"50,013.00",
DFID,DFID,22/01/2013,Furniture & Fittings ,Human Resources Security & Facilities Division ,Senator International  ,203716-101 ,"46,320.10",
DFID,DFID,22/01/2013,Aid Programme - Accountable Grant Payments ,East and Central Africa ,VOLUNTARY SERVICE OVERSEAS ,200250-117 ,"39,780.00",
DFID,DFID,22/01/2013,Aid Programme - Accountable Grant Payments ,Research and Evidence Division ,Foundation for Innovation and Technology Transfer ,202125-113 ,"35,400.00",
DFID,DFID,22/01/2013,Technical and Advisory Services ,East and Central Africa ,I T TRANSPORT LTD ,105409-103 ,"34,016.61",
DFID,DFID,22/01/2013,Technical and Advisory Services ,East and Central Africa ,OXFORD POLICY MANAGEMENT ,203396-101 ,"31,915.78",
DFID,DFID,22/01/2013,Operating Lease rental of buildings ,West and Southern Africa ,JUSTICE CORNELIUS AUGUSTINE HARDING ,100214-101 ,"22,000.00",
DFID,DFID,22/01/2013,Operating Lease rental of buildings ,West and Southern Africa ,JUSTICE CORNELIUS AUGUSTINE HARDING ,101629-101 ,"22,000.00",
DFID,DFID,22/01/2013,Repairs  Maint  Alter - Property & Constrct. Services ,Western Asia and Stabilisation Division ,Supplier Name withheld ,100061-101 ,"20,428.75",
DFID,DFID,22/01/2013,Relocation costs ,Asia  Caribbean and Overseas Territories ,CROWN RELOCATIONS  UK ,101604-101 ,"18,132.53",
DFID,DFID,22/01/2013,Technical and Advisory Services ,West and Southern Africa ,2wpcarpark ltd ,200485-101 ,"13,617.54",
DFID,DFID,22/01/2013,Technical and Advisory Services ,East and Central Africa ,IMC Worldwide Ltd ,200221-105 ,"13,450.23",
DFID,DFID,22/01/2013,Technical and Advisory Services ,Asia  Caribbean and Overseas Territories ,ERIC WOODS ,202123-105 ,"13,172.24",
DFID,DFID,22/01/2013,Secure Staff Accommodation ,West and Southern Africa ,Supplier Name withheld ,101610-101 ,"11,152.59",
DFID,DFID,22/01/2013,Aid Programme - Accountable Grant Payments ,Asia  Caribbean and Overseas Territories ,ROYAL SOCIETY FOR THE PROTECTION OF BIRDS ,201049-101 ,"11,096.65",
DFID,DFID,22/01/2013,Aid Programme - Accountable Grant Payments ,Asia  Caribbean and Overseas Territories ,Surja Setu Samaj Kallyan Sangstha ,113287-102 ,"9,161.00",
DFID,DFID,22/01/2013,Technical and Advisory Services ,East and Central Africa ,OpenCities Ltd ,202991-101 ,"8,981.88",
DFID,DFID,22/01/2013,Technical and Advisory Services ,Western Asia and Stabilisation Division ,Supplier Name withheld ,202190-105 ,"8,407.77",
DFID,DFID,22/01/2013,Technical and Advisory Services ,Research and Evidence Division ,IOD PARC ,203197-101 ,"6,360.00",
DFID,DFID,22/01/2013,Training - Course Fees ,West and Southern Africa ,COMMUNICAID GRP LIMITED ,101610-101 ,"5,595.60",
DFID,DFID,22/01/2013,Data Network - land lines ,Business Solutions Division Level ,VERIZON UK LIMITED ,200002-130 ,"4,372.93",
DFID,DFID,22/01/2013,Repairs  Maint  Alter - Property & Constrct. Services ,Western Asia and Stabilisation Division ,Supplier Name withheld ,100061-101 ,"4,312.74",
DFID,DFID,22/01/2013,Professional member subscriptions ,Human Resources Security & Facilities Division ,EMPLOYERS FORUM ON DISABILITY ,100269-148 ,"3,720.00",
DFID,DFID,22/01/2013,Recruitment costs ,Human Resources Security & Facilities Division ,MTB CONSULTING ,100269-130 ,"3,592.56",
DFID,DFID,22/01/2013,Technical and Advisory Services ,East and Central Africa ,Kairichi Consultancy Limited ,103548-101 ,"2,954.48",
DFID,DFID,22/01/2013,Relocation costs ,Asia  Caribbean and Overseas Territories ,CROWN RELOCATIONS  UK ,101604-101 ,"1,984.78",
DFID,DFID,22/01/2013,Aid Programme - Core contributions ,Research and Evidence Division ,USDA-ARS ,202108-104 ,"1,936.00",
DFID,DFID,22/01/2013,Technical and Advisory Services ,East and Central Africa ,IOD PARC ,100212-101 ,"1,778.40",
DFID,DFID,22/01/2013,Technical and Advisory Services ,East and Central Africa ,Pauline Akinyi Gogo ,103548-101 ,"1,760.13",
DFID,DFID,22/01/2013,Subscriptions ,Communications Division ,Durrants lTD ,100197-101 ,"1,679.83",
DFID,DFID,22/01/2013,Telephone Usage & services ,West and Southern Africa ,Vodacom ,101610-101 ,"1,650.19",
DFID,DFID,22/01/2013,Air fares ,Western Asia and Stabilisation Division ,Recipient name withheld ,101601-110 ,"1,379.80",
DFID,DFID,22/01/2013,Water charges ,Human Resources Security & Facilities Division ,THAMES WATER UTILITIES LTD ,100187-101 ,"1,283.88",
DFID,DFID,22/01/2013,Electricity ,Asia  Caribbean and Overseas Territories ,Neptune Properties ,100025-101 ,"1,253.81",
DFID,DFID,22/01/2013,Technical and Advisory Services ,East and Central Africa ,IOD PARC ,101628-101 ,"1,041.60",
DFID,DFID,22/01/2013,Water charges ,East and Central Africa ,EWSA ,101628-101 ,972.47,
DFID,DFID,22/01/2013,Telephone Usage & services ,West and Southern Africa ,Vodacom ,100068-101 ,897.06,
DFID,DFID,22/01/2013,Hotels - Accommodation only ,Business Solutions Division Level ,Recipient name withheld ,200001-101 ,818.91,
DFID,DFID,22/01/2013,Hotels - Accommodation only ,Top Management Group ,Recipient name withheld ,100232-104 ,693.00,
DFID,DFID,22/01/2013,Water charges ,East and Central Africa ,EWSA ,101628-101 ,677.21,
DFID,DFID,22/01/2013,Contract & Agency Staff ,Policy Division ,Hays Specialist Recruitment Ltd ,100191-101 ,637.92,
DFID,DFID,22/01/2013,Hotels - Accommodation only ,Conflict Humanitarian and Security Division ,Recipient name withheld ,100049-101 ,628.62,
DFID,DFID,22/01/2013,Electricity ,Asia  Caribbean and Overseas Territories ,Dhaka Electric Supply Company Ltd ,101603-101 ,626.91,
DFID,DFID,22/01/2013,Office Equipment - Maintenance ,West and Southern Africa ,Clement Osae Oduro ,101613-101 ,603.58,
DFID,DFID,22/01/2013,Hotels - Accommodation only ,Policy Division ,Recipient name withheld ,202373-105 ,583.95,
DFID,DFID,22/01/2013,Hotels - Accommodation only ,West and Southern Africa ,The Country Lodge Complex ,101629-101 ,581.66,
DFID,DFID,22/01/2013,Electricity ,East and Central Africa ,EWSA ,101628-101 ,574.13,
DFID,DFID,22/01/2013,Air fares ,East and Central Africa ,Simbatravelcare Limited ,200171-103 ,533.29,
DFID,DFID,22/01/2013,Technical and Advisory Services ,East and Central Africa ,Susan Amlango Aletia ,103548-101 ,"1,980.15",
DFID,DFID,23/01/2013,SAIC Salaries - Basic Pay ,West and Southern Africa ,Ms Mekdes Amde ,101631-101 ,"1,462.99",
DFID,DFID,23/01/2013,Aid Programme - Core contributions ,International Relations Division ,COMMONWEALTH SECRETARIAT ,202998-101 ,"5,099,120.00",
DFID,DFID,23/01/2013,Aid Programme - Core contributions ,West and Southern Africa ,AUSAID ,202351-101 ,"1,000,000.00",
DFID,DFID,23/01/2013,Aid Programme - Partnership Programme Arrangements ,Policy Division ,CARE INTERNATIONAL ,202615-101 ,"808,317.00",
DFID,DFID,23/01/2013,Technical and Advisory Services ,West and Southern Africa ,HTSPE LTD ,200681-101 ,"192,649.02",
DFID,DFID,23/01/2013,Aid Programme - Accountable Grant Payments ,Research and Evidence Division ,GALVmed ,203188-102 ,"167,282.00",
DFID,DFID,23/01/2013,Technical and Advisory Services ,West and Southern Africa ,ADAM SMITH INTERNATIONAL  LTD ,114073-101 ,"141,845.08",
DFID,DFID,23/01/2013,Aid Programme - Accountable Grant Payments ,East and Central Africa ,The Nile Basin Discourse (NBD) ,200187-102 ,"128,048.39",
DFID,DFID,23/01/2013,Technical and Advisory Services ,Policy Division ,TRIPLE LINE CONSULTING LTD ,202035-101 ,"94,391.82",
DFID,DFID,23/01/2013,Technical and Advisory Services ,East and Central Africa ,Mennonite Economic Development Associates of Canada ,202481-104 ,"86,548.65",
DFID,DFID,23/01/2013,Technical and Advisory Services ,Western Asia and Stabilisation Division ,HTSPE LTD ,202491-102 ,"72,164.42",
DFID,DFID,23/01/2013,Furniture & Fittings ,Human Resources Security & Facilities Division ,Senator International  ,203716-101 ,"63,042.31",
DFID,DFID,23/01/2013,Computer software maintenance ,Business Solutions Division Level ,LOGICACMG UK LTD. ,200002-103 ,"45,250.00",Centralised Data Storage Support Contract 12/13 Quarter 4
DFID,DFID,23/01/2013,Technical and Advisory Services ,Asia  Caribbean and Overseas Territories ,Nathan Associates London Ltd ,202180-101 ,"61,966.78",
DFID,DFID,23/01/2013,Aid Programme - Accountable Grant Payments ,Asia  Caribbean and Overseas Territories ,British Council Division. ,108003-103 ,"54,140.02",
DFID,DFID,23/01/2013,Aid Programme - Joint programme contribution ,Western Asia and Stabilisation Division ,UNDP CONTRIBUTIONS GBP ,114515-102 ,"53,435.00",
DFID,DFID,23/01/2013,Aid Programme - Core contributions ,Research and Evidence Division ,The World Bank (EFO) ,202856-102 ,"50,000.00",
DFID,DFID,23/01/2013,Aid Programme - Accountable Grant Payments ,West and Southern Africa ,African Parliamentarians Network Against Corruption ,201107-103 ,"47,501.90",
DFID,DFID,23/01/2013,Technical and Advisory Services ,West and Southern Africa ,PKF (UK) LLP ,104600-105 ,"47,094.04",
DFID,DFID,23/01/2013,Technical and Advisory Services ,Asia  Caribbean and Overseas Territories ,GHK CONSULTING LTD ,108027-101 ,"46,790.00",
DFID,DFID,23/01/2013,Computer software maintenance ,Business Solutions Division Level ,Unit 4 ,200002-107 ,"62,365.61",HR Databases Annual Maintenance Support 12/13
DFID,DFID,23/01/2013,Technical and Advisory Services ,Asia  Caribbean and Overseas Territories ,GHK CONSULTING LTD ,108027-101 ,"40,716.00",
DFID,DFID,23/01/2013,Repairs  Maint  Alter - Property & Constrct. Services ,Western Asia and Stabilisation Division ,Supplier Name withheld ,100061-101 ,"30,015.14",
DFID,DFID,23/01/2013,Furniture & Fittings ,Human Resources Security & Facilities Division ,Senator International  ,203716-101 ,"24,680.14",
DFID,DFID,23/01/2013,Other Building Costs ,Human Resources Security & Facilities Division ,MITIE Technical Facilities Management Ltd ,100106-101 ,"24,260.50",
DFID,DFID,23/01/2013,Furniture & Fittings ,Human Resources Security & Facilities Division ,Senator International  ,203716-101 ,"24,101.28",
DFID,DFID,23/01/2013,Other rentals ,West and Southern Africa ,JAT Constroi ,101620-101 ,"22,184.75",
DFID,DFID,23/01/2013,Repairs  Maint  Alter - Property & Constrct. Services ,East and Central Africa ,WESTBURY ESTATE SERVICES LTD ,100212-101 ,"21,226.96",
DFID,DFID,23/01/2013,Technical and Advisory Services ,East and Central Africa ,ADAM SMITH INTERNATIONAL  LTD ,200221-107 ,"20,265.91",
DFID,DFID,23/01/2013,Aid Programme - Joint programme contribution ,Western Asia and Stabilisation Division ,The World Bank (EFO) ,203508-102 ,"20,000.00",
DFID,DFID,23/01/2013,Technical and Advisory Services ,Policy Division ,Triple Line Consulting Limited ,201242-101 ,"19,457.34",
DFID,DFID,23/01/2013,Technical and Advisory Services ,Western Asia and Stabilisation Division ,Supplier Name withheld ,203309-103 ,"12,754.04",
DFID,DFID,23/01/2013,Furniture & Fittings ,Human Resources Security & Facilities Division ,Senator International  ,203716-101 ,"12,614.40",
DFID,DFID,23/01/2013,Technical and Advisory Services ,Western Asia and Stabilisation Division ,Supplier Name withheld ,203309-102 ,"11,573.04",
DFID,DFID,23/01/2013,Aid Programme - Accountable Grant Payments ,Policy Division ,OXFAM INSTITUTIONAL INCOME ACCOUNT ,203158-101 ,"10,809.52",
DFID,DFID,23/01/2013,FCO shared service charges ,Western Asia and Stabilisation Division ,Foreign & Commonwealth Office ,101601-110 ,"9,951.55",
DFID,DFID,23/01/2013,Computer Software Licenses ,Business Solutions Division Level ,COMPUTACENTER (UK) LTD ,200002-201 ,"9,828.00",
DFID,DFID,23/01/2013,Relocation costs ,West and Southern Africa ,CROWN RELOCATIONS  UK ,101638-101 ,"9,624.61",
DFID,DFID,23/01/2013,Technical and Advisory Services ,Policy Division ,Triple Line Consulting Limited ,100045-101 ,"7,947.37",
DFID,DFID,23/01/2013,Technical and Advisory Services ,West and Southern Africa ,MOTT MACDONALD LTD ,202344-104 ,"7,463.75",
DFID,DFID,23/01/2013,Other rentals ,West and Southern Africa ,JAT Constroi ,100148-101 ,"7,394.92",
DFID,DFID,23/01/2013,Subscriptions ,Research and Evidence Division ,Gallup ,202348-103 ,"7,177.67",
DFID,DFID,23/01/2013,Furniture & Fittings ,Human Resources Security & Facilities Division ,Senator International  ,203716-101 ,"4,954.44",
DFID,DFID,23/01/2013,Other rentals ,West and Southern Africa ,JAT Constroi ,101620-101 ,"4,660.09",
DFID,DFID,23/01/2013,Storage & Distribution costs ,West and Southern Africa ,CROWN RELOCATIONS  UK ,101631-101 ,"4,513.29",
DFID,DFID,23/01/2013,Conferences  Seminars & Meeting/Event Resource ,International Relations Division ,UBIQUS UK LTD ,100262-101 ,"4,388.40",
DFID,DFID,23/01/2013,Furniture & Fittings ,Human Resources Security & Facilities Division ,Senator International  ,203716-101 ,"3,480.00",
DFID,DFID,23/01/2013,Furniture & Fittings ,Human Resources Security & Facilities Division ,Senator International  ,203716-101 ,"2,958.08",
DFID,DFID,23/01/2013,Technical and Advisory Services ,Asia  Caribbean and Overseas Territories ,Ecological Economies and Development Limited ,202832-102 ,"2,568.29",
DFID,DFID,23/01/2013,Vehicle Petrol & Oil ,Western Asia and Stabilisation Division ,Pakistan State Oil Company Ltd ,101624-101 ,"2,276.63",
DFID,DFID,23/01/2013,Contract & Agency Staff ,Human Resources Security & Facilities Division ,Michaeil Page Int. Recruitment Ltd ,100268-101 ,"2,220.00",
DFID,DFID,23/01/2013,Contract & Agency Staff ,Human Resources Security & Facilities Division ,Michaeil Page Int. Recruitment Ltd ,100268-101 ,"2,220.00",
DFID,DFID,23/01/2013,Technical and Advisory Services ,Policy Division ,GBRW LIMITED ,201733-107 ,"2,190.00",
DFID,DFID,23/01/2013,Conferences  Seminars & Meeting/Event Resource ,Research and Evidence Division ,Searcy Tansley & Co. Ltd ,202331-105 ,"1,907.00",
DFID,DFID,23/01/2013,Facilities Management payments ,East and Central Africa ,Nyota Tanzania Ltd ,101634-101 ,"1,889.17",
DFID,DFID,23/01/2013,Vehicle Repairs & Maintenance ,East and Central Africa ,FEDCO MAN CO.LTD ,202594-101 ,"1,801.17",
DFID,DFID,23/01/2013,Technical and Advisory Services ,Asia  Caribbean and Overseas Territories ,KEIKO TSUNEKAWA BUTTERWORTH ,201645-109 ,"1,672.00",
DFID,DFID,23/01/2013,Generators & spares ,West and Southern Africa ,NP (SL) Ltd ,101629-101 ,"1,616.01",
DFID,DFID,23/01/2013,Other rentals ,West and Southern Africa ,Condominios JAT ,101620-101 ,"1,612.04",
DFID,DFID,23/01/2013,Other Building Costs ,Human Resources Security & Facilities Division ,MITIE Technical Facilities Management Ltd ,100106-101 ,"1,570.58",
DFID,DFID,23/01/2013,Other rentals ,West and Southern Africa ,JAT Constroi ,100148-101 ,"1,553.36",
DFID,DFID,23/01/2013,Training - Course Fees ,International Finance Division ,RADA ENTERPRISES LTD ,100111-101 ,"1,500.00",
DFID,DFID,23/01/2013,Conferences  Seminars & Meeting/Event Resource ,International Relations Division ,COMMONWEALTH SECRETARIAT (ComSec) ,100262-101 ,"1,322.21",
DFID,DFID,23/01/2013,Air fares ,International Relations Division ,Recipient name withheld ,100240-101 ,"1,272.68",
DFID,DFID,23/01/2013,Electricity ,East and Central Africa ,UMEME Ltd ,101635-101 ,"1,159.91",
DFID,DFID,23/01/2013,Contract & Agency Staff ,Finance and Corporate Performance Division ,MICHAEL PAGE INTERNATIONAL RECRUITMENT LIMITED ,100201-101 ,"1,150.02",
DFID,DFID,23/01/2013,Conferences  Seminars & Meeting/Event Resource ,International Relations Division ,Clio Enterprises Ltd ,100262-101 ,"1,122.00",
DFID,DFID,23/01/2013,Furniture & Fittings ,Human Resources Security & Facilities Division ,Senator International  ,203716-101 ,"1,116.00",
DFID,DFID,23/01/2013,Data Network -Satellite ,Western Asia and Stabilisation Division ,SPECTRA  GROUP UK LTD ,102014-102 ,"1,080.00",
DFID,DFID,23/01/2013,Contract & Agency Staff ,International Finance Division ,Hays Specialist Recruitment Ltd ,100120-101 ,"1,070.70",
DFID,DFID,23/01/2013,Conferences  Seminars & Meeting/Event Resource ,East and Central Africa ,Recipient name withheld ,101625-101 ,"1,070.29",
DFID,DFID,23/01/2013,Technical and Advisory Services ,Communications Division ,TRIPLE LINE CONSULTING LTD ,114423-102 ,975.50,
DFID,DFID,23/01/2013,Other Building Costs ,Human Resources Security & Facilities Division ,GDC Building Services Ltd ,100187-101 ,880.00,
DFID,DFID,23/01/2013,Contract & Agency Staff ,Human Resources Security & Facilities Division ,Anderson Knight Ltd ,100270-102 ,800.63,
DFID,DFID,23/01/2013,Vehicle Repairs & Maintenance ,East and Central Africa ,FEDCO MAN CO.LTD ,202586-101 ,771.93,
DFID,DFID,23/01/2013,Generators & spares ,West and Southern Africa ,Abrahim A H Daklalah ($) ,101629-101 ,757.10,
DFID,DFID,23/01/2013,Telephone Usage & services ,East and Central Africa ,MTN Uganda Ltd ,101635-101 ,734.12,
DFID,DFID,23/01/2013,Hardware -Laptop PCs ,West and Southern Africa ,Makro Centurion ,100220-101 ,732.65,
DFID,DFID,23/01/2013,Telephone Usage & services ,East and Central Africa ,MTN Uganda Ltd ,101635-101 ,731.90,
DFID,DFID,23/01/2013,Contract & Agency Staff ,Finance and Corporate Performance Division ,Hays Specialist Recruitment Ltd ,100201-101 ,699.30,
DFID,DFID,23/01/2013,Hotels - Accommodation only ,Research and Evidence Division ,TAJ PALACE HOTEL  NEW DELHI ,100039-108 ,660.47,
DFID,DFID,23/01/2013,Technical and Advisory Services ,Policy Division ,HAREWELLE INTERNATIONAL LIMITED ,203166-102 ,650.00,
DFID,DFID,23/01/2013,Contract & Agency Staff ,Policy Division ,Hays Specialist Recruitment Ltd ,100191-101 ,637.92,
DFID,DFID,23/01/2013,Storage & Distribution costs ,Communications Division ,EC GROUP ,201662-104 ,635.03,
DFID,DFID,23/01/2013,Water charges ,Asia  Caribbean and Overseas Territories ,Bal Krishna Dahal ,101621-103 ,621.30,
DFID,DFID,23/01/2013,Printer Consumables ,West and Southern Africa ,Papirus Plus Lda ,101620-101 ,599.16,
DFID,DFID,23/01/2013,Storage & Distribution costs ,Communications Division ,EC GROUP ,201662-104 ,586.40,
DFID,DFID,23/01/2013,Contract & Agency Staff ,Human Resources Security & Facilities Division ,Anderson Knight Ltd ,100270-104 ,578.31,
DFID,DFID,23/01/2013,Telephone Usage & services ,Policy Division ,VODAFONE CORPORATE ,100276-101 ,565.93,
DFID,DFID,23/01/2013,Further Education costs ,East and Central Africa ,United States International University - Kenya (USIU) ,101616-101 ,560.57,
DFID,DFID,23/01/2013,Hotels - Accommodation only ,Asia  Caribbean and Overseas Territories ,Summit Hotel Pvt Ltd ,101621-101 ,553.66,
DFID,DFID,23/01/2013,Technical and Advisory Services ,Communications Division ,TRIPLE LINE CONSULTING LTD ,100229-101 ,550.00,
DFID,DFID,23/01/2013,Other rentals ,West and Southern Africa ,Condominios JAT ,100148-101 ,537.35,
DFID,DFID,23/01/2013,Storage & Distribution costs ,Communications Division ,EC GROUP ,201662-104 ,529.96,
DFID,DFID,23/01/2013,Furniture & Fittings ,Human Resources Security & Facilities Division ,Senator International  ,203716-101 ,529.54,
DFID,DFID,23/01/2013,Office Equipment - Purchases ,West and Southern Africa ,Recipient name withheld ,101622-101 ,515.18,
DFID,DFID,23/01/2013,Air fares ,Human Resources Security & Facilities Division ,Sebastian Meaney ,100269-128 ,"1,504.98",
DFID,DFID,24/01/2013,Technical and Advisory Services ,Western Asia and Stabilisation Division ,Inshan Ali Nawaz ,113331-103 ,"3,838.11",
DFID,DFID,24/01/2013,Technical and Advisory Services ,Western Asia and Stabilisation Division ,Mr Sajid Qaisrani ,202233-102 ,"2,465.37",
DFID,DFID,24/01/2013,Technical and Advisory Services ,East and Central Africa ,BMB  MOTT  MACDONALD ,104978-115 ,"1,801,667.00",
DFID,DFID,24/01/2013,Aid Programme - Accountable Grant Payments ,West and Southern Africa ,POLICY AND LEGAL ADVOCACY CENTRE ,200274-109 ,"645,762.40",
DFID,DFID,24/01/2013,Technical and Advisory Services ,Western Asia and Stabilisation Division ,Supplier Name withheld ,202311-102 ,"616,847.58",
DFID,DFID,24/01/2013,Technical and Advisory Services ,West and Southern Africa ,PRICEWATERHOUSECOOPERS ,113961-102 ,"556,395.00",
DFID,DFID,24/01/2013,Aid Programme - Accountable Grant Payments ,Research and Evidence Division ,THE INSTITUTE OF DEVELOPMENT STUDIE ,200456-107 ,"441,859.56",
DFID,DFID,24/01/2013,Aid Programme - Accountable Grant Payments ,East and Central Africa ,RedR UK ,203306-101 ,"320,547.80",
DFID,DFID,24/01/2013,Technical and Advisory Services ,Asia  Caribbean and Overseas Territories ,BMB MOTT  MACDONALD ,107480-101 ,"263,235.23",
DFID,DFID,24/01/2013,Technical and Advisory Services ,Western Asia and Stabilisation Division ,ADAM SMITH INTERNATIONAL  LTD ,202328-102 ,"168,338.92",
DFID,DFID,24/01/2013,Aid Programme - Joint programme contribution ,Western Asia and Stabilisation Division ,Supplier Name withheld ,203474-101 ,"166,668.00",
DFID,DFID,24/01/2013,Technical and Advisory Services ,West and Southern Africa ,PRICEWATERHOUSECOOPERS ,113961-103 ,"118,663.52",
DFID,DFID,24/01/2013,Technical and Advisory Services ,West and Southern Africa ,DAI Europe ,201958-102 ,"97,253.35",
DFID,DFID,24/01/2013,Technical and Advisory Services ,Asia  Caribbean and Overseas Territories ,BMB MOTT  MACDONALD ,107480-101 ,"93,743.55",
DFID,DFID,24/01/2013,Technical and Advisory Services ,West and Southern Africa ,KPMG Auditores e Consultores SA ,103993-101 ,"71,839.19",
DFID,DFID,24/01/2013,Technical and Advisory Services ,Western Asia and Stabilisation Division ,COFFEY INTERNATIONAL DEVELOPMENT LTD ,202368-102 ,"64,266.63",
DFID,DFID,24/01/2013,Aid Programme - Accountable Grant Payments ,Communications Division ,WATERAID ,202197-101 ,"55,954.00",
DFID,DFID,24/01/2013,Hardware - networking equipment ,Human Resources Security & Facilities Division ,KCOM Group Plc ,203716-101 ,"51,841.21",
DFID,DFID,24/01/2013,Aid Programme - Trust Funds contributions ,East and Central Africa ,   THE WORLD BANK ,202534-105 ,"50,000.00",
DFID,DFID,24/01/2013,Aid Programme - Core contributions ,Research and Evidence Division ,The World Bank (EFO) ,202856-101 ,"50,000.00",
DFID,DFID,24/01/2013,Technical and Advisory Services ,Asia  Caribbean and Overseas Territories ,COFFEY INTERNATIONAL DEVELOPMENT LTD (notactive) ,202919-101 ,"39,427.55",
DFID,DFID,24/01/2013,Technical and Advisory Services ,Middle East & North Africa Division (MENAD) ,LOTHIAN AND BORDERS POLICE ,202486-103 ,"27,906.54",
DFID,DFID,24/01/2013,Furniture & Fittings ,Human Resources Security & Facilities Division ,Senator International  ,203716-101 ,"27,068.98",
DFID,DFID,24/01/2013,Repairs  Maint  Alter - Property & Constrct. Services ,Asia  Caribbean and Overseas Territories ,Cherryhill Interiors Limited ,100114-104 ,"24,923.28",
DFID,DFID,24/01/2013,Furniture & Fittings ,Human Resources Security & Facilities Division ,Senator International  ,203716-101 ,"22,716.48",
DFID,DFID,24/01/2013,Aid Programme - Joint programme contribution ,Middle East & North Africa Division (MENAD) ,FOREIGN AND COMMONWEALTH OFFICE (FCO) ,203120-101 ,"19,383.17",
DFID,DFID,24/01/2013,Repairs  Maint  Alter - Property & Constrct. Services ,East and Central Africa ,IPA-International Procurement Agency (BV) ,203542-106 ,"14,111.82",
DFID,DFID,24/01/2013,Aid Programme - Accountable Grant Payments ,Research and Evidence Division ,THE INSTITUTE OF DEVELOPMENT STUDIE ,200456-107 ,"14,075.37",
DFID,DFID,24/01/2013,Technical and Advisory Services ,West and Southern Africa ,ADAM SMITH INTERNATIONAL  LTD ,202725-103 ,"13,969.84",
DFID,DFID,24/01/2013,Technical and Advisory Services ,Western Asia and Stabilisation Division ,Supplier Name withheld ,114525-102 ,"12,166.85",
DFID,DFID,24/01/2013,Technical and Advisory Services ,Asia  Caribbean and Overseas Territories ,SIDBI Venture Capital Limited ,114293-102 ,"10,573.44",
DFID,DFID,24/01/2013,Repairs  Maint  Alter - Property & Constrct. Services ,East and Central Africa ,IPA-International Procurement Agency (BV) ,203542-106 ,"9,450.00",
DFID,DFID,24/01/2013,Furniture & Fittings ,Human Resources Security & Facilities Division ,Senator International  ,203716-101 ,"8,886.84",
DFID,DFID,24/01/2013,Secure Staff Accommodation ,Asia  Caribbean and Overseas Territories ,Supplier Name withheld ,101636-101 ,"8,062.96",
DFID,DFID,24/01/2013,Aid Programme - Accountable Grant Payments ,Asia  Caribbean and Overseas Territories ,Anguilla National Trust ,201049-101 ,"7,819.63",
DFID,DFID,24/01/2013,Electricity ,Human Resources Security & Facilities Division ,Government Procurement Service ,203717-101 ,"7,598.59",
DFID,DFID,24/01/2013,Technical and Advisory Services ,Western Asia and Stabilisation Division ,The London Speaker Bureau ME ,201337-101 ,"7,597.20",
DFID,DFID,24/01/2013,Technical and Advisory Services ,Western Asia and Stabilisation Division ,muhamma Farooq Khan ,108742-101 ,"7,146.14",
DFID,DFID,24/01/2013,Technical and Advisory Services ,East and Central Africa ,Centre for Financial Regulation & Inclusoiin ,202844-101 ,"6,916.96",
DFID,DFID,24/01/2013,Furniture & Fittings ,Human Resources Security & Facilities Division ,Senator International  ,203716-101 ,"6,332.45",
DFID,DFID,24/01/2013,Technical and Advisory Services ,East and Central Africa ,JHughesDevelopment  Inc ,203109-101 ,"5,269.09",
DFID,DFID,24/01/2013,Technical and Advisory Services ,Western Asia and Stabilisation Division ,Aalya Gloekler ,202289-102 ,"4,482.62",
DFID,DFID,24/01/2013,Furniture & Fittings ,Human Resources Security & Facilities Division ,Senator International  ,203716-101 ,"4,375.44",
DFID,DFID,24/01/2013,Furniture & Fittings ,Human Resources Security & Facilities Division ,Senator International  ,203716-101 ,"3,910.66",
DFID,DFID,24/01/2013,Other non-passenger transportation ,Asia  Caribbean and Overseas Territories ,G4S FACILITY SERVICES (INDIA) PVT. L ,201689-105 ,"3,034.16",
DFID,DFID,24/01/2013,Technical and Advisory Services ,Western Asia and Stabilisation Division ,Christian Dennys ,203341-102 ,"2,985.00",
DFID,DFID,24/01/2013,Computer software maintenance ,Business Solutions Division Level ,NORTHGATE HR LIMITED ,200002-105 ,"2,780.80",
DFID,DFID,24/01/2013,Technical and Advisory Services ,Western Asia and Stabilisation Division ,Christian Dennys ,203341-102 ,"2,613.70",
DFID,DFID,24/01/2013,Recruitment costs ,Human Resources Security & Facilities Division ,MARGARET HODGE RECRUITMENT LTD ,100270-103 ,"2,554.68",
DFID,DFID,24/01/2013,Technical and Advisory Services ,Western Asia and Stabilisation Division ,Ambreen Gilani ,202261-101 ,"2,455.77",
DFID,DFID,24/01/2013,Technical and Advisory Services ,Asia  Caribbean and Overseas Territories ,Purushottam Ojha ,203035-102 ,"2,124.69",
DFID,DFID,24/01/2013,Contract & Agency Staff ,International Finance Division ,Hays Specialist Recruitment Ltd ,100120-101 ,"2,016.90",
DFID,DFID,24/01/2013,Training Providers/Facilitation Services ,Middle East & North Africa Division (MENAD) ,SCHOOL OF ORIENTAL & AFRICAN STUDIES ,101619-101 ,"1,995.00",
DFID,DFID,24/01/2013,Data Network - land lines ,West and Southern Africa ,AH Networks ,101618-101 ,"1,625.84",
DFID,DFID,24/01/2013,Technical and Advisory Services ,Middle East & North Africa Division (MENAD) ,Crown Agents Bank ,100303-101 ,"1,576.69",
DFID,DFID,24/01/2013,Data network- remote working ,West and Southern Africa ,Skyband Corporation LTD ,101618-101 ,"1,558.99",
DFID,DFID,24/01/2013,Secure Staff Accommodation ,East and Central Africa ,Supplier Name withheld ,202593-101 ,"1,450.52",
DFID,DFID,24/01/2013,Air fares ,East and Central Africa ,Bon Voyage Travel Centre Ltd(USD) ,202593-101 ,"1,387.79",
DFID,DFID,24/01/2013,Training - Course Fees ,Western Asia and Stabilisation Division ,Centre  for Economic Research in Pakistan ,101624-101 ,"1,280.71",
DFID,DFID,24/01/2013,Contract & Agency Staff ,Finance and Corporate Performance Division ,Hays Specialist Recruitment Ltd ,100201-101 ,"1,165.50",
DFID,DFID,24/01/2013,Contract & Agency Staff ,Finance and Corporate Performance Division ,Hays Specialist Recruitment Ltd ,100201-101 ,"1,165.50",
DFID,DFID,24/01/2013,Contract & Agency Staff ,Finance and Corporate Performance Division ,Hays Specialist Recruitment Ltd ,100201-101 ,"1,130.16",
DFID,DFID,24/01/2013,Other Building Costs ,Human Resources Security & Facilities Division ,MITIE Technical Facilities Management Ltd ,203717-101 ,"1,129.74",
DFID,DFID,24/01/2013,Conferences  Seminars & Meeting/Event Resource ,West and Southern Africa ,Mount Soche Hotel ,101618-101 ,"1,073.74",
DFID,DFID,24/01/2013,Contract & Agency Staff ,Finance and Corporate Performance Division ,Hays Specialist Recruitment Ltd ,100201-101 ,"1,036.80",
DFID,DFID,24/01/2013,Conferences  Seminars & Meeting/Event Resource ,Research and Evidence Division ,Searcy Tansley & Co. Ltd ,202331-105 ,"1,007.00",
DFID,DFID,24/01/2013,Contract & Agency Staff ,Finance and Corporate Performance Division ,Hays Specialist Recruitment Ltd ,100201-101 ,990.00,
